Workbook

Sheet Sign Off
B2: Sign Off's
B4: Accounting
C6: Name | D6: Title | E6: Date
B7: Preparer | C7: Belen Villalba | D7: Temp Analyst | E7: 2019-12-20
B8: Reviewer | C8: William Adams | D8: Financial Planner Manager | E8: 2020-01-14
B9: Approver | C9: N/A | D9: N/A | E9: N/A
B11: Audit Services
C13: Name | D13: Title | E13: Date
B14: Preparer
B16: Energy Delivery
C18: Name | D18: Title | E18: Date
B19: Final Reviewer

Sheet A - Contractor Summary
B2: Contractor Summary
B4: Test Plan: (A) Using the drop down list, select the vendor. (B) Ensure address agrees to invoice(s). (C) Enter the distance between vendor address to Plant City, FL. (D) Determine if vendor is part of the SEE (see tab A.1 for listing). (E) Determine if other agreements exist. (F) Using the drop down list, select the Incident Base that the vendor was initially assigned. (G) If the contractor includes multiple crews with different timelines, utilize the '+' symbol at the top of columns 'H' and 'K' (if necessary) to unhide the vendor summary. (H) Click the button to populate the second (and third, if necessary) set of tabs for documentation of those expenses. (I) Complete steps (A) through (F).
F14: G | I14: G | K14: G | M14: G
C15: Vendor #6
G17: H | J17: H
B19: Contractor/Company | C19: DAVEY TREE EXPERT COMPANY, THE | D19: A | G19: A | J19: A
B20: SAP Vendor#
B21: Service Type | C21: Distribution
B23: Address | C23: PO Box 709 | D23: B
B24: City | C24: Kent
B25: State/Providence | C25: OH
B26: Zip | C26: 44240
B27: Country | C27: USA
B29: Distance from FL (in miles) | D29: C
B30: Travel Days (500 m/per day)
B32: Member of the SEE | D32: D
B33: Other Agreement/Contract (Y/N) | D33: E
B34: Incident Base | D34: F
B36: Date Secured | C36: 2019-09-01
B37: Start Travel | C37: 2019-09-01
B38: Date Arrived | C38: 2019-09-03
B39: Date Released | C39: 2019-09-05
B40: Time Released | C40: 600.25
B41: Released To
B42: Arrived Home/Utility*
F47: C.1 - Rate Sheets (2) | I47: C.1 - Rate Sheets (3) | K47: C.1 - Rate Sheets (3) | M47: C.1 - Rate Sheets (3)
F48: C.2 - Timesheets - Labor (2) | I48: C.2 - Timesheets - Labor (3) | K48: C.2 - Timesheets - Labor (3) | M48: C.2 - Timesheets - Labor (3)
F49: C.4 - Timesheets - Equipmen (2) | I49: C.4 - Timesheets - Equipmen (3) | K49: C.4 - Timesheets - Equipmen (3) | M49: C.4 - Timesheets - Equipmen (3)
F50: D - Lodging (2) | I50: D - Lodging (3) | K50: D - Lodging (3) | M50: D - Lodging (3)
F51: E - Fuel (2) | I51: E - Fuel (3) | K51: E - Fuel (3) | M51: E - Fuel (3)
F52: F - Meals (2) | I52: F - Meals (3) | K52: F - Meals (3) | M52: F - Meals (3)
F53: G - Per Diem (2) | I53: G - Per Diem (3) | K53: G - Per Diem (3) | M53: G - Per Diem (3)
F54: H - Mileage (2) | I54: H - Mileage (3) | K54: H - Mileage (3) | M54: H - Mileage (3)
F55: I - Other (2) | I55: I - Other (3) | K55: I - Other (3) | M55: I - Other (3)
B59: *Estimates reasonable arrival time
B61: Tickmark Explanation:
B67: Invoice | C67: 914186598 | F67: 914186602 | I67: 914186609 | K67: 914186615 | M67: 914186619 | O67: 913994032
B68: Foremen | C68: Hahn | F68: Davis | I68: Bane | K68: Ash | M68: Jarrett | O68: Hastings
B69: Start Location | C69: Beckley, WV | F69: Beckley, WV | I69: Beckley, WV | K69: Beckley, WV | M69: Beckley, WV | O69: Local
B70: Mileage | C70: 584 | F70: 584 | I70: 584 | K70: 584 | M70: 584
B71: Date Secured | C71: 2019-09-01 | F71: 2019-09-01 | I71: 2019-09-01 | K71: 2019-09-01 | M71: 2019-09-01
B72: Date Released | C72: 2019-09-05 | F72: 2019-09-05 | I72: 2019-09-05 | K72: 2019-09-05 | M72: 2019-09-05
B73: Time Released | C73: 600.25 | F73: 600.25 | I73: 600.25 | K73: 600.25 | M73: 600.25
B74: Released To | C74: Cayahoga Falls | F74: Cayahoga Falls | I74: Cayahoga Falls | K74: Cayahoga Falls | M74: Cayahoga Falls
B75: Mileage | C75: 853 | F75: 853 | I75: 853 | K75: 853 | M75: 853
B76: Arrived Home/Utility* | C76: 2019-09-06 | F76: 2019-09-06 | I76: 2019-09-06 | K76: 2019-09-06 | M76: 2019-09-06

Sheet A.1 SEE Members
A1: RMAG | B1: RESPONDING COMPANY | C1: COMPANY NAME
A2: SEE
A3: SEE
A4: SEE
A5: SEE
A6: SEE
A7: SEE
A8: SEE
A9: SEE
A10: SEE
A11: SEE
A12: SEE
A13: SEE
A14: SEE
A15: SEE
A16: SEE
A17: SEE
A18: SEE
A19: SEE
A24: SEE
A25: SEE
A26: SEE
A27: SEE
A28: SEE
A29: SEE
A31: SEE
A32: SEE
A33: SEE
A34: SEE
A35: SEE
A40: SEE
A41: SEE
A42: SEE
A43: SEE
A47: SEE
A55: SEE
A56: SEE
A57: SEE
A61: SEE
A64: SEE
A65: SEE

Sheet B - Summary Expenses
B2: Summary of Expenses
B4: Test Plan: (A) Calculate Total Amount Invoiced for each expense category. (B) Using SAP t-code FBL1N, list Vendor Invoices Paid. (C) Ensure there are no differences between the Total Expense Amount and the Total Paid Amount. (D) Ensure there are no difference between Total Invoiced Amount and Total Expense Amount. (E) If applicable, identify difference due to Foreign currency exchange rates.
C9: A
C10: Total Invoiced | D10: Total Calculated | E10: Allowable | F10: Reviewed - Allowed | G10: Reviewed - Not Allowable | H10: Not Allowable
B11: Labor Expense Total | C11: 51497.42 | D11: =+'C.2 - Timesheets - Labor'!BB30 -> 51497.42 | E11: ='C.2 - Timesheets - Labor'!BC30 -> 51497.42 | F11: ='C.2 - Timesheets - Labor'!BD30 -> 0 | G11: ='C.2 - Timesheets - Labor'!BE30 -> 0 | H11: =D11-(E11+F11+G11) -> 0
B12: Equipment Expense Total | C12: 5656.37 | D12: =+'C.4 - Timesheets - Equipment'!R26 -> 5656.37 | E12: =+'C.4 - Timesheets - Equipment'!S26 -> 5656.37 | F12: ='C.4 - Timesheets - Equipment'!U26 -> 0 | G12: ='C.4 - Timesheets - Equipment'!V26 -> 0 | H12: =D12-(E12+F12+G12) -> 0
B13: Lodging Expense Total | F13: ='D - Lodging'!V93 -> 0 | G13: ='D - Lodging'!W93 -> 0 | H13: =D13-(E13+F13+G13) -> 0
B14: Fuel/Transport Expense Total | F14: ='E - Fuel'!S34 -> 0 | G14: ='E - Fuel'!T34 -> 0 | H14: 0
B15: Meal Expense Total | F15: ='F - Meals'!T141 -> 0 | G15: ='F - Meals'!U141 -> 0 | H15: 0
B16: Per Diem Expense Total | C16: 2493 | D16: =+'G - Per Diem'!P37 -> 2493 | E16: =+'G - Per Diem'!I37 -> 2493 | G16: ='G - Per Diem'!Q37 -> 0 | H16: 0
B17: Mileage Expense Total | C17: 10059 | D17: =+'H - Mileage'!L22 -> 10059 | E17: =+'H - Mileage'!R22 -> 10059 | G17: ='H - Mileage'!U22 -> 0 | H17: 0
B18: Other Expense | D18: =+'I - Other'!K19 -> 0 | F18: ='I - Other'!T19 -> 0 | G18: ='I - Other'!U19 -> 0 | H18: =D18-(E18+F18+G18) -> 0
B20: Total Expense per tabs | C20: =SUM(C11:C18) -> 69705.79 | D20: =SUM(D11:D18) -> 69705.79 | E20: =SUM(E11:E18) -> 69705.79 | F20: =SUM(F11:F18) -> 0 | G20: =SUM(G11:G18) -> 0 | H20: 0
B21: Difference | C21: =IF(D21=0,"","1") ->  | D21: =C20-D20 -> 0 | E21: D
B23: Total Expense | D23: =+D20 -> 69705.79 | E23: (from Total SAP Summary)
B24: Total Paid | D24: =+D221 -> 69705.79 | E24: (from FBL1N in SAP)
B25: Difference | C25: =IF(D25=0,"",SUM(C21,1)) ->  | D25: =+D23-D24 -> 0 | E25: C
B27: Exchange Rate
B28: Fx Adjusted to USD
B29: Difference | C29: =IF(D29=0,"","3") ->  | E29: E
B31: B
B33: Document No | C33: Doc Date | D33: Amount | E33: Reference
B34: 914186602 | C34: 2019-11-21 | D34: 12776.2
B35: 914186619 | C35: 2019-11-21 | D35: 12996.24
B36: 914186598 | C36: 2019-11-21 | D36: 14869.69
B37: 914186615 | C37: 2019-11-21 | D37: 8698.34
B38: 914186609 | C38: 2019-11-21 | D38: 12996.24
B39: 913994032 | C39: 2020-02-21 | D39: 7369.08
D221: =SUM(D34:D220) -> 69705.79
B223: Tickmark Explanation:
B224: =IFERROR(C21,"") -> 
B226: =IFERROR(C25,"") -> 

Sheet C.1 - Rate Sheets
B2: Labor Charges - Rate Sheet
B4: Test Plan: (A) Using the vendor rate sheet, ensure that a rate was provided for all Positions and Equipment types.
B6: Labor Types:
B7: ST | C7: Straight Time
B8: OT | C8: Over Time
B9: DT | C9: Double Time
B10: MOB/DMOB | C10: Mobilization/Demobilization Time
B13: Labor per Man Hour | H13: Labor per Equipment Hour
B14: A | H14: A
B15: POSITION | C15: ST | D15: OT | E15: DT | F15: MOB/DMOB | H15: Type | I15: $/HOUR
B16: Crew Foreman | C16: 61.06 | D16: 82.43 | E16: 97.7 | H16: Aerial Lift 40'- 4WD | I16: 24.99
B17: Tree Trimmer | C17: 52.14 | D17: 70.39 | E17: 83.42 | H17: Aerial Lift >60'- 2WD | I17: 30.1
B18: Supervisor | C18: 79.55 | D18: 107.39 | E18: 127.28 | H18: Pick Up | I18: 13.19
B19: Ground Person | C19: 40 | D19: 54 | E19: 64 | H19: Manual Crew Truck | I19: 15.05
B20: On-Site Safety Coordinator | C20: 65 | D20: 65 | E20: 65 | H20: Aerial Lift 60'- 4WD (a) | I20: 23.25
H21: Aerial Lift < 60' | I21: 28
H22: Saws
H23: Aerial Lift with Tools | I23: 30.1
H24: Computer | I24: 0
H25: Chipper | I25: 7.25
H26: cell phone | I26: 0
H29: Mileage for Aerial under 60' | I29: 1.25
H30: Mileage to Marianna | I30: 1.29
H31: Mileage Manual Crew Truck | I31: 1
H32: Mileage Pick Up Truck | I32: 0.85
H33: Mileage Aerial Lift > 60' | I33: 1.3
H34: Mileage Aerial Lift < 60' | I34: 1.25
B54: Tickmark Explanation:
B55: 1

Sheet C.2 - Timesheets - Labor
B2: Labor Charges - Time Card
B4: Test Plan: | C4: Obtain the time cards. (A) Using the Asset by Company tab (C.3), populate the crew members names and positions (if provided). Find additional information regarding individual crew member from related invoice. (B) Enter hours worked from time card(s). (C) Confirm that the dates per the time cards fall between dates provided per 'A - Contractor Summary' tab. (D) Confirm the labor type charged agrees to the rate sheet. (E) Identify any labor charges to be reviewed (manually enter amounts based on reasonability of time period labor was charged, discrepancies between timecards and invoice, etc. (F) For charges which required further review, document review (include why it was determined to be allowed/disallowed via a tickmark).
B10: Rx | C10: Recalculated.
B11: a | C11: Provided from tab 'C.1 - Rate Sheets'. | D11: =+'C.2 - Timesheets - Labor'!A38 -> 0
B12: b | C12: Check figure should equal $0. Cell will appear yellow if discrepancies are noted.
C14: A | H14: Rx | J14: C | K14: a | AS14: Rx | AX14: Rx | BC14: Rx | BE14: E | BF14: F
B15: # | C15: Name | D15: Position | E15: Company | F15: Crew# | G15: Invoice# | H15: Start Date | I15: End Date | J15: Dates Worked Reasonable? | K15: Rates | O15: 2019-09-01 | T15: 2019-09-02 | Y15: 2019-09-03 | AD15: 2019-09-04 | AI15: 2019-09-05 | AN15: 2019-09-06 | AS15: Total Labor Hours | AX15: Total Labor $ | BC15: Allowable Charges | BD15: Labor Type Appropriate? | BE15: To Be Reviewed | BF15: Reviewed - Allowable Charge | BG15: Reviewed - Unallowable Charge | BH15: Tickmarks
O16: Sunday | T16: Monday | Y16: Tuesday | AD16: Wednesday | AI16: Thursday | AN16: Friday | AS16: Total ST | AT16: OT | AU16: DT | AV16: MOB/DMOB | AW16: Total Hours | AX16: Total ST $ | AY16: Total OT $ | AZ16: Total DT $ | BA16: Total MOB/DMOB $ | BB16: Total Labor $
K18: ST | L18: OT | M18: DT | N18: MOB/DMOB | O18: ST | P18: OT | Q18: DT | R18: MOB/DMOB | S18: Total | T18: ST | U18: OT | V18: DT | W18: MOB/DMOB | X18: Total | Y18: ST | Z18: OT | AA18: DT | AB18: MOB/DMOB | AC18: Total | AD18: ST | AE18: OT | AF18: DT | AG18: MOB/DMOB | AH18: Total | AI18: ST | AJ18: OT | AK18: DT | AL18: MOB/DMOB | AM18: Total | AN18: ST | AO18: OT | AP18: DT | AQ18: MOB/DMOB | AR18: Total
B19: 1 | C19: Richard Davis | D19: Crew Foreman | E19: Vendor No 6 | F19: Davis | G19: 914186602 | H19: 2018-10-07 | I19: 2018-10-13 | J19: =IF(AND(H19>='A - Contractor Summary'!$C$36,I19<='A - Contractor Summary'!$C$42),"Yes","No") -> No | K19: =VLOOKUP($D19,'C.1 - Rate Sheets'!B:I,2,FALSE) -> 61.06 | L19: =VLOOKUP($D19,'C.1 - Rate Sheets'!B:I,3,FALSE) -> 82.43 | M19: =VLOOKUP($D19,'C.1 - Rate Sheets'!B:I,4,FALSE) -> 97.7 | N19: =VLOOKUP($D19,'C.1 - Rate Sheets'!B:I,5,FALSE) -> 0 | Q19: 7 | S19: =SUM(O19:R19) -> 7 | V19: 8 | X19: =SUM(T19:W19) -> 8 | Y19: 8 | Z19: 5 | AC19: =SUM(Y19:AB19) -> 13 | AD19: 8 | AE19: 8 | AH19: =SUM(AD19:AG19) -> 16 | AI19: 8 | AJ19: 5 | AM19: =SUM(AI19:AL19) -> 13 | AN19: 8 | AO19: 4 | AS19: =SUM(O19,T19,Y19,AD19,AI19,AN19) -> 32 | AT19: =SUM(P19,U19,Z19,AE19,AJ19,AO19) -> 22 | AU19: 15 | AV19: 0 | AW19: =SUM(AS19:AV19) -> 69 | AX19: =AS19*K19 -> 1953.92 | AY19: =AT19*L19 -> 1813.46 | AZ19: =AU19*M19 -> 1465.5 | BA19: =AV19*N19 -> 0 | BB19: =SUM(AX19:BA19) -> 5232.88 | BC19: =BB19-BE19 -> 5232.88 | BD19: Yes | BE19: 0 | BF19: 0 | BG19: 0
B20: 2 | C20: Seth Houck | D20: Tree Trimmer | E20: Vendor No 6 | F20: Davis | G20: 914186602 | H20: 2018-10-07 | I20: 2018-10-13 | J20: =IF(AND(H20>='A - Contractor Summary'!$C$36,I20<='A - Contractor Summary'!$C$42),"Yes","No") -> No | K20: =VLOOKUP($D20,'C.1 - Rate Sheets'!B:I,2,FALSE) -> 52.14 | L20: =VLOOKUP($D20,'C.1 - Rate Sheets'!B:I,3,FALSE) -> 70.39 | M20: =VLOOKUP($D20,'C.1 - Rate Sheets'!B:I,4,FALSE) -> 83.42 | N20: =VLOOKUP($D20,'C.1 - Rate Sheets'!B:I,5,FALSE) -> 0 | Q20: 7 | S20: =SUM(O20:R20) -> 7 | V20: 8 | X20: =SUM(T20:W20) -> 8 | Y20: 8 | Z20: 5 | AC20: =SUM(Y20:AB20) -> 13 | AD20: 8 | AE20: 8 | AH20: =SUM(AD20:AG20) -> 16 | AI20: 8 | AJ20: 5 | AM20: =SUM(AI20:AL20) -> 13 | AN20: 8 | AO20: 4 | AS20: =SUM(O20,T20,Y20,AD20,AI20,AN20) -> 32 | AT20: =SUM(P20,U20,Z20,AE20,AJ20,AO20) -> 22 | AU20: =SUM(Q20,V20,AA20,AF20,AK20,AP20) -> 15 | AV20: =SUM(R20,W20,AB20,AG20,AL20,AQ20) -> 0 | AW20: =SUM(AS20:AV20) -> 69 | AX20: =AS20*K20 -> 1668.48 | AY20: =AT20*L20 -> 1548.58 | AZ20: =AU20*M20 -> 1251.3 | BA20: =AV20*N20 -> 0 | BB20: =SUM(AX20:BA20) -> 4468.36 | BC20: 4468.36 | BD20: Yes | BE20: 0 | BF20: 0 | BG20: 0
B21: 3 | C21: Michael Ashe | D21: Supervisor | E21: Vendor No 6 | F21: Ashe | G21: 914186615 | H21: 2018-10-07 | I21: 2018-10-13 | J21: =IF(AND(H21>='A - Contractor Summary'!$C$36,I21<='A - Contractor Summary'!$C$42),"Yes","No") -> No | K21: =VLOOKUP($D21,'C.1 - Rate Sheets'!B:I,2,FALSE) -> 79.55 | L21: =VLOOKUP($D21,'C.1 - Rate Sheets'!B:I,3,FALSE) -> 107.39 | M21: =VLOOKUP($D21,'C.1 - Rate Sheets'!B:I,4,FALSE) -> 127.28 | N21: =VLOOKUP($D21,'C.1 - Rate Sheets'!B:I,5,FALSE) -> 0 | Q21: 7 | S21: 7 | V21: 8 | X21: 8 | Y21: 8 | Z21: 5 | AC21: 13 | AD21: 8 | AE21: 8 | AH21: 16 | AI21: 8 | AJ21: 5 | AM21: 13 | AN21: 8 | AO21: 4 | AS21: 32 | AT21: 22 | AU21: 15 | AV21: 0 | AW21: 69 | AX21: =AS21*K21 -> 2545.6 | AY21: =AT21*L21 -> 2362.58 | AZ21: =AU21*M21 -> 1909.2 | BA21: =AV21*N21 -> 0 | BB21: =SUM(AX21:BA21) -> 6817.38 | BC21: 6817.38 | BD21: Yes | BE21: 0 | BF21: 0 | BG21: 0
B22: 4 | C22: Jason Jarrett | D22: Crew Foreman | E22: Vendor No 6 | F22: Jarrett | G22: 914186619 | H22: 2018-10-07 | I22: 2018-10-13 | J22: =IF(AND(H22>='A - Contractor Summary'!$C$36,I22<='A - Contractor Summary'!$C$42),"Yes","No") -> No | K22: =VLOOKUP($D22,'C.1 - Rate Sheets'!B:I,2,FALSE) -> 61.06 | L22: =VLOOKUP($D22,'C.1 - Rate Sheets'!B:I,3,FALSE) -> 82.43 | M22: =VLOOKUP($D22,'C.1 - Rate Sheets'!B:I,4,FALSE) -> 97.7 | N22: =VLOOKUP($D22,'C.1 - Rate Sheets'!B:I,5,FALSE) -> 0 | Q22: 7 | S22: 7 | V22: 8 | X22: 8 | Y22: 8 | Z22: 5 | AC22: 13 | AD22: 8 | AE22: 8 | AH22: 16 | AI22: 8 | AJ22: 5 | AM22: 13 | AN22: 8 | AO22: 4 | AS22: 32 | AT22: 22 | AU22: 15 | AV22: 0 | AW22: 69 | AX22: 1953.92 | AY22: 1813.46 | AZ22: 1465.5 | BA22: 0 | BB22: 5232.88 | BC22: 5232.88 | BD22: Yes | BE22: 0 | BF22: 0 | BG22: 0
B23: 5 | C23: Tyler Ashe | D23: Tree Trimmer | E23: Vendor No 6 | F23: Jarrett | G23: 914186619 | H23: 2018-10-07 | I23: 2018-10-13 | J23: =IF(AND(H23>='A - Contractor Summary'!$C$36,I23<='A - Contractor Summary'!$C$42),"Yes","No") -> No | K23: =VLOOKUP($D23,'C.1 - Rate Sheets'!B:I,2,FALSE) -> 52.14 | L23: =VLOOKUP($D23,'C.1 - Rate Sheets'!B:I,3,FALSE) -> 70.39 | M23: =VLOOKUP($D23,'C.1 - Rate Sheets'!B:I,4,FALSE) -> 83.42 | N23: =VLOOKUP($D23,'C.1 - Rate Sheets'!B:I,5,FALSE) -> 0 | Q23: 7 | S23: 7 | V23: 8 | X23: 8 | Y23: 8 | Z23: 5 | AC23: 13 | AD23: 8 | AE23: 8 | AH23: 16 | AI23: 8 | AJ23: 5 | AM23: 13 | AN23: 8 | AO23: 4 | AS23: 32 | AT23: 22 | AU23: 15 | AV23: 0 | AW23: 69 | AX23: 1668.48 | AY23: 1548.58 | AZ23: 1251.3 | BA23: 0 | BB23: 4468.36 | BC23: 4468.36 | BD23: Yes | BE23: 0 | BF23: 0 | BG23: 0
B24: 6 | C24: Rick Bane | D24: Crew Foreman | E24: Vendor No 6 | F24: Bane | G24: 914186609 | H24: 2018-10-07 | I24: 2018-10-13 | J24: =IF(AND(H24>='A - Contractor Summary'!$C$36,I24<='A - Contractor Summary'!$C$42),"Yes","No") -> No | K24: =VLOOKUP($D24,'C.1 - Rate Sheets'!B:I,2,FALSE) -> 61.06 | L24: =VLOOKUP($D24,'C.1 - Rate Sheets'!B:I,3,FALSE) -> 82.43 | M24: =VLOOKUP($D24,'C.1 - Rate Sheets'!B:I,4,FALSE) -> 97.7 | N24: =VLOOKUP($D24,'C.1 - Rate Sheets'!B:I,5,FALSE) -> 0 | Q24: 7 | S24: 7 | V24: 8 | X24: 8 | Y24: 8 | Z24: 5 | AC24: 13 | AD24: 8 | AE24: 8 | AH24: 16 | AI24: 8 | AJ24: 5 | AM24: 13 | AN24: 8 | AO24: 4 | AS24: 32 | AT24: 22 | AU24: 15 | AV24: 0 | AW24: 69 | AX24: 1953.92 | AY24: 1813.46 | AZ24: 1465.5 | BA24: 0 | BB24: 5232.88 | BC24: 5232.88 | BD24: Yes | BE24: 0 | BF24: 0 | BG24: 0
B25: 7 | C25: John Bailey | D25: Tree Trimmer | E25: Vendor No 6 | F25: Bane | G25: 914186609 | H25: 2018-10-07 | I25: 2018-10-13 | J25: =IF(AND(H25>='A - Contractor Summary'!$C$36,I25<='A - Contractor Summary'!$C$42),"Yes","No") -> No | K25: =VLOOKUP($D25,'C.1 - Rate Sheets'!B:I,2,FALSE) -> 52.14 | L25: =VLOOKUP($D25,'C.1 - Rate Sheets'!B:I,3,FALSE) -> 70.39 | M25: =VLOOKUP($D25,'C.1 - Rate Sheets'!B:I,4,FALSE) -> 83.42 | N25: =VLOOKUP($D25,'C.1 - Rate Sheets'!B:I,5,FALSE) -> 0 | Q25: 7 | S25: 7 | V25: 8 | X25: 8 | Y25: 8 | Z25: 5 | AC25: 13 | AD25: 8 | AE25: 8 | AH25: 16 | AI25: 8 | AJ25: 5 | AM25: 13 | AN25: 8 | AO25: 4 | AS25: =SUM(O25,T25,Y25,AD25,AI25,AN25) -> 32 | AT25: =SUM(P25,U25,Z25,AE25,AJ25,AO25) -> 22 | AU25: =SUM(Q25,V25,AA25,AF25,AK25,AP25) -> 15 | AV25: =SUM(R25,W25,AB25,AG25,AL25,AQ25) -> 0 | AW25: =SUM(AS25:AV25) -> 69 | AX25: 1668.48 | AY25: 1548.58 | AZ25: 1251.3 | BA25: 0 | BB25: 4468.36 | BC25: 4468.36 | BD25: Yes | BE25: 0 | BF25: 0 | BG25: 0
B26: 8 | C26: Paul Hahn | D26: Crew Foreman | E26: Vendor No 6 | F26: Hahn | G26: 914186598 | H26: 2018-10-07 | I26: 2018-10-13 | J26: =IF(AND(H26>='A - Contractor Summary'!$C$36,I26<='A - Contractor Summary'!$C$42),"Yes","No") -> No | K26: =VLOOKUP($D26,'C.1 - Rate Sheets'!B:I,2,FALSE) -> 61.06 | L26: =VLOOKUP($D26,'C.1 - Rate Sheets'!B:I,3,FALSE) -> 82.43 | M26: =VLOOKUP($D26,'C.1 - Rate Sheets'!B:I,4,FALSE) -> 97.7 | N26: =VLOOKUP($D26,'C.1 - Rate Sheets'!B:I,5,FALSE) -> 0 | Q26: 7 | S26: 7 | V26: 8 | X26: 8 | Y26: 8 | Z26: 5 | AC26: 13 | AD26: 8 | AE26: 8 | AH26: 16 | AI26: 8 | AJ26: 5 | AM26: 13 | AN26: 8 | AO26: 4 | AS26: 32 | AT26: 22 | AU26: 15 | AV26: 0 | AW26: 69 | AX26: 1953.92 | AY26: 1813.46 | AZ26: 1465.5 | BA26: 0 | BB26: 5232.88 | BC26: 5232.88 | BD26: Yes | BE26: 0 | BF26: 0 | BG26: 0
B27: 9 | C27: Brandon Taylor | D27: Tree Trimmer | E27: Vendor No 6 | F27: Hahn | G27: 914186598 | H27: 2018-10-07 | I27: 2018-10-13 | J27: =IF(AND(H27>='A - Contractor Summary'!$C$36,I27<='A - Contractor Summary'!$C$42),"Yes","No") -> No | K27: =VLOOKUP($D27,'C.1 - Rate Sheets'!B:I,2,FALSE) -> 52.14 | L27: =VLOOKUP($D27,'C.1 - Rate Sheets'!B:I,3,FALSE) -> 70.39 | M27: =VLOOKUP($D27,'C.1 - Rate Sheets'!B:I,4,FALSE) -> 83.42 | N27: =VLOOKUP($D27,'C.1 - Rate Sheets'!B:I,5,FALSE) -> 0 | Q27: 7 | S27: 7 | V27: 8 | X27: 8 | Y27: 8 | Z27: 5 | AC27: 13 | AD27: 8 | AE27: 8 | AH27: 16 | AI27: 8 | AJ27: 5 | AM27: 13 | AN27: 8 | AO27: 4 | AS27: 32 | AT27: 22 | AU27: 15 | AV27: 0 | AW27: 69 | AX27: 1668.48 | AY27: 1548.58 | AZ27: 1251.3 | BA27: 0 | BB27: 4468.36 | BC27: 4468.36 | BD27: Yes | BE27: 0 | BF27: 0 | BG27: 0
B28: 11 | C28: Hastings Benjamin | D28: Crew Foreman | E28: Vendor No 6 | F28: Benjamin | G28: 913994032 | H28: 2018-10-07 | I28: 2018-10-13 | J28: =IF(AND(H28>='A - Contractor Summary'!$C$36,I28<='A - Contractor Summary'!$C$42),"Yes","No") -> No | K28: =VLOOKUP($D28,'C.1 - Rate Sheets'!B:I,2,FALSE) -> 61.06 | L28: =VLOOKUP($D28,'C.1 - Rate Sheets'!B:I,3,FALSE) -> 82.43 | M28: =VLOOKUP($D28,'C.1 - Rate Sheets'!B:I,4,FALSE) -> 97.7 | N28: =VLOOKUP($D28,'C.1 - Rate Sheets'!B:I,5,FALSE) -> 0 | S28: 0 | V28: 14 | X28: 14 | Y28: 8 | Z28: 4 | AC28: 12 | AD28: 8 | AE28: 6 | AH28: 14 | AM28: 0 | AS28: 16 | AT28: 10 | AU28: 14 | AV28: 0 | AW28: 40 | AX28: 976.96 | AY28: 824.3 | AZ28: 1367.8 | BA28: 0 | BB28: 3169.06 | BC28: 3169.06 | BD28: Yes | BE28: 0 | BF28: 0 | BG28: 0
B29: 12 | C29: Bennett Kody | D29: Tree Trimmer | E29: Vendor No 6 | F29: Benjamin | G29: 913994032 | H29: 2018-10-07 | I29: 2018-10-13 | J29: =IF(AND(H29>='A - Contractor Summary'!$C$36,I29<='A - Contractor Summary'!$C$42),"Yes","No") -> No | K29: =VLOOKUP($D29,'C.1 - Rate Sheets'!B:I,2,FALSE) -> 52.14 | L29: =VLOOKUP($D29,'C.1 - Rate Sheets'!B:I,3,FALSE) -> 70.39 | M29: =VLOOKUP($D29,'C.1 - Rate Sheets'!B:I,4,FALSE) -> 83.42 | N29: =VLOOKUP($D29,'C.1 - Rate Sheets'!B:I,5,FALSE) -> 0 | S29: 0 | V29: 14 | X29: 14 | Y29: 8 | Z29: 4 | AC29: 12 | AD29: 8 | AE29: 6 | AH29: 14 | AM29: 0 | AS29: 16 | AT29: 10 | AU29: 14 | AV29: 0 | AW29: 40 | AX29: 834.24 | AY29: 703.9 | AZ29: 1167.88 | BA29: 0 | BB29: 2706.02 | BC29: 2706.02 | BD29: Yes | BE29: 0 | BF29: 0 | BG29: 0
O30: =SUM(O19:O29) -> 0 | P30: 0 | Q30: 63 | R30: 0 | S30: 63 | T30: 0 | U30: 0 | V30: 100 | W30: 0 | X30: 100 | Y30: 88 | Z30: 53 | AA30: 0 | AB30: 0 | AC30: 141 | AD30: 88 | AE30: 84 | AF30: 0 | AG30: 0 | AH30: 172 | AI30: 72 | AJ30: 45 | AK30: 0 | AL30: 0 | AM30: 117 | AN30: 72 | AO30: 36 | AP30: 0 | AQ30: 0 | AR30: 0 | AS30: 320 | AT30: 218 | AU30: 163 | AV30: 0 | AW30: 701 | AX30: 18846.4 | AY30: 17338.94 | AZ30: 15312.08 | BA30: 0 | BB30: =IFERROR(SUM(BB19:BB29),0) -> 51497.42 | BC30: =SUM(BC19:BC29) -> 51497.42 | BH30: =BE30-BF30-BG30 -> 0 | BI30: check (b)
O31: Total # of Crew | S31: =COUNTIF(S19:S29,">0") -> 9 | T31: Total # of Crew | X31: =COUNTIF(X19:X29,">0") -> 11 | Y31: Total # of Crew | AC31: =COUNTIF(AC19:AC29,">0") -> 11 | AD31: Total # of Crew | AH31: =COUNTIF(AH19:AH29,">0") -> 11 | AI31: Total # of Crew | AM31: =COUNTIF(AM19:AM29,">0") -> 9 | AN31: Total # of Crew | AR31: =COUNTIF(AR19:AR29,">0") -> 0 | AS31: # of time charges | AW31: =SUM(S31,X31,AC31,AH31,AM31) -> 51
B39: Tickmark Explanation:
B41: 1
B42: 2
B43: 3
B47: 1 | C47: 913176206 doesn't match time sheet
B48: 2 | C48: 913221020 doesn't charge for 16 hours of Foreman DT ($1454.40)
B49: 3 | C49: 913222888 Overcharged 4 hours of OT for both foreman and tree trimmer
B50: 4 | C50: 913222891 Overcharged 4 hours of OT for both foreman and tree trimmer
B51: 5 | C51: 913225341 Overcharged 4 hours of OT for both foreman
B52: 6 | C52: 913243903 timesheet shows 55 hours, charged 60
B53: 7 | C53: 913317486 Overcharged 4 hours of OT for both foreman
B54: 8 | C54: 913333196 credit to 913281769
B55: 9 | C55: 913333201 correction to 913281761

Sheet C.3 - Asset by Company
A1: Asset Tag | B1: Position | C1: Name

Sheet C.4 - Timesheets - Equipment
B2: Equipment Charges - Time Card
B4: Test Plan: | C4: Obtain the time cards. (A) Populate the equipment names and types (if provided). Find additional information regarding individual equipment charge from related invoice. (B) Enter hours worked from time card(s). (C) Confirm that the dates per the time cards fall between dates provided per 'A - Contractor Summary' tab. (D) Identify any equipment charges to be reviewed. (E) For charges which required further review, document review (include why it was determined to be allowed/disallowed via a tickmark).
B10: Rx | C10: Recalculated.
B11: a | C11: Provided from tab 'C.1 - Rate Sheets'.
B12: b | C12: Check figure should equal $0. Cell will appear yellow if discrepancies are noted.
C14: A | H14: Rx | J14: C | K14: a | L14: B | Q14: Rx | T14: D | U14: E
B15: # | C15: Equipment Name | D15: Equipment ID | E15: Company | F15: Crew# | G15: Invoice | H15: Start Date | I15: End Date | J15: Dates Worked Reasonable? | K15: Rates | L15: Week Ending | M15: Week Ending | N15: Week Ending | O15: Week Ending | P15: Week Ending | Q15: Total Hours | R15: Total Equipment $ | S15: Allowable Charges | T15: To Be Reviewed | U15: Reviewed - Allowable Charge | V15: Reviewed - Unallowable Charge | W15: Tickmarks
L16: 2019-09-07
L17: Hours | M17: Hours | N17: Hours | O17: Hours | P17: Hours
B18: 1 | C18: Aerial Lift 40'- 4WD | D18: 3300101 | E18: Vendor No. 6 | F18: Davis | G18: 914186602 | H18: 2019-09-01 | I18: 2019-09-07 | J18: =IF(AND(H18>='A - Contractor Summary'!$C$36,I18<='A - Contractor Summary'!$C$42),"Yes","No") -> No | K18: =VLOOKUP($C18,'C.1 - Rate Sheets'!H:I,2,FALSE) -> 24.99 | L18: 29 | Q18: =SUM(L18:P18) -> 29 | R18: =Q18*K18 -> 724.71 | S18: =R18-T18 -> 724.71 | T18: 0 | U18: 0 | V18: 0
B19: 2 | C19: Pick Up | D19: 2900304 | E19: Vendor No. 6 | F19: Ash | G19: 914186615 | H19: 2019-09-01 | I19: 2019-09-07 | J19: =IF(AND(H19>='A - Contractor Summary'!$C$36,I19<='A - Contractor Summary'!$C$42),"Yes","No") -> No | K19: =VLOOKUP($C19,'C.1 - Rate Sheets'!H:I,2,FALSE) -> 13.19 | L19: 29 | Q19: =SUM(L19:P19) -> 29 | R19: 382.51 | S19: 382.51 | T19: 0 | U19: 0 | V19: 0
B20: 3 | C20: Aerial Lift >60'- 2WD | D20: 3002813 | E20: Vendor No. 6 | F20: Jarrett | G20: 914186619 | H20: 2019-09-01 | I20: 2019-09-07 | J20: =IF(AND(H20>='A - Contractor Summary'!$C$36,I20<='A - Contractor Summary'!$C$42),"Yes","No") -> No | K20: =VLOOKUP($C20,'C.1 - Rate Sheets'!H:I,2,FALSE) -> 30.1 | L20: 29 | Q20: 29 | R20: =Q20*K20 -> 872.9 | S20: =R20-T20 -> 872.9 | T20: 0 | U20: 0 | V20: 0
B21: 4 | C21: Aerial Lift >60'- 2WD | D21: 3002627 | E21: Vendor No. 6 | F21: Bane | G21: 914186609 | H21: 2019-09-01 | I21: 2019-09-07 | J21: =IF(AND(H21>='A - Contractor Summary'!$C$36,I21<='A - Contractor Summary'!$C$42),"Yes","No") -> No | K21: =VLOOKUP($C21,'C.1 - Rate Sheets'!H:I,2,FALSE) -> 30.1 | L21: 29 | Q21: 29 | R21: 872.9 | S21: 872.9 | T21: 0 | U21: 0 | V21: 0
B22: 5 | C22: Aerial Lift >60'- 2WD | D22: 5001251 | E22: Vendor No. 6 | F22: Hahn | G22: 914186598 | H22: 2019-09-01 | I22: 2019-09-07 | J22: =IF(AND(H22>='A - Contractor Summary'!$C$36,I22<='A - Contractor Summary'!$C$42),"Yes","No") -> No | K22: =VLOOKUP($C22,'C.1 - Rate Sheets'!H:I,2,FALSE) -> 30.1 | L22: 29 | Q22: 29 | R22: 872.9 | S22: 872.9 | T22: 0 | U22: 0 | V22: 0
B23: 6 | C23: Manual Crew Truck | D23: 1501054 | E23: Vendor No. 6 | F23: Hahn | G23: 914186598 | H23: 2019-09-01 | I23: 2019-09-07 | J23: =IF(AND(H23>='A - Contractor Summary'!$C$36,I23<='A - Contractor Summary'!$C$42),"Yes","No") -> No | K23: =VLOOKUP($C23,'C.1 - Rate Sheets'!H:I,2,FALSE) -> 15.05 | L23: 29 | Q23: 29 | R23: 436.45 | S23: 436.45 | T23: 0 | U23: 0 | V23: 0
B24: 8 | C24: Aerial Lift with Tools | D24: 3002243 | E24: Vendor No. 6 | F24: Hastings | G24: 913994032 | H24: 2019-09-01 | I24: 2019-09-07 | J24: =IF(AND(H24>='A - Contractor Summary'!$C$36,I24<='A - Contractor Summary'!$C$42),"Yes","No") -> No | K24: =VLOOKUP($C24,'C.1 - Rate Sheets'!H:I,2,FALSE) -> 30.1 | L24: 40 | Q24: 40 | R24: 1204 | S24: 1204 | T24: 0 | U24: 0 | V24: 0
B25: 9 | C25: Chipper | D25: 6602481 | E25: Vendor No. 6 | F25: Hastings | G25: 913994032 | H25: 2019-09-01 | I25: 2019-09-07 | J25: =IF(AND(H25>='A - Contractor Summary'!$C$36,I25<='A - Contractor Summary'!$C$42),"Yes","No") -> No | K25: =VLOOKUP($C25,'C.1 - Rate Sheets'!H:I,2,FALSE) -> 7.25 | L25: 40 | Q25: 40 | R25: 290 | S25: 290 | T25: 0 | U25: 0 | V25: 0
L26: =SUM(L18:L25) -> 254 | M26: 0 | N26: 0 | O26: 0 | P26: 0 | Q26: 254 | R26: =IFERROR(SUM(R18:R25),0) -> 5656.37 | S26: =IFERROR(SUM(S18:S25),0) -> 5656.37 | T26: =SUM(T18:T25) -> 0 | U26: =SUM(U18:U25) -> 0 | V26: =SUM(V18:V25) -> 0 | W26: =T26-U26-V26 -> 0 | X26: check (b)
R28: =SUBTOTAL(9,R18:R26) -> 11312.74
B30: Tickmark Explanation:

Sheet D - Lodging
B2: Lodging Charges
B4: Test Plan: (A) Obtain support of individual charges. (B) Enter Yes/No if receipt is itemized (C) Enter Yes/No if proof of payment has been provided. (D) Ensure charges fall between the dates the vendor was mobilized and the date they arrived. (E) Ensure charges are prior to the date the vendor arrived home or was released to another utility. (F) Ensure the location of stay was reasonable (G) Determine the amount(s) to be reviewed, allowed and/or disallowed. (H) For charges which required further review, document review (include why it was determined to be allowed/disallowed via a tickmark).
B8: Rx | C8: Recalculated.
B9: a | C9: Check figure should equal $0. Cell will appear yellow if discrepancies are noted.
C11: A | M11: Rx | N11: B | O11: C | P11: D | Q11: E | R11: F | S11: G | V11: H
B12: Support Reviewed | P12: Conclusion
B13: # | C13: Type of Support | D13: Support Identifier | E13: Crew | F13: Company | G13: Check In Date | H13: Person | I13: Hotel Name | J13: Location | K13: # of Nights | L13: Total Invoice | M13: $ / Night | N13: Itemized Receipt | O13: Proof of Payment | P13: Reasonable based on Mobilization date(s) | Q13: Reasonable based on Demobilization date(s) | R13: Location Reasonable | S13: Conclusion | T13: $ Allowable Charge | U13: $ To Be Reviewed | V13: Reviewed - Allowable $ | W13: Reviewed - Unallowable $ | X13: Tickmark
B14: 1 | M14: =L14/K14 ->  | P14: =IF(AND(G14>='A - Contractor Summary'!$C$36,G14<='A - Contractor Summary'!$C$38),"Yes",IF(G14<'A - Contractor Summary'!$C$36,"No",IF(G14>'A - Contractor Summary'!$C$39,"",""))) -> No | Q14: =IF(OR(P14="Yes",P14="No")*AND(G14<'A - Contractor Summary'!$C$39),"",IF(AND(G14>'A - Contractor Summary'!$C$39,G14<'A - Contractor Summary'!$C$42),"Yes",IF(G14>'A - Contractor Summary'!$C$42,"No","Needs Review"))) ->  | S14: =IF(AND(R14="YES",O14="Yes",N14="Yes")*OR(P14="Yes",Q14="Yes"),"Yes",IF(OR(N14="No",O14="No",P14="No",Q14="No",R14="No"),"No","Needs Review")) -> No | T14: =IF(S14="Yes",L14,0) -> 0 | U14: =IF(S14="Needs Review",L14,0) -> 0
B15: 2 | P15: =IF(AND(G15>='A - Contractor Summary'!$C$36,G15<='A - Contractor Summary'!$C$38),"Yes",IF(G15<'A - Contractor Summary'!$C$36,"No",IF(G15>'A - Contractor Summary'!$C$39,"",""))) -> No | Q15: =IF(OR(P15="Yes",P15="No")*AND(G15<'A - Contractor Summary'!$C$39),"",IF(AND(G15>'A - Contractor Summary'!$C$39,G15<'A - Contractor Summary'!$C$42),"Yes",IF(G15>'A - Contractor Summary'!$C$42,"No","Needs Review"))) ->  | S15: No | T15: 0 | U15: 0
B16: 3 | P16: =IF(AND(G16>='A - Contractor Summary'!$C$36,G16<='A - Contractor Summary'!$C$38),"Yes",IF(G16<'A - Contractor Summary'!$C$36,"No",IF(G16>'A - Contractor Summary'!$C$39,"",""))) -> No | Q16: =IF(OR(P16="Yes",P16="No")*AND(G16<'A - Contractor Summary'!$C$39),"",IF(AND(G16>'A - Contractor Summary'!$C$39,G16<'A - Contractor Summary'!$C$42),"Yes",IF(G16>'A - Contractor Summary'!$C$42,"No","Needs Review"))) ->  | S16: No | T16: 0 | U16: 0
B17: 4 | P17: =IF(AND(G17>='A - Contractor Summary'!$C$36,G17<='A - Contractor Summary'!$C$38),"Yes",IF(G17<'A - Contractor Summary'!$C$36,"No",IF(G17>'A - Contractor Summary'!$C$39,"",""))) -> No | Q17: =IF(OR(P17="Yes",P17="No")*AND(G17<'A - Contractor Summary'!$C$39),"",IF(AND(G17>'A - Contractor Summary'!$C$39,G17<'A - Contractor Summary'!$C$42),"Yes",IF(G17>'A - Contractor Summary'!$C$42,"No","Needs Review"))) ->  | S17: No | T17: 0 | U17: 0
B18: 5 | P18: =IF(AND(G18>='A - Contractor Summary'!$C$36,G18<='A - Contractor Summary'!$C$38),"Yes",IF(G18<'A - Contractor Summary'!$C$36,"No",IF(G18>'A - Contractor Summary'!$C$39,"",""))) -> No | Q18: =IF(OR(P18="Yes",P18="No")*AND(G18<'A - Contractor Summary'!$C$39),"",IF(AND(G18>'A - Contractor Summary'!$C$39,G18<'A - Contractor Summary'!$C$42),"Yes",IF(G18>'A - Contractor Summary'!$C$42,"No","Needs Review"))) ->  | S18: No | T18: 0 | U18: 0
B19: 6 | P19: =IF(AND(G19>='A - Contractor Summary'!$C$36,G19<='A - Contractor Summary'!$C$38),"Yes",IF(G19<'A - Contractor Summary'!$C$36,"No",IF(G19>'A - Contractor Summary'!$C$39,"",""))) -> No | Q19: =IF(OR(P19="Yes",P19="No")*AND(G19<'A - Contractor Summary'!$C$39),"",IF(AND(G19>'A - Contractor Summary'!$C$39,G19<'A - Contractor Summary'!$C$42),"Yes",IF(G19>'A - Contractor Summary'!$C$42,"No","Needs Review"))) ->  | S19: No | T19: 0 | U19: 0
B20: 7 | P20: =IF(AND(G20>='A - Contractor Summary'!$C$36,G20<='A - Contractor Summary'!$C$38),"Yes",IF(G20<'A - Contractor Summary'!$C$36,"No",IF(G20>'A - Contractor Summary'!$C$39,"",""))) -> No | Q20: =IF(OR(P20="Yes",P20="No")*AND(G20<'A - Contractor Summary'!$C$39),"",IF(AND(G20>'A - Contractor Summary'!$C$39,G20<'A - Contractor Summary'!$C$42),"Yes",IF(G20>'A - Contractor Summary'!$C$42,"No","Needs Review"))) ->  | S20: No | T20: 0 | U20: 0
B21: 8 | P21: =IF(AND(G21>='A - Contractor Summary'!$C$36,G21<='A - Contractor Summary'!$C$38),"Yes",IF(G21<'A - Contractor Summary'!$C$36,"No",IF(G21>'A - Contractor Summary'!$C$39,"",""))) -> No | Q21: =IF(OR(P21="Yes",P21="No")*AND(G21<'A - Contractor Summary'!$C$39),"",IF(AND(G21>'A - Contractor Summary'!$C$39,G21<'A - Contractor Summary'!$C$42),"Yes",IF(G21>'A - Contractor Summary'!$C$42,"No","Needs Review"))) ->  | S21: No | T21: 0 | U21: 0
B22: 9 | P22: =IF(AND(G22>='A - Contractor Summary'!$C$36,G22<='A - Contractor Summary'!$C$38),"Yes",IF(G22<'A - Contractor Summary'!$C$36,"No",IF(G22>'A - Contractor Summary'!$C$39,"",""))) -> No | Q22: =IF(OR(P22="Yes",P22="No")*AND(G22<'A - Contractor Summary'!$C$39),"",IF(AND(G22>'A - Contractor Summary'!$C$39,G22<'A - Contractor Summary'!$C$42),"Yes",IF(G22>'A - Contractor Summary'!$C$42,"No","Needs Review"))) ->  | S22: No | T22: 0 | U22: 0
B23: 10 | P23: =IF(AND(G23>='A - Contractor Summary'!$C$36,G23<='A - Contractor Summary'!$C$38),"Yes",IF(G23<'A - Contractor Summary'!$C$36,"No",IF(G23>'A - Contractor Summary'!$C$39,"",""))) -> No | Q23: =IF(OR(P23="Yes",P23="No")*AND(G23<'A - Contractor Summary'!$C$39),"",IF(AND(G23>'A - Contractor Summary'!$C$39,G23<'A - Contractor Summary'!$C$42),"Yes",IF(G23>'A - Contractor Summary'!$C$42,"No","Needs Review"))) ->  | S23: No | T23: 0 | U23: 0
B24: 11 | P24: =IF(AND(G24>='A - Contractor Summary'!$C$36,G24<='A - Contractor Summary'!$C$38),"Yes",IF(G24<'A - Contractor Summary'!$C$36,"No",IF(G24>'A - Contractor Summary'!$C$39,"",""))) -> No | Q24: =IF(OR(P24="Yes",P24="No")*AND(G24<'A - Contractor Summary'!$C$39),"",IF(AND(G24>'A - Contractor Summary'!$C$39,G24<'A - Contractor Summary'!$C$42),"Yes",IF(G24>'A - Contractor Summary'!$C$42,"No","Needs Review"))) ->  | S24: No | T24: 0 | U24: 0
B25: 12 | P25: =IF(AND(G25>='A - Contractor Summary'!$C$36,G25<='A - Contractor Summary'!$C$38),"Yes",IF(G25<'A - Contractor Summary'!$C$36,"No",IF(G25>'A - Contractor Summary'!$C$39,"",""))) -> No | Q25: =IF(OR(P25="Yes",P25="No")*AND(G25<'A - Contractor Summary'!$C$39),"",IF(AND(G25>'A - Contractor Summary'!$C$39,G25<'A - Contractor Summary'!$C$42),"Yes",IF(G25>'A - Contractor Summary'!$C$42,"No","Needs Review"))) ->  | S25: No | T25: 0 | U25: 0
B26: 13 | P26: =IF(AND(G26>='A - Contractor Summary'!$C$36,G26<='A - Contractor Summary'!$C$38),"Yes",IF(G26<'A - Contractor Summary'!$C$36,"No",IF(G26>'A - Contractor Summary'!$C$39,"",""))) -> No | Q26: =IF(OR(P26="Yes",P26="No")*AND(G26<'A - Contractor Summary'!$C$39),"",IF(AND(G26>'A - Contractor Summary'!$C$39,G26<'A - Contractor Summary'!$C$42),"Yes",IF(G26>'A - Contractor Summary'!$C$42,"No","Needs Review"))) ->  | S26: No | T26: 0 | U26: 0
B27: 14 | P27: =IF(AND(G27>='A - Contractor Summary'!$C$36,G27<='A - Contractor Summary'!$C$38),"Yes",IF(G27<'A - Contractor Summary'!$C$36,"No",IF(G27>'A - Contractor Summary'!$C$39,"",""))) -> No | Q27: =IF(OR(P27="Yes",P27="No")*AND(G27<'A - Contractor Summary'!$C$39),"",IF(AND(G27>'A - Contractor Summary'!$C$39,G27<'A - Contractor Summary'!$C$42),"Yes",IF(G27>'A - Contractor Summary'!$C$42,"No","Needs Review"))) ->  | S27: No | T27: 0 | U27: 0
B28: 15 | P28: =IF(AND(G28>='A - Contractor Summary'!$C$36,G28<='A - Contractor Summary'!$C$38),"Yes",IF(G28<'A - Contractor Summary'!$C$36,"No",IF(G28>'A - Contractor Summary'!$C$39,"",""))) -> No | Q28: =IF(OR(P28="Yes",P28="No")*AND(G28<'A - Contractor Summary'!$C$39),"",IF(AND(G28>'A - Contractor Summary'!$C$39,G28<'A - Contractor Summary'!$C$42),"Yes",IF(G28>'A - Contractor Summary'!$C$42,"No","Needs Review"))) ->  | S28: No | T28: 0 | U28: 0
B29: 16 | P29: =IF(AND(G29>='A - Contractor Summary'!$C$36,G29<='A - Contractor Summary'!$C$38),"Yes",IF(G29<'A - Contractor Summary'!$C$36,"No",IF(G29>'A - Contractor Summary'!$C$39,"",""))) -> No | Q29: =IF(OR(P29="Yes",P29="No")*AND(G29<'A - Contractor Summary'!$C$39),"",IF(AND(G29>'A - Contractor Summary'!$C$39,G29<'A - Contractor Summary'!$C$42),"Yes",IF(G29>'A - Contractor Summary'!$C$42,"No","Needs Review"))) ->  | S29: No | T29: 0 | U29: 0
B30: 17 | P30: =IF(AND(G30>='A - Contractor Summary'!$C$36,G30<='A - Contractor Summary'!$C$38),"Yes",IF(G30<'A - Contractor Summary'!$C$36,"No",IF(G30>'A - Contractor Summary'!$C$39,"",""))) -> No | Q30: =IF(OR(P30="Yes",P30="No")*AND(G30<'A - Contractor Summary'!$C$39),"",IF(AND(G30>'A - Contractor Summary'!$C$39,G30<'A - Contractor Summary'!$C$42),"Yes",IF(G30>'A - Contractor Summary'!$C$42,"No","Needs Review"))) ->  | S30: No | T30: 0 | U30: 0
B31: 18 | P31: =IF(AND(G31>='A - Contractor Summary'!$C$36,G31<='A - Contractor Summary'!$C$38),"Yes",IF(G31<'A - Contractor Summary'!$C$36,"No",IF(G31>'A - Contractor Summary'!$C$39,"",""))) -> No | Q31: =IF(OR(P31="Yes",P31="No")*AND(G31<'A - Contractor Summary'!$C$39),"",IF(AND(G31>'A - Contractor Summary'!$C$39,G31<'A - Contractor Summary'!$C$42),"Yes",IF(G31>'A - Contractor Summary'!$C$42,"No","Needs Review"))) ->  | S31: No | T31: 0 | U31: 0
B32: 19 | P32: =IF(AND(G32>='A - Contractor Summary'!$C$36,G32<='A - Contractor Summary'!$C$38),"Yes",IF(G32<'A - Contractor Summary'!$C$36,"No",IF(G32>'A - Contractor Summary'!$C$39,"",""))) -> No | Q32: =IF(OR(P32="Yes",P32="No")*AND(G32<'A - Contractor Summary'!$C$39),"",IF(AND(G32>'A - Contractor Summary'!$C$39,G32<'A - Contractor Summary'!$C$42),"Yes",IF(G32>'A - Contractor Summary'!$C$42,"No","Needs Review"))) ->  | S32: No | T32: 0 | U32: 0
B33: 20 | P33: =IF(AND(G33>='A - Contractor Summary'!$C$36,G33<='A - Contractor Summary'!$C$38),"Yes",IF(G33<'A - Contractor Summary'!$C$36,"No",IF(G33>'A - Contractor Summary'!$C$39,"",""))) -> No | Q33: =IF(OR(P33="Yes",P33="No")*AND(G33<'A - Contractor Summary'!$C$39),"",IF(AND(G33>'A - Contractor Summary'!$C$39,G33<'A - Contractor Summary'!$C$42),"Yes",IF(G33>'A - Contractor Summary'!$C$42,"No","Needs Review"))) ->  | S33: No | T33: 0 | U33: 0
B34: 21 | P34: =IF(AND(G34>='A - Contractor Summary'!$C$36,G34<='A - Contractor Summary'!$C$38),"Yes",IF(G34<'A - Contractor Summary'!$C$36,"No",IF(G34>'A - Contractor Summary'!$C$39,"",""))) -> No | Q34: =IF(OR(P34="Yes",P34="No")*AND(G34<'A - Contractor Summary'!$C$39),"",IF(AND(G34>'A - Contractor Summary'!$C$39,G34<'A - Contractor Summary'!$C$42),"Yes",IF(G34>'A - Contractor Summary'!$C$42,"No","Needs Review"))) ->  | S34: No | T34: 0 | U34: 0
B35: 22 | P35: =IF(AND(G35>='A - Contractor Summary'!$C$36,G35<='A - Contractor Summary'!$C$38),"Yes",IF(G35<'A - Contractor Summary'!$C$36,"No",IF(G35>'A - Contractor Summary'!$C$39,"",""))) -> No | Q35: =IF(OR(P35="Yes",P35="No")*AND(G35<'A - Contractor Summary'!$C$39),"",IF(AND(G35>'A - Contractor Summary'!$C$39,G35<'A - Contractor Summary'!$C$42),"Yes",IF(G35>'A - Contractor Summary'!$C$42,"No","Needs Review"))) ->  | S35: No | T35: 0 | U35: 0
B36: 23 | P36: =IF(AND(G36>='A - Contractor Summary'!$C$36,G36<='A - Contractor Summary'!$C$38),"Yes",IF(G36<'A - Contractor Summary'!$C$36,"No",IF(G36>'A - Contractor Summary'!$C$39,"",""))) -> No | Q36: =IF(OR(P36="Yes",P36="No")*AND(G36<'A - Contractor Summary'!$C$39),"",IF(AND(G36>'A - Contractor Summary'!$C$39,G36<'A - Contractor Summary'!$C$42),"Yes",IF(G36>'A - Contractor Summary'!$C$42,"No","Needs Review"))) ->  | S36: No | T36: 0 | U36: 0
B37: 24 | P37: =IF(AND(G37>='A - Contractor Summary'!$C$36,G37<='A - Contractor Summary'!$C$38),"Yes",IF(G37<'A - Contractor Summary'!$C$36,"No",IF(G37>'A - Contractor Summary'!$C$39,"",""))) -> No | Q37: =IF(OR(P37="Yes",P37="No")*AND(G37<'A - Contractor Summary'!$C$39),"",IF(AND(G37>'A - Contractor Summary'!$C$39,G37<'A - Contractor Summary'!$C$42),"Yes",IF(G37>'A - Contractor Summary'!$C$42,"No","Needs Review"))) ->  | S37: No | T37: 0 | U37: 0
B38: 25 | P38: =IF(AND(G38>='A - Contractor Summary'!$C$36,G38<='A - Contractor Summary'!$C$38),"Yes",IF(G38<'A - Contractor Summary'!$C$36,"No",IF(G38>'A - Contractor Summary'!$C$39,"",""))) -> No | Q38: =IF(OR(P38="Yes",P38="No")*AND(G38<'A - Contractor Summary'!$C$39),"",IF(AND(G38>'A - Contractor Summary'!$C$39,G38<'A - Contractor Summary'!$C$42),"Yes",IF(G38>'A - Contractor Summary'!$C$42,"No","Needs Review"))) ->  | S38: No | T38: 0 | U38: 0
B39: 26 | P39: =IF(AND(G39>='A - Contractor Summary'!$C$36,G39<='A - Contractor Summary'!$C$38),"Yes",IF(G39<'A - Contractor Summary'!$C$36,"No",IF(G39>'A - Contractor Summary'!$C$39,"",""))) -> No | Q39: =IF(OR(P39="Yes",P39="No")*AND(G39<'A - Contractor Summary'!$C$39),"",IF(AND(G39>'A - Contractor Summary'!$C$39,G39<'A - Contractor Summary'!$C$42),"Yes",IF(G39>'A - Contractor Summary'!$C$42,"No","Needs Review"))) ->  | S39: No | T39: 0 | U39: 0
B40: 27 | P40: =IF(AND(G40>='A - Contractor Summary'!$C$36,G40<='A - Contractor Summary'!$C$38),"Yes",IF(G40<'A - Contractor Summary'!$C$36,"No",IF(G40>'A - Contractor Summary'!$C$39,"",""))) -> No | Q40: =IF(OR(P40="Yes",P40="No")*AND(G40<'A - Contractor Summary'!$C$39),"",IF(AND(G40>'A - Contractor Summary'!$C$39,G40<'A - Contractor Summary'!$C$42),"Yes",IF(G40>'A - Contractor Summary'!$C$42,"No","Needs Review"))) ->  | S40: No | T40: 0 | U40: 0
B41: 28 | P41: =IF(AND(G41>='A - Contractor Summary'!$C$36,G41<='A - Contractor Summary'!$C$38),"Yes",IF(G41<'A - Contractor Summary'!$C$36,"No",IF(G41>'A - Contractor Summary'!$C$39,"",""))) -> No | Q41: =IF(OR(P41="Yes",P41="No")*AND(G41<'A - Contractor Summary'!$C$39),"",IF(AND(G41>'A - Contractor Summary'!$C$39,G41<'A - Contractor Summary'!$C$42),"Yes",IF(G41>'A - Contractor Summary'!$C$42,"No","Needs Review"))) ->  | S41: No | T41: 0 | U41: 0
B42: 29 | P42: =IF(AND(G42>='A - Contractor Summary'!$C$36,G42<='A - Contractor Summary'!$C$38),"Yes",IF(G42<'A - Contractor Summary'!$C$36,"No",IF(G42>'A - Contractor Summary'!$C$39,"",""))) -> No | Q42: =IF(OR(P42="Yes",P42="No")*AND(G42<'A - Contractor Summary'!$C$39),"",IF(AND(G42>'A - Contractor Summary'!$C$39,G42<'A - Contractor Summary'!$C$42),"Yes",IF(G42>'A - Contractor Summary'!$C$42,"No","Needs Review"))) ->  | S42: No | T42: 0 | U42: 0
B43: 30 | P43: =IF(AND(G43>='A - Contractor Summary'!$C$36,G43<='A - Contractor Summary'!$C$38),"Yes",IF(G43<'A - Contractor Summary'!$C$36,"No",IF(G43>'A - Contractor Summary'!$C$39,"",""))) -> No | Q43: =IF(OR(P43="Yes",P43="No")*AND(G43<'A - Contractor Summary'!$C$39),"",IF(AND(G43>'A - Contractor Summary'!$C$39,G43<'A - Contractor Summary'!$C$42),"Yes",IF(G43>'A - Contractor Summary'!$C$42,"No","Needs Review"))) ->  | S43: No | T43: 0 | U43: 0
B44: 31 | P44: =IF(AND(G44>='A - Contractor Summary'!$C$36,G44<='A - Contractor Summary'!$C$38),"Yes",IF(G44<'A - Contractor Summary'!$C$36,"No",IF(G44>'A - Contractor Summary'!$C$39,"",""))) -> No | Q44: =IF(OR(P44="Yes",P44="No")*AND(G44<'A - Contractor Summary'!$C$39),"",IF(AND(G44>'A - Contractor Summary'!$C$39,G44<'A - Contractor Summary'!$C$42),"Yes",IF(G44>'A - Contractor Summary'!$C$42,"No","Needs Review"))) ->  | S44: No | T44: 0 | U44: 0
B45: 32 | P45: =IF(AND(G45>='A - Contractor Summary'!$C$36,G45<='A - Contractor Summary'!$C$38),"Yes",IF(G45<'A - Contractor Summary'!$C$36,"No",IF(G45>'A - Contractor Summary'!$C$39,"",""))) -> No | Q45: =IF(OR(P45="Yes",P45="No")*AND(G45<'A - Contractor Summary'!$C$39),"",IF(AND(G45>'A - Contractor Summary'!$C$39,G45<'A - Contractor Summary'!$C$42),"Yes",IF(G45>'A - Contractor Summary'!$C$42,"No","Needs Review"))) ->  | S45: No | T45: 0 | U45: 0
B46: 33 | M46: =L46/K46 ->  | P46: =IF(AND(G46>='A - Contractor Summary'!$C$36,G46<='A - Contractor Summary'!$C$38),"Yes",IF(G46<'A - Contractor Summary'!$C$36,"No",IF(G46>'A - Contractor Summary'!$C$39,"",""))) -> No | Q46: =IF(OR(P46="Yes",P46="No")*AND(G46<'A - Contractor Summary'!$C$39),"",IF(AND(G46>'A - Contractor Summary'!$C$39,G46<'A - Contractor Summary'!$C$42),"Yes",IF(G46>'A - Contractor Summary'!$C$42,"No","Needs Review"))) ->  | S46: =IF(AND(R46="YES",O46="Yes",N46="Yes")*OR(P46="Yes",Q46="Yes"),"Yes",IF(OR(N46="No",O46="No",P46="No",Q46="No",R46="No"),"No","Needs Review")) -> No | T46: =IF(S46="Yes",L46,0) -> 0 | U46: =IF(S46="Needs Review",L46,0) -> 0
B47: 34 | P47: =IF(AND(G47>='A - Contractor Summary'!$C$36,G47<='A - Contractor Summary'!$C$38),"Yes",IF(G47<'A - Contractor Summary'!$C$36,"No",IF(G47>'A - Contractor Summary'!$C$39,"",""))) -> No | Q47: =IF(OR(P47="Yes",P47="No")*AND(G47<'A - Contractor Summary'!$C$39),"",IF(AND(G47>'A - Contractor Summary'!$C$39,G47<'A - Contractor Summary'!$C$42),"Yes",IF(G47>'A - Contractor Summary'!$C$42,"No","Needs Review"))) ->  | S47: No | T47: 0 | U47: 0
B48: 35 | P48: =IF(AND(G48>='A - Contractor Summary'!$C$36,G48<='A - Contractor Summary'!$C$38),"Yes",IF(G48<'A - Contractor Summary'!$C$36,"No",IF(G48>'A - Contractor Summary'!$C$39,"",""))) -> No | Q48: =IF(OR(P48="Yes",P48="No")*AND(G48<'A - Contractor Summary'!$C$39),"",IF(AND(G48>'A - Contractor Summary'!$C$39,G48<'A - Contractor Summary'!$C$42),"Yes",IF(G48>'A - Contractor Summary'!$C$42,"No","Needs Review"))) ->  | S48: No | T48: 0 | U48: 0
B49: 36 | P49: =IF(AND(G49>='A - Contractor Summary'!$C$36,G49<='A - Contractor Summary'!$C$38),"Yes",IF(G49<'A - Contractor Summary'!$C$36,"No",IF(G49>'A - Contractor Summary'!$C$39,"",""))) -> No | Q49: =IF(OR(P49="Yes",P49="No")*AND(G49<'A - Contractor Summary'!$C$39),"",IF(AND(G49>'A - Contractor Summary'!$C$39,G49<'A - Contractor Summary'!$C$42),"Yes",IF(G49>'A - Contractor Summary'!$C$42,"No","Needs Review"))) ->  | S49: No | T49: 0 | U49: 0
B50: 37 | P50: =IF(AND(G50>='A - Contractor Summary'!$C$36,G50<='A - Contractor Summary'!$C$38),"Yes",IF(G50<'A - Contractor Summary'!$C$36,"No",IF(G50>'A - Contractor Summary'!$C$39,"",""))) -> No | Q50: =IF(OR(P50="Yes",P50="No")*AND(G50<'A - Contractor Summary'!$C$39),"",IF(AND(G50>'A - Contractor Summary'!$C$39,G50<'A - Contractor Summary'!$C$42),"Yes",IF(G50>'A - Contractor Summary'!$C$42,"No","Needs Review"))) ->  | S50: No | T50: 0 | U50: 0
B51: 38 | P51: =IF(AND(G51>='A - Contractor Summary'!$C$36,G51<='A - Contractor Summary'!$C$38),"Yes",IF(G51<'A - Contractor Summary'!$C$36,"No",IF(G51>'A - Contractor Summary'!$C$39,"",""))) -> No | Q51: =IF(OR(P51="Yes",P51="No")*AND(G51<'A - Contractor Summary'!$C$39),"",IF(AND(G51>'A - Contractor Summary'!$C$39,G51<'A - Contractor Summary'!$C$42),"Yes",IF(G51>'A - Contractor Summary'!$C$42,"No","Needs Review"))) ->  | S51: No | T51: 0 | U51: 0
B52: 39 | P52: =IF(AND(G52>='A - Contractor Summary'!$C$36,G52<='A - Contractor Summary'!$C$38),"Yes",IF(G52<'A - Contractor Summary'!$C$36,"No",IF(G52>'A - Contractor Summary'!$C$39,"",""))) -> No | Q52: =IF(OR(P52="Yes",P52="No")*AND(G52<'A - Contractor Summary'!$C$39),"",IF(AND(G52>'A - Contractor Summary'!$C$39,G52<'A - Contractor Summary'!$C$42),"Yes",IF(G52>'A - Contractor Summary'!$C$42,"No","Needs Review"))) ->  | S52: No | T52: 0 | U52: 0
B53: 40 | P53: =IF(AND(G53>='A - Contractor Summary'!$C$36,G53<='A - Contractor Summary'!$C$38),"Yes",IF(G53<'A - Contractor Summary'!$C$36,"No",IF(G53>'A - Contractor Summary'!$C$39,"",""))) -> No | Q53: =IF(OR(P53="Yes",P53="No")*AND(G53<'A - Contractor Summary'!$C$39),"",IF(AND(G53>'A - Contractor Summary'!$C$39,G53<'A - Contractor Summary'!$C$42),"Yes",IF(G53>'A - Contractor Summary'!$C$42,"No","Needs Review"))) ->  | S53: No | T53: 0 | U53: 0
B54: 41 | P54: =IF(AND(G54>='A - Contractor Summary'!$C$36,G54<='A - Contractor Summary'!$C$38),"Yes",IF(G54<'A - Contractor Summary'!$C$36,"No",IF(G54>'A - Contractor Summary'!$C$39,"",""))) -> No | Q54: =IF(OR(P54="Yes",P54="No")*AND(G54<'A - Contractor Summary'!$C$39),"",IF(AND(G54>'A - Contractor Summary'!$C$39,G54<'A - Contractor Summary'!$C$42),"Yes",IF(G54>'A - Contractor Summary'!$C$42,"No","Needs Review"))) ->  | S54: No | T54: 0 | U54: 0
B55: 42 | P55: =IF(AND(G55>='A - Contractor Summary'!$C$36,G55<='A - Contractor Summary'!$C$38),"Yes",IF(G55<'A - Contractor Summary'!$C$36,"No",IF(G55>'A - Contractor Summary'!$C$39,"",""))) -> No | Q55: =IF(OR(P55="Yes",P55="No")*AND(G55<'A - Contractor Summary'!$C$39),"",IF(AND(G55>'A - Contractor Summary'!$C$39,G55<'A - Contractor Summary'!$C$42),"Yes",IF(G55>'A - Contractor Summary'!$C$42,"No","Needs Review"))) ->  | S55: No | T55: 0 | U55: 0
B56: 43 | P56: =IF(AND(G56>='A - Contractor Summary'!$C$36,G56<='A - Contractor Summary'!$C$38),"Yes",IF(G56<'A - Contractor Summary'!$C$36,"No",IF(G56>'A - Contractor Summary'!$C$39,"",""))) -> No | Q56: =IF(OR(P56="Yes",P56="No")*AND(G56<'A - Contractor Summary'!$C$39),"",IF(AND(G56>'A - Contractor Summary'!$C$39,G56<'A - Contractor Summary'!$C$42),"Yes",IF(G56>'A - Contractor Summary'!$C$42,"No","Needs Review"))) ->  | S56: No | T56: 0 | U56: 0
B57: 44 | P57: =IF(AND(G57>='A - Contractor Summary'!$C$36,G57<='A - Contractor Summary'!$C$38),"Yes",IF(G57<'A - Contractor Summary'!$C$36,"No",IF(G57>'A - Contractor Summary'!$C$39,"",""))) -> No | Q57: =IF(OR(P57="Yes",P57="No")*AND(G57<'A - Contractor Summary'!$C$39),"",IF(AND(G57>'A - Contractor Summary'!$C$39,G57<'A - Contractor Summary'!$C$42),"Yes",IF(G57>'A - Contractor Summary'!$C$42,"No","Needs Review"))) ->  | S57: No | T57: 0 | U57: 0
B58: 45 | P58: =IF(AND(G58>='A - Contractor Summary'!$C$36,G58<='A - Contractor Summary'!$C$38),"Yes",IF(G58<'A - Contractor Summary'!$C$36,"No",IF(G58>'A - Contractor Summary'!$C$39,"",""))) -> No | Q58: =IF(OR(P58="Yes",P58="No")*AND(G58<'A - Contractor Summary'!$C$39),"",IF(AND(G58>'A - Contractor Summary'!$C$39,G58<'A - Contractor Summary'!$C$42),"Yes",IF(G58>'A - Contractor Summary'!$C$42,"No","Needs Review"))) ->  | S58: No | T58: 0 | U58: 0
B59: 46 | P59: =IF(AND(G59>='A - Contractor Summary'!$C$36,G59<='A - Contractor Summary'!$C$38),"Yes",IF(G59<'A - Contractor Summary'!$C$36,"No",IF(G59>'A - Contractor Summary'!$C$39,"",""))) -> No | Q59: =IF(OR(P59="Yes",P59="No")*AND(G59<'A - Contractor Summary'!$C$39),"",IF(AND(G59>'A - Contractor Summary'!$C$39,G59<'A - Contractor Summary'!$C$42),"Yes",IF(G59>'A - Contractor Summary'!$C$42,"No","Needs Review"))) ->  | S59: No | T59: 0 | U59: 0
B60: 47 | P60: =IF(AND(G60>='A - Contractor Summary'!$C$36,G60<='A - Contractor Summary'!$C$38),"Yes",IF(G60<'A - Contractor Summary'!$C$36,"No",IF(G60>'A - Contractor Summary'!$C$39,"",""))) -> No | Q60: =IF(OR(P60="Yes",P60="No")*AND(G60<'A - Contractor Summary'!$C$39),"",IF(AND(G60>'A - Contractor Summary'!$C$39,G60<'A - Contractor Summary'!$C$42),"Yes",IF(G60>'A - Contractor Summary'!$C$42,"No","Needs Review"))) ->  | S60: No | T60: 0 | U60: 0
B61: 48 | P61: =IF(AND(G61>='A - Contractor Summary'!$C$36,G61<='A - Contractor Summary'!$C$38),"Yes",IF(G61<'A - Contractor Summary'!$C$36,"No",IF(G61>'A - Contractor Summary'!$C$39,"",""))) -> No | Q61: =IF(OR(P61="Yes",P61="No")*AND(G61<'A - Contractor Summary'!$C$39),"",IF(AND(G61>'A - Contractor Summary'!$C$39,G61<'A - Contractor Summary'!$C$42),"Yes",IF(G61>'A - Contractor Summary'!$C$42,"No","Needs Review"))) ->  | S61: No | T61: 0 | U61: 0
B62: 49 | P62: =IF(AND(G62>='A - Contractor Summary'!$C$36,G62<='A - Contractor Summary'!$C$38),"Yes",IF(G62<'A - Contractor Summary'!$C$36,"No",IF(G62>'A - Contractor Summary'!$C$39,"",""))) -> No | Q62: =IF(OR(P62="Yes",P62="No")*AND(G62<'A - Contractor Summary'!$C$39),"",IF(AND(G62>'A - Contractor Summary'!$C$39,G62<'A - Contractor Summary'!$C$42),"Yes",IF(G62>'A - Contractor Summary'!$C$42,"No","Needs Review"))) ->  | S62: No | T62: 0 | U62: 0
B63: 50 | P63: =IF(AND(G63>='A - Contractor Summary'!$C$36,G63<='A - Contractor Summary'!$C$38),"Yes",IF(G63<'A - Contractor Summary'!$C$36,"No",IF(G63>'A - Contractor Summary'!$C$39,"",""))) -> No | Q63: =IF(OR(P63="Yes",P63="No")*AND(G63<'A - Contractor Summary'!$C$39),"",IF(AND(G63>'A - Contractor Summary'!$C$39,G63<'A - Contractor Summary'!$C$42),"Yes",IF(G63>'A - Contractor Summary'!$C$42,"No","Needs Review"))) ->  | S63: No | T63: 0 | U63: 0
B64: 51 | P64: =IF(AND(G64>='A - Contractor Summary'!$C$36,G64<='A - Contractor Summary'!$C$38),"Yes",IF(G64<'A - Contractor Summary'!$C$36,"No",IF(G64>'A - Contractor Summary'!$C$39,"",""))) -> No | Q64: =IF(OR(P64="Yes",P64="No")*AND(G64<'A - Contractor Summary'!$C$39),"",IF(AND(G64>'A - Contractor Summary'!$C$39,G64<'A - Contractor Summary'!$C$42),"Yes",IF(G64>'A - Contractor Summary'!$C$42,"No","Needs Review"))) ->  | S64: No | T64: 0 | U64: 0
B65: 52 | P65: =IF(AND(G65>='A - Contractor Summary'!$C$36,G65<='A - Contractor Summary'!$C$38),"Yes",IF(G65<'A - Contractor Summary'!$C$36,"No",IF(G65>'A - Contractor Summary'!$C$39,"",""))) -> No | Q65: =IF(OR(P65="Yes",P65="No")*AND(G65<'A - Contractor Summary'!$C$39),"",IF(AND(G65>'A - Contractor Summary'!$C$39,G65<'A - Contractor Summary'!$C$42),"Yes",IF(G65>'A - Contractor Summary'!$C$42,"No","Needs Review"))) ->  | S65: No | T65: 0 | U65: 0
B66: 53 | P66: =IF(AND(G66>='A - Contractor Summary'!$C$36,G66<='A - Contractor Summary'!$C$38),"Yes",IF(G66<'A - Contractor Summary'!$C$36,"No",IF(G66>'A - Contractor Summary'!$C$39,"",""))) -> No | Q66: =IF(OR(P66="Yes",P66="No")*AND(G66<'A - Contractor Summary'!$C$39),"",IF(AND(G66>'A - Contractor Summary'!$C$39,G66<'A - Contractor Summary'!$C$42),"Yes",IF(G66>'A - Contractor Summary'!$C$42,"No","Needs Review"))) ->  | S66: No | T66: 0 | U66: 0
B67: 54 | P67: =IF(AND(G67>='A - Contractor Summary'!$C$36,G67<='A - Contractor Summary'!$C$38),"Yes",IF(G67<'A - Contractor Summary'!$C$36,"No",IF(G67>'A - Contractor Summary'!$C$39,"",""))) -> No | Q67: =IF(OR(P67="Yes",P67="No")*AND(G67<'A - Contractor Summary'!$C$39),"",IF(AND(G67>'A - Contractor Summary'!$C$39,G67<'A - Contractor Summary'!$C$42),"Yes",IF(G67>'A - Contractor Summary'!$C$42,"No","Needs Review"))) ->  | S67: No | T67: 0 | U67: 0
B68: 55 | P68: =IF(AND(G68>='A - Contractor Summary'!$C$36,G68<='A - Contractor Summary'!$C$38),"Yes",IF(G68<'A - Contractor Summary'!$C$36,"No",IF(G68>'A - Contractor Summary'!$C$39,"",""))) -> No | Q68: =IF(OR(P68="Yes",P68="No")*AND(G68<'A - Contractor Summary'!$C$39),"",IF(AND(G68>'A - Contractor Summary'!$C$39,G68<'A - Contractor Summary'!$C$42),"Yes",IF(G68>'A - Contractor Summary'!$C$42,"No","Needs Review"))) ->  | S68: No | T68: 0 | U68: 0
B69: 56 | P69: =IF(AND(G69>='A - Contractor Summary'!$C$36,G69<='A - Contractor Summary'!$C$38),"Yes",IF(G69<'A - Contractor Summary'!$C$36,"No",IF(G69>'A - Contractor Summary'!$C$39,"",""))) -> No | Q69: =IF(OR(P69="Yes",P69="No")*AND(G69<'A - Contractor Summary'!$C$39),"",IF(AND(G69>'A - Contractor Summary'!$C$39,G69<'A - Contractor Summary'!$C$42),"Yes",IF(G69>'A - Contractor Summary'!$C$42,"No","Needs Review"))) ->  | S69: No | T69: 0 | U69: 0
B70: 57 | P70: =IF(AND(G70>='A - Contractor Summary'!$C$36,G70<='A - Contractor Summary'!$C$38),"Yes",IF(G70<'A - Contractor Summary'!$C$36,"No",IF(G70>'A - Contractor Summary'!$C$39,"",""))) -> No | Q70: =IF(OR(P70="Yes",P70="No")*AND(G70<'A - Contractor Summary'!$C$39),"",IF(AND(G70>'A - Contractor Summary'!$C$39,G70<'A - Contractor Summary'!$C$42),"Yes",IF(G70>'A - Contractor Summary'!$C$42,"No","Needs Review"))) ->  | S70: No | T70: 0 | U70: 0
B71: 58 | P71: =IF(AND(G71>='A - Contractor Summary'!$C$36,G71<='A - Contractor Summary'!$C$38),"Yes",IF(G71<'A - Contractor Summary'!$C$36,"No",IF(G71>'A - Contractor Summary'!$C$39,"",""))) -> No | Q71: =IF(OR(P71="Yes",P71="No")*AND(G71<'A - Contractor Summary'!$C$39),"",IF(AND(G71>'A - Contractor Summary'!$C$39,G71<'A - Contractor Summary'!$C$42),"Yes",IF(G71>'A - Contractor Summary'!$C$42,"No","Needs Review"))) ->  | S71: No | T71: 0 | U71: 0
B72: 59 | P72: =IF(AND(G72>='A - Contractor Summary'!$C$36,G72<='A - Contractor Summary'!$C$38),"Yes",IF(G72<'A - Contractor Summary'!$C$36,"No",IF(G72>'A - Contractor Summary'!$C$39,"",""))) -> No | Q72: =IF(OR(P72="Yes",P72="No")*AND(G72<'A - Contractor Summary'!$C$39),"",IF(AND(G72>'A - Contractor Summary'!$C$39,G72<'A - Contractor Summary'!$C$42),"Yes",IF(G72>'A - Contractor Summary'!$C$42,"No","Needs Review"))) ->  | S72: No | T72: 0 | U72: 0
B73: 60 | P73: =IF(AND(G73>='A - Contractor Summary'!$C$36,G73<='A - Contractor Summary'!$C$38),"Yes",IF(G73<'A - Contractor Summary'!$C$36,"No",IF(G73>'A - Contractor Summary'!$C$39,"",""))) -> No | Q73: =IF(OR(P73="Yes",P73="No")*AND(G73<'A - Contractor Summary'!$C$39),"",IF(AND(G73>'A - Contractor Summary'!$C$39,G73<'A - Contractor Summary'!$C$42),"Yes",IF(G73>'A - Contractor Summary'!$C$42,"No","Needs Review"))) ->  | S73: No | T73: 0 | U73: 0
B74: 61 | P74: =IF(AND(G74>='A - Contractor Summary'!$C$36,G74<='A - Contractor Summary'!$C$38),"Yes",IF(G74<'A - Contractor Summary'!$C$36,"No",IF(G74>'A - Contractor Summary'!$C$39,"",""))) -> No | Q74: =IF(OR(P74="Yes",P74="No")*AND(G74<'A - Contractor Summary'!$C$39),"",IF(AND(G74>'A - Contractor Summary'!$C$39,G74<'A - Contractor Summary'!$C$42),"Yes",IF(G74>'A - Contractor Summary'!$C$42,"No","Needs Review"))) ->  | S74: No | T74: 0 | U74: 0
B75: 62 | P75: =IF(AND(G75>='A - Contractor Summary'!$C$36,G75<='A - Contractor Summary'!$C$38),"Yes",IF(G75<'A - Contractor Summary'!$C$36,"No",IF(G75>'A - Contractor Summary'!$C$39,"",""))) -> No | Q75: =IF(OR(P75="Yes",P75="No")*AND(G75<'A - Contractor Summary'!$C$39),"",IF(AND(G75>'A - Contractor Summary'!$C$39,G75<'A - Contractor Summary'!$C$42),"Yes",IF(G75>'A - Contractor Summary'!$C$42,"No","Needs Review"))) ->  | S75: No | T75: 0 | U75: 0
B76: 63 | P76: =IF(AND(G76>='A - Contractor Summary'!$C$36,G76<='A - Contractor Summary'!$C$38),"Yes",IF(G76<'A - Contractor Summary'!$C$36,"No",IF(G76>'A - Contractor Summary'!$C$39,"",""))) -> No | Q76: =IF(OR(P76="Yes",P76="No")*AND(G76<'A - Contractor Summary'!$C$39),"",IF(AND(G76>'A - Contractor Summary'!$C$39,G76<'A - Contractor Summary'!$C$42),"Yes",IF(G76>'A - Contractor Summary'!$C$42,"No","Needs Review"))) ->  | S76: No | T76: 0 | U76: 0 | X76: 3
B77: 64 | P77: =IF(AND(G77>='A - Contractor Summary'!$C$36,G77<='A - Contractor Summary'!$C$38),"Yes",IF(G77<'A - Contractor Summary'!$C$36,"No",IF(G77>'A - Contractor Summary'!$C$39,"",""))) -> No | Q77: =IF(OR(P77="Yes",P77="No")*AND(G77<'A - Contractor Summary'!$C$39),"",IF(AND(G77>'A - Contractor Summary'!$C$39,G77<'A - Contractor Summary'!$C$42),"Yes",IF(G77>'A - Contractor Summary'!$C$42,"No","Needs Review"))) ->  | S77: No | T77: 0 | U77: 0 | X77: 3
B78: 65 | M78: =L78/K78 ->  | P78: =IF(AND(G78>='A - Contractor Summary'!$C$36,G78<='A - Contractor Summary'!$C$38),"Yes",IF(G78<'A - Contractor Summary'!$C$36,"No",IF(G78>'A - Contractor Summary'!$C$39,"",""))) -> No | Q78: =IF(OR(P78="Yes",P78="No")*AND(G78<'A - Contractor Summary'!$C$39),"",IF(AND(G78>'A - Contractor Summary'!$C$39,G78<'A - Contractor Summary'!$C$42),"Yes",IF(G78>'A - Contractor Summary'!$C$42,"No","Needs Review"))) ->  | S78: =IF(AND(R78="YES",O78="Yes",N78="Yes")*OR(P78="Yes",Q78="Yes"),"Yes",IF(OR(N78="No",O78="No",P78="No",Q78="No",R78="No"),"No","Needs Review")) -> No | T78: =IF(S78="Yes",L78,0) -> 0 | U78: =IF(S78="Needs Review",L78,0) -> 0
B79: 66 | P79: =IF(AND(G79>='A - Contractor Summary'!$C$36,G79<='A - Contractor Summary'!$C$38),"Yes",IF(G79<'A - Contractor Summary'!$C$36,"No",IF(G79>'A - Contractor Summary'!$C$39,"",""))) -> No | Q79: =IF(OR(P79="Yes",P79="No")*AND(G79<'A - Contractor Summary'!$C$39),"",IF(AND(G79>'A - Contractor Summary'!$C$39,G79<'A - Contractor Summary'!$C$42),"Yes",IF(G79>'A - Contractor Summary'!$C$42,"No","Needs Review"))) ->  | S79: No | T79: 0 | U79: 0
B80: 67 | P80: =IF(AND(G80>='A - Contractor Summary'!$C$36,G80<='A - Contractor Summary'!$C$38),"Yes",IF(G80<'A - Contractor Summary'!$C$36,"No",IF(G80>'A - Contractor Summary'!$C$39,"",""))) -> No | Q80: =IF(OR(P80="Yes",P80="No")*AND(G80<'A - Contractor Summary'!$C$39),"",IF(AND(G80>'A - Contractor Summary'!$C$39,G80<'A - Contractor Summary'!$C$42),"Yes",IF(G80>'A - Contractor Summary'!$C$42,"No","Needs Review"))) ->  | S80: No | T80: 0 | U80: 0
B81: 68 | P81: =IF(AND(G81>='A - Contractor Summary'!$C$36,G81<='A - Contractor Summary'!$C$38),"Yes",IF(G81<'A - Contractor Summary'!$C$36,"No",IF(G81>'A - Contractor Summary'!$C$39,"",""))) -> No | Q81: =IF(OR(P81="Yes",P81="No")*AND(G81<'A - Contractor Summary'!$C$39),"",IF(AND(G81>'A - Contractor Summary'!$C$39,G81<'A - Contractor Summary'!$C$42),"Yes",IF(G81>'A - Contractor Summary'!$C$42,"No","Needs Review"))) ->  | S81: No | T81: 0 | U81: 0 | X81: 3
B82: 69 | P82: =IF(AND(G82>='A - Contractor Summary'!$C$36,G82<='A - Contractor Summary'!$C$38),"Yes",IF(G82<'A - Contractor Summary'!$C$36,"No",IF(G82>'A - Contractor Summary'!$C$39,"",""))) -> No | Q82: =IF(OR(P82="Yes",P82="No")*AND(G82<'A - Contractor Summary'!$C$39),"",IF(AND(G82>'A - Contractor Summary'!$C$39,G82<'A - Contractor Summary'!$C$42),"Yes",IF(G82>'A - Contractor Summary'!$C$42,"No","Needs Review"))) ->  | S82: No | T82: 0 | U82: 0 | X82: 3
B83: 70 | P83: =IF(AND(G83>='A - Contractor Summary'!$C$36,G83<='A - Contractor Summary'!$C$38),"Yes",IF(G83<'A - Contractor Summary'!$C$36,"No",IF(G83>'A - Contractor Summary'!$C$39,"",""))) -> No | Q83: =IF(OR(P83="Yes",P83="No")*AND(G83<'A - Contractor Summary'!$C$39),"",IF(AND(G83>'A - Contractor Summary'!$C$39,G83<'A - Contractor Summary'!$C$42),"Yes",IF(G83>'A - Contractor Summary'!$C$42,"No","Needs Review"))) ->  | S83: No | T83: 0 | U83: 0
B84: 71 | P84: =IF(AND(G84>='A - Contractor Summary'!$C$36,G84<='A - Contractor Summary'!$C$38),"Yes",IF(G84<'A - Contractor Summary'!$C$36,"No",IF(G84>'A - Contractor Summary'!$C$39,"",""))) -> No | Q84: =IF(OR(P84="Yes",P84="No")*AND(G84<'A - Contractor Summary'!$C$39),"",IF(AND(G84>'A - Contractor Summary'!$C$39,G84<'A - Contractor Summary'!$C$42),"Yes",IF(G84>'A - Contractor Summary'!$C$42,"No","Needs Review"))) ->  | S84: No | T84: 0 | U84: 0
B85: 72 | P85: =IF(AND(G85>='A - Contractor Summary'!$C$36,G85<='A - Contractor Summary'!$C$38),"Yes",IF(G85<'A - Contractor Summary'!$C$36,"No",IF(G85>'A - Contractor Summary'!$C$39,"",""))) -> No | Q85: =IF(OR(P85="Yes",P85="No")*AND(G85<'A - Contractor Summary'!$C$39),"",IF(AND(G85>'A - Contractor Summary'!$C$39,G85<'A - Contractor Summary'!$C$42),"Yes",IF(G85>'A - Contractor Summary'!$C$42,"No","Needs Review"))) ->  | S85: No | T85: 0 | U85: 0
B86: 73 | P86: =IF(AND(G86>='A - Contractor Summary'!$C$36,G86<='A - Contractor Summary'!$C$38),"Yes",IF(G86<'A - Contractor Summary'!$C$36,"No",IF(G86>'A - Contractor Summary'!$C$39,"",""))) -> No | Q86: =IF(OR(P86="Yes",P86="No")*AND(G86<'A - Contractor Summary'!$C$39),"",IF(AND(G86>'A - Contractor Summary'!$C$39,G86<'A - Contractor Summary'!$C$42),"Yes",IF(G86>'A - Contractor Summary'!$C$42,"No","Needs Review"))) ->  | S86: No | T86: 0 | U86: 0
B87: 74 | P87: =IF(AND(G87>='A - Contractor Summary'!$C$36,G87<='A - Contractor Summary'!$C$38),"Yes",IF(G87<'A - Contractor Summary'!$C$36,"No",IF(G87>'A - Contractor Summary'!$C$39,"",""))) -> No | Q87: =IF(OR(P87="Yes",P87="No")*AND(G87<'A - Contractor Summary'!$C$39),"",IF(AND(G87>'A - Contractor Summary'!$C$39,G87<'A - Contractor Summary'!$C$42),"Yes",IF(G87>'A - Contractor Summary'!$C$42,"No","Needs Review"))) ->  | S87: No | T87: 0 | U87: 0
B88: 75 | P88: =IF(AND(G88>='A - Contractor Summary'!$C$36,G88<='A - Contractor Summary'!$C$38),"Yes",IF(G88<'A - Contractor Summary'!$C$36,"No",IF(G88>'A - Contractor Summary'!$C$39,"",""))) -> No | Q88: =IF(OR(P88="Yes",P88="No")*AND(G88<'A - Contractor Summary'!$C$39),"",IF(AND(G88>'A - Contractor Summary'!$C$39,G88<'A - Contractor Summary'!$C$42),"Yes",IF(G88>'A - Contractor Summary'!$C$42,"No","Needs Review"))) ->  | S88: No | T88: 0 | U88: 71.68 | V88: =+M88 ->  | X88: 4
B89: 76 | P89: =IF(AND(G89>='A - Contractor Summary'!$C$36,G89<='A - Contractor Summary'!$C$38),"Yes",IF(G89<'A - Contractor Summary'!$C$36,"No",IF(G89>'A - Contractor Summary'!$C$39,"",""))) -> No | Q89: =IF(OR(P89="Yes",P89="No")*AND(G89<'A - Contractor Summary'!$C$39),"",IF(AND(G89>'A - Contractor Summary'!$C$39,G89<'A - Contractor Summary'!$C$42),"Yes",IF(G89>'A - Contractor Summary'!$C$42,"No","Needs Review"))) ->  | S89: No | T89: 0 | U89: 71.68 | V89: =+M89 ->  | X89: 4
B90: 77 | P90: =IF(AND(G90>='A - Contractor Summary'!$C$36,G90<='A - Contractor Summary'!$C$38),"Yes",IF(G90<'A - Contractor Summary'!$C$36,"No",IF(G90>'A - Contractor Summary'!$C$39,"",""))) -> No | Q90: =IF(OR(P90="Yes",P90="No")*AND(G90<'A - Contractor Summary'!$C$39),"",IF(AND(G90>'A - Contractor Summary'!$C$39,G90<'A - Contractor Summary'!$C$42),"Yes",IF(G90>'A - Contractor Summary'!$C$42,"No","Needs Review"))) ->  | S90: No | T90: 0 | U90: 0 | X90: 2,3
B91: 78 | P91: =IF(AND(G91>='A - Contractor Summary'!$C$36,G91<='A - Contractor Summary'!$C$38),"Yes",IF(G91<'A - Contractor Summary'!$C$36,"No",IF(G91>'A - Contractor Summary'!$C$39,"",""))) -> No | Q91: =IF(OR(P91="Yes",P91="No")*AND(G91<'A - Contractor Summary'!$C$39),"",IF(AND(G91>'A - Contractor Summary'!$C$39,G91<'A - Contractor Summary'!$C$42),"Yes",IF(G91>'A - Contractor Summary'!$C$42,"No","Needs Review"))) ->  | S91: No | T91: 0 | U91: 0 | X91: 1
B92: 79 | P92: =IF(AND(G92>='A - Contractor Summary'!$C$36,G92<='A - Contractor Summary'!$C$38),"Yes",IF(G92<'A - Contractor Summary'!$C$36,"No",IF(G92>'A - Contractor Summary'!$C$39,"",""))) -> No | Q92: =IF(OR(P92="Yes",P92="No")*AND(G92<'A - Contractor Summary'!$C$39),"",IF(AND(G92>'A - Contractor Summary'!$C$39,G92<'A - Contractor Summary'!$C$42),"Yes",IF(G92>'A - Contractor Summary'!$C$42,"No","Needs Review"))) ->  | S92: No | T92: 0 | U92: 0 | X92: 1
L93: =SUM(L14:L92) -> 0 | T93: =IFERROR(SUM(T14:T92),0) -> 0 | U93: =IFERROR(SUM(U14:U92),0) -> 143.36 | V93: 0 | W93: =IFERROR(SUM(W14:W92),0) -> 0 | X93: =U93-V93-W93 -> 143.36 | Y93: check (a)
B96: Tickmark Explanation:
B97: 1
B98: 2
B99: 3
B100: 4

Sheet E - Fuel
B2: Fuel Charges
B4: Test Plan: (A) Obtain support of individual charges. (B) Enter Yes/No if receipt is itemized (C) Enter Yes/No if proof of payment has been provided. (D) Ensure charges fall between the dates the vendor was mobilized and the date they arrived. (E) Ensure charges are prior to the date the vendor arrived home or was released to another utility. (F) Ensure the location of charge was reasonable (G) Determine the amount(s) to be reviewed, allowed and/or disallowed. (H) For charges which required further review, document review (include why it was determined to be allowed/disallowed via a tickmark).
P5: No Fuel Charges
B9: a | C9: Check figure should equal $0. Cell will appear yellow if discrepancies are noted.
C11: A | K11: B | L11: C | M11: D | N11: E | O11: F | P11: G | S11: H
B12: Support Reviewed | M12: Conclusions
B13: # | C13: Type of Support | D13: Support Identifier | E13: Company | F13: Date | G13: Person | H13: Name | I13: Location | J13: Total Charge | K13: Itemized Receipt | L13: Proof of Payment | M13: Reasonable based on Mobilization date(s) | N13: Reasonable based on Demobilization date(s) | O13: Locations Reasonable | P13: Conclusion | Q13: $ Allowable Charge | R13: $ To Be Reviewed | S13: Reviewed - Allowable Charge | T13: Reviewed - Unallowable Charge | U13: Tickmarks
B14: 1 | M14: =IF(AND(F14>='A - Contractor Summary'!$C$36,F14<='A - Contractor Summary'!$C$38),"Yes",IF(F14<'A - Contractor Summary'!$C$36,"No",IF(F14>'A - Contractor Summary'!$C$39,"",""))) -> No | N14: =IF(OR(M14="Yes",M14="No")*AND(F14<'A - Contractor Summary'!$C$39),"",IF(AND(F14>'A - Contractor Summary'!$C$39,F14<'A - Contractor Summary'!$C$42),"Yes",IF(F14>'A - Contractor Summary'!$C$42,"No","Needs Review"))) ->  | P14: =IF(AND(O14="Yes",K14="Yes",L14="Yes")*OR(N14="Yes",M14="Yes"),"Yes",IF(OR(K14="No",M14="No",N14="No",O14="No",L14="No"),"No","Needs Review")) -> No | Q14: =IF(P14="Yes",J14,0) -> 0 | R14: =IF(P14="Needs Review",J14,0) -> 0
B15: 2 | M15: =IF(AND(F15>='A - Contractor Summary'!$C$36,F15<='A - Contractor Summary'!$C$38),"Yes",IF(F15<'A - Contractor Summary'!$C$36,"No",IF(F15>'A - Contractor Summary'!$C$39,"",""))) -> No | N15: =IF(OR(M15="Yes",M15="No")*AND(F15<'A - Contractor Summary'!$C$39),"",IF(AND(F15>'A - Contractor Summary'!$C$39,F15<'A - Contractor Summary'!$C$42),"Yes",IF(F15>'A - Contractor Summary'!$C$42,"No","Needs Review"))) ->  | P15: =IF(AND(O15="Yes",K15="Yes",L15="Yes")*OR(N15="Yes",M15="Yes"),"Yes",IF(OR(K15="No",M15="No",N15="No",O15="No",L15="No"),"No","Needs Review")) -> No | Q15: 0 | R15: 0
B16: 3 | M16: =IF(AND(F16>='A - Contractor Summary'!$C$36,F16<='A - Contractor Summary'!$C$38),"Yes",IF(F16<'A - Contractor Summary'!$C$36,"No",IF(F16>'A - Contractor Summary'!$C$39,"",""))) -> No | N16: =IF(OR(M16="Yes",M16="No")*AND(F16<'A - Contractor Summary'!$C$39),"",IF(AND(F16>'A - Contractor Summary'!$C$39,F16<'A - Contractor Summary'!$C$42),"Yes",IF(F16>'A - Contractor Summary'!$C$42,"No","Needs Review"))) ->  | P16: No | Q16: 0 | R16: 0
B17: 4 | M17: =IF(AND(F17>='A - Contractor Summary'!$C$36,F17<='A - Contractor Summary'!$C$38),"Yes",IF(F17<'A - Contractor Summary'!$C$36,"No",IF(F17>'A - Contractor Summary'!$C$39,"",""))) -> No | N17: =IF(OR(M17="Yes",M17="No")*AND(F17<'A - Contractor Summary'!$C$39),"",IF(AND(F17>'A - Contractor Summary'!$C$39,F17<'A - Contractor Summary'!$C$42),"Yes",IF(F17>'A - Contractor Summary'!$C$42,"No","Needs Review"))) ->  | P17: No | Q17: 0 | R17: 0
B18: 5 | M18: =IF(AND(F18>='A - Contractor Summary'!$C$36,F18<='A - Contractor Summary'!$C$38),"Yes",IF(F18<'A - Contractor Summary'!$C$36,"No",IF(F18>'A - Contractor Summary'!$C$39,"",""))) -> No | N18: =IF(OR(M18="Yes",M18="No")*AND(F18<'A - Contractor Summary'!$C$39),"",IF(AND(F18>'A - Contractor Summary'!$C$39,F18<'A - Contractor Summary'!$C$42),"Yes",IF(F18>'A - Contractor Summary'!$C$42,"No","Needs Review"))) ->  | P18: No | Q18: 0 | R18: 0
B19: 6 | M19: =IF(AND(F19>='A - Contractor Summary'!$C$36,F19<='A - Contractor Summary'!$C$38),"Yes",IF(F19<'A - Contractor Summary'!$C$36,"No",IF(F19>'A - Contractor Summary'!$C$39,"",""))) -> No | N19: =IF(OR(M19="Yes",M19="No")*AND(F19<'A - Contractor Summary'!$C$39),"",IF(AND(F19>'A - Contractor Summary'!$C$39,F19<'A - Contractor Summary'!$C$42),"Yes",IF(F19>'A - Contractor Summary'!$C$42,"No","Needs Review"))) ->  | P19: No | Q19: 0 | R19: 0
B20: 7 | M20: =IF(AND(F20>='A - Contractor Summary'!$C$36,F20<='A - Contractor Summary'!$C$38),"Yes",IF(F20<'A - Contractor Summary'!$C$36,"No",IF(F20>'A - Contractor Summary'!$C$39,"",""))) -> No | N20: =IF(OR(M20="Yes",M20="No")*AND(F20<'A - Contractor Summary'!$C$39),"",IF(AND(F20>'A - Contractor Summary'!$C$39,F20<'A - Contractor Summary'!$C$42),"Yes",IF(F20>'A - Contractor Summary'!$C$42,"No","Needs Review"))) ->  | P20: No | Q20: 0 | R20: 0
B21: 8 | M21: =IF(AND(F21>='A - Contractor Summary'!$C$36,F21<='A - Contractor Summary'!$C$38),"Yes",IF(F21<'A - Contractor Summary'!$C$36,"No",IF(F21>'A - Contractor Summary'!$C$39,"",""))) -> No | N21: =IF(OR(M21="Yes",M21="No")*AND(F21<'A - Contractor Summary'!$C$39),"",IF(AND(F21>'A - Contractor Summary'!$C$39,F21<'A - Contractor Summary'!$C$42),"Yes",IF(F21>'A - Contractor Summary'!$C$42,"No","Needs Review"))) ->  | P21: No | Q21: 0 | R21: 0
B22: 9 | M22: =IF(AND(F22>='A - Contractor Summary'!$C$36,F22<='A - Contractor Summary'!$C$38),"Yes",IF(F22<'A - Contractor Summary'!$C$36,"No",IF(F22>'A - Contractor Summary'!$C$39,"",""))) -> No | N22: =IF(OR(M22="Yes",M22="No")*AND(F22<'A - Contractor Summary'!$C$39),"",IF(AND(F22>'A - Contractor Summary'!$C$39,F22<'A - Contractor Summary'!$C$42),"Yes",IF(F22>'A - Contractor Summary'!$C$42,"No","Needs Review"))) ->  | P22: No | Q22: 0 | R22: 0
B23: 10 | M23: =IF(AND(F23>='A - Contractor Summary'!$C$36,F23<='A - Contractor Summary'!$C$38),"Yes",IF(F23<'A - Contractor Summary'!$C$36,"No",IF(F23>'A - Contractor Summary'!$C$39,"",""))) -> No | N23: =IF(OR(M23="Yes",M23="No")*AND(F23<'A - Contractor Summary'!$C$39),"",IF(AND(F23>'A - Contractor Summary'!$C$39,F23<'A - Contractor Summary'!$C$42),"Yes",IF(F23>'A - Contractor Summary'!$C$42,"No","Needs Review"))) ->  | P23: No | Q23: 0 | R23: 0
B24: 11 | M24: =IF(AND(F24>='A - Contractor Summary'!$C$36,F24<='A - Contractor Summary'!$C$38),"Yes",IF(F24<'A - Contractor Summary'!$C$36,"No",IF(F24>'A - Contractor Summary'!$C$39,"",""))) -> No | N24: =IF(OR(M24="Yes",M24="No")*AND(F24<'A - Contractor Summary'!$C$39),"",IF(AND(F24>'A - Contractor Summary'!$C$39,F24<'A - Contractor Summary'!$C$42),"Yes",IF(F24>'A - Contractor Summary'!$C$42,"No","Needs Review"))) ->  | P24: No | Q24: 0 | R24: 0
B25: 12 | M25: =IF(AND(F25>='A - Contractor Summary'!$C$36,F25<='A - Contractor Summary'!$C$38),"Yes",IF(F25<'A - Contractor Summary'!$C$36,"No",IF(F25>'A - Contractor Summary'!$C$39,"",""))) -> No | N25: =IF(OR(M25="Yes",M25="No")*AND(F25<'A - Contractor Summary'!$C$39),"",IF(AND(F25>'A - Contractor Summary'!$C$39,F25<'A - Contractor Summary'!$C$42),"Yes",IF(F25>'A - Contractor Summary'!$C$42,"No","Needs Review"))) ->  | P25: No | Q25: 0 | R25: 0
B26: 13 | M26: =IF(AND(F26>='A - Contractor Summary'!$C$36,F26<='A - Contractor Summary'!$C$38),"Yes",IF(F26<'A - Contractor Summary'!$C$36,"No",IF(F26>'A - Contractor Summary'!$C$39,"",""))) -> No | N26: =IF(OR(M26="Yes",M26="No")*AND(F26<'A - Contractor Summary'!$C$39),"",IF(AND(F26>'A - Contractor Summary'!$C$39,F26<'A - Contractor Summary'!$C$42),"Yes",IF(F26>'A - Contractor Summary'!$C$42,"No","Needs Review"))) ->  | P26: No | Q26: 0 | R26: 0
B27: 14 | M27: =IF(AND(F27>='A - Contractor Summary'!$C$36,F27<='A - Contractor Summary'!$C$38),"Yes",IF(F27<'A - Contractor Summary'!$C$36,"No",IF(F27>'A - Contractor Summary'!$C$39,"",""))) -> No | N27: =IF(OR(M27="Yes",M27="No")*AND(F27<'A - Contractor Summary'!$C$39),"",IF(AND(F27>'A - Contractor Summary'!$C$39,F27<'A - Contractor Summary'!$C$42),"Yes",IF(F27>'A - Contractor Summary'!$C$42,"No","Needs Review"))) ->  | P27: No | Q27: 0 | R27: 0
B28: 15 | M28: =IF(AND(F28>='A - Contractor Summary'!$C$36,F28<='A - Contractor Summary'!$C$38),"Yes",IF(F28<'A - Contractor Summary'!$C$36,"No",IF(F28>'A - Contractor Summary'!$C$39,"",""))) -> No | N28: =IF(OR(M28="Yes",M28="No")*AND(F28<'A - Contractor Summary'!$C$39),"",IF(AND(F28>'A - Contractor Summary'!$C$39,F28<'A - Contractor Summary'!$C$42),"Yes",IF(F28>'A - Contractor Summary'!$C$42,"No","Needs Review"))) ->  | P28: No | Q28: 0 | R28: 0
B29: 16 | M29: =IF(AND(F29>='A - Contractor Summary'!$C$36,F29<='A - Contractor Summary'!$C$38),"Yes",IF(F29<'A - Contractor Summary'!$C$36,"No",IF(F29>'A - Contractor Summary'!$C$39,"",""))) -> No | N29: =IF(OR(M29="Yes",M29="No")*AND(F29<'A - Contractor Summary'!$C$39),"",IF(AND(F29>'A - Contractor Summary'!$C$39,F29<'A - Contractor Summary'!$C$42),"Yes",IF(F29>'A - Contractor Summary'!$C$42,"No","Needs Review"))) ->  | P29: No | Q29: 0 | R29: 0
B30: 17 | M30: =IF(AND(F30>='A - Contractor Summary'!$C$36,F30<='A - Contractor Summary'!$C$38),"Yes",IF(F30<'A - Contractor Summary'!$C$36,"No",IF(F30>'A - Contractor Summary'!$C$39,"",""))) -> No | N30: =IF(OR(M30="Yes",M30="No")*AND(F30<'A - Contractor Summary'!$C$39),"",IF(AND(F30>'A - Contractor Summary'!$C$39,F30<'A - Contractor Summary'!$C$42),"Yes",IF(F30>'A - Contractor Summary'!$C$42,"No","Needs Review"))) ->  | P30: No | Q30: 0 | R30: 0
B31: 18 | M31: =IF(AND(F31>='A - Contractor Summary'!$C$36,F31<='A - Contractor Summary'!$C$38),"Yes",IF(F31<'A - Contractor Summary'!$C$36,"No",IF(F31>'A - Contractor Summary'!$C$39,"",""))) -> No | N31: =IF(OR(M31="Yes",M31="No")*AND(F31<'A - Contractor Summary'!$C$39),"",IF(AND(F31>'A - Contractor Summary'!$C$39,F31<'A - Contractor Summary'!$C$42),"Yes",IF(F31>'A - Contractor Summary'!$C$42,"No","Needs Review"))) ->  | P31: No | Q31: =IF(P31="Yes",#REF!,0) -> 0 | R31: =IF(P31="ED Review",#REF!,0) -> 0
B32: 19 | M32: =IF(AND(F32>='A - Contractor Summary'!$C$36,F32<='A - Contractor Summary'!$C$38),"Yes",IF(F32<'A - Contractor Summary'!$C$36,"No",IF(F32>'A - Contractor Summary'!$C$39,"",""))) -> No | N32: =IF(OR(M32="Yes",M32="No")*AND(F32<'A - Contractor Summary'!$C$39),"",IF(AND(F32>'A - Contractor Summary'!$C$39,F32<'A - Contractor Summary'!$C$42),"Yes",IF(F32>'A - Contractor Summary'!$C$42,"No","Needs Review"))) ->  | P32: No | Q32: =IF(P32="Yes",#REF!,0) -> 0 | R32: =IF(P32="ED Review",#REF!,0) -> 0
B33: 20 | M33: =IF(AND(F33>='A - Contractor Summary'!$C$36,F33<='A - Contractor Summary'!$C$38),"Yes",IF(F33<'A - Contractor Summary'!$C$36,"No",IF(F33>'A - Contractor Summary'!$C$39,"",""))) -> No | N33: =IF(OR(M33="Yes",M33="No")*AND(F33<'A - Contractor Summary'!$C$39),"",IF(AND(F33>'A - Contractor Summary'!$C$39,F33<'A - Contractor Summary'!$C$42),"Yes",IF(F33>'A - Contractor Summary'!$C$42,"No","Needs Review"))) ->  | P33: No | Q33: =IF(P33="Yes",#REF!,0) -> 0 | R33: =IF(P33="ED Review",#REF!,0) -> 0
J34: =SUM(J14:J33) -> 0 | Q34: =IFERROR(SUM(Q14:Q33),0) -> 0 | R34: =IFERROR(SUM(R14:R33),0) -> 0 | S34: =SUM(S14:S33) -> 0 | T34: =SUM(T14:T33) -> 0 | U34: =R34-S34-T34 -> 0 | V34: check (a)
B40: Tickmark Explanation:

Sheet F - Meals
B2: Meal Charges
B4: Test Plan: (A) Obtain support of individual charges. (B) Enter Yes/No if receipt is itemized. (C) Enter Yes/No if proof of payment has been provided. (D) Ensure charges fall between the dates the vendor was mobilized and the date they arrived. (E) Ensure charges are prior to the date the vendor arrived home or was released to another utility. (F) Ensure the location of charge was reasonable (G) Determine the amount(s) to be reviewed, allowed and/or disallowed. (H) For charges which required further review, document review and include why it was determined to be allowed/disallowed via a tickmark.
B9: a | C9: Check figure should equal $0. Cell will appear yellow if discrepancies are noted.
C11: A | L11: B | M11: C | N11: D | O11: E | P11: F | Q11: G | T11: H
B12: Support Reviewed | N12: Conclusions
B13: # | C13: Type of Support | D13: Support Identifier | E13: Company | F13: Crew | G13: Date | H13: Person | I13: Restaurant Name | J13: Location | K13: $ Total | L13: Itemized Receipt | M13: Proof of Payment | N13: Reasonable based on Mobilization date(s) | O13: Reasonable based on Demobilization date(s) | P13: Locations Reasonable | Q13: Conclusion | R13: $ Allowable Charge | S13: $ To Be Reviewed | T13: Reviewed - Allowable Charge | U13: Reviewed - Unallowable Charge | V13: Tickmarks
B14: 1 | N14: =IF(AND(G14>='A - Contractor Summary'!$C$36,G14<='A - Contractor Summary'!$C$38),"Yes",IF(G14<'A - Contractor Summary'!$C$36,"No",IF(G14>'A - Contractor Summary'!$C$39,"",""))) -> No | O14: =IF(OR(N14="Yes",N14="No")*AND(G14<'A - Contractor Summary'!$C$39),"",IF(AND(G14>'A - Contractor Summary'!$C$39,G14<'A - Contractor Summary'!$C$42),"Yes",IF(G14>'A - Contractor Summary'!$C$42,"No","Needs Review"))) ->  | P14: Yes | Q14: =IF(AND(P14="Yes",L14="Yes",M14="Yes")*OR(O14="Yes",N14="Yes"),"Yes",IF(OR(L14="No",N14="No",O14="No",P14="No",M14="No"),"No","Needs Review")) -> No | R14: =IF(Q14="Yes",K14,0) -> 0 | S14: =IF(Q14="Needs Review",K14,0) -> 0
B15: 2 | N15: =IF(AND(G15>='A - Contractor Summary'!$C$36,G15<='A - Contractor Summary'!$C$38),"Yes",IF(G15<'A - Contractor Summary'!$C$36,"No",IF(G15>'A - Contractor Summary'!$C$39,"",""))) -> No | O15: =IF(OR(N15="Yes",N15="No")*AND(G15<'A - Contractor Summary'!$C$39),"",IF(AND(G15>'A - Contractor Summary'!$C$39,G15<'A - Contractor Summary'!$C$42),"Yes",IF(G15>'A - Contractor Summary'!$C$42,"No","Needs Review"))) ->  | P15: Yes | Q15: No | R15: 0 | S15: 0
B16: 3 | N16: =IF(AND(G16>='A - Contractor Summary'!$C$36,G16<='A - Contractor Summary'!$C$38),"Yes",IF(G16<'A - Contractor Summary'!$C$36,"No",IF(G16>'A - Contractor Summary'!$C$39,"",""))) -> No | O16: =IF(OR(N16="Yes",N16="No")*AND(G16<'A - Contractor Summary'!$C$39),"",IF(AND(G16>'A - Contractor Summary'!$C$39,G16<'A - Contractor Summary'!$C$42),"Yes",IF(G16>'A - Contractor Summary'!$C$42,"No","Needs Review"))) ->  | P16: Yes | Q16: No | R16: 0 | S16: 0
B17: 4 | N17: =IF(AND(G17>='A - Contractor Summary'!$C$36,G17<='A - Contractor Summary'!$C$38),"Yes",IF(G17<'A - Contractor Summary'!$C$36,"No",IF(G17>'A - Contractor Summary'!$C$39,"",""))) -> No | O17: =IF(OR(N17="Yes",N17="No")*AND(G17<'A - Contractor Summary'!$C$39),"",IF(AND(G17>'A - Contractor Summary'!$C$39,G17<'A - Contractor Summary'!$C$42),"Yes",IF(G17>'A - Contractor Summary'!$C$42,"No","Needs Review"))) ->  | P17: Yes | Q17: No | R17: 0 | S17: 0
B18: 5 | N18: =IF(AND(G18>='A - Contractor Summary'!$C$36,G18<='A - Contractor Summary'!$C$38),"Yes",IF(G18<'A - Contractor Summary'!$C$36,"No",IF(G18>'A - Contractor Summary'!$C$39,"",""))) -> No | O18: =IF(OR(N18="Yes",N18="No")*AND(G18<'A - Contractor Summary'!$C$39),"",IF(AND(G18>'A - Contractor Summary'!$C$39,G18<'A - Contractor Summary'!$C$42),"Yes",IF(G18>'A - Contractor Summary'!$C$42,"No","Needs Review"))) ->  | P18: No | Q18: No | R18: 0 | S18: 0
B19: 6 | N19: =IF(AND(G19>='A - Contractor Summary'!$C$36,G19<='A - Contractor Summary'!$C$38),"Yes",IF(G19<'A - Contractor Summary'!$C$36,"No",IF(G19>'A - Contractor Summary'!$C$39,"",""))) -> No | O19: =IF(OR(N19="Yes",N19="No")*AND(G19<'A - Contractor Summary'!$C$39),"",IF(AND(G19>'A - Contractor Summary'!$C$39,G19<'A - Contractor Summary'!$C$42),"Yes",IF(G19>'A - Contractor Summary'!$C$42,"No","Needs Review"))) ->  | P19: Yes | Q19: No | R19: 0 | S19: 0
B20: 7 | N20: =IF(AND(G20>='A - Contractor Summary'!$C$36,G20<='A - Contractor Summary'!$C$38),"Yes",IF(G20<'A - Contractor Summary'!$C$36,"No",IF(G20>'A - Contractor Summary'!$C$39,"",""))) -> No | O20: =IF(OR(N20="Yes",N20="No")*AND(G20<'A - Contractor Summary'!$C$39),"",IF(AND(G20>'A - Contractor Summary'!$C$39,G20<'A - Contractor Summary'!$C$42),"Yes",IF(G20>'A - Contractor Summary'!$C$42,"No","Needs Review"))) ->  | P20: Yes | Q20: No | R20: 0 | S20: 0
B21: 8 | N21: =IF(AND(G21>='A - Contractor Summary'!$C$36,G21<='A - Contractor Summary'!$C$38),"Yes",IF(G21<'A - Contractor Summary'!$C$36,"No",IF(G21>'A - Contractor Summary'!$C$39,"",""))) -> No | O21: =IF(OR(N21="Yes",N21="No")*AND(G21<'A - Contractor Summary'!$C$39),"",IF(AND(G21>'A - Contractor Summary'!$C$39,G21<'A - Contractor Summary'!$C$42),"Yes",IF(G21>'A - Contractor Summary'!$C$42,"No","Needs Review"))) ->  | P21: Yes | Q21: No | R21: 0 | S21: 0
B22: 9 | N22: =IF(AND(G22>='A - Contractor Summary'!$C$36,G22<='A - Contractor Summary'!$C$38),"Yes",IF(G22<'A - Contractor Summary'!$C$36,"No",IF(G22>'A - Contractor Summary'!$C$39,"",""))) -> No | O22: =IF(OR(N22="Yes",N22="No")*AND(G22<'A - Contractor Summary'!$C$39),"",IF(AND(G22>'A - Contractor Summary'!$C$39,G22<'A - Contractor Summary'!$C$42),"Yes",IF(G22>'A - Contractor Summary'!$C$42,"No","Needs Review"))) ->  | P22: Yes | Q22: No | R22: 0 | S22: 0
B23: 10 | N23: =IF(AND(G23>='A - Contractor Summary'!$C$36,G23<='A - Contractor Summary'!$C$38),"Yes",IF(G23<'A - Contractor Summary'!$C$36,"No",IF(G23>'A - Contractor Summary'!$C$39,"",""))) -> No | O23: =IF(OR(N23="Yes",N23="No")*AND(G23<'A - Contractor Summary'!$C$39),"",IF(AND(G23>'A - Contractor Summary'!$C$39,G23<'A - Contractor Summary'!$C$42),"Yes",IF(G23>'A - Contractor Summary'!$C$42,"No","Needs Review"))) ->  | P23: Yes | Q23: No | R23: 0 | S23: 0
B24: 11 | N24: =IF(AND(G24>='A - Contractor Summary'!$C$36,G24<='A - Contractor Summary'!$C$38),"Yes",IF(G24<'A - Contractor Summary'!$C$36,"No",IF(G24>'A - Contractor Summary'!$C$39,"",""))) -> No | O24: =IF(OR(N24="Yes",N24="No")*AND(G24<'A - Contractor Summary'!$C$39),"",IF(AND(G24>'A - Contractor Summary'!$C$39,G24<'A - Contractor Summary'!$C$42),"Yes",IF(G24>'A - Contractor Summary'!$C$42,"No","Needs Review"))) ->  | P24: Yes | Q24: No | R24: 0 | S24: 0
B25: 12 | N25: =IF(AND(G25>='A - Contractor Summary'!$C$36,G25<='A - Contractor Summary'!$C$38),"Yes",IF(G25<'A - Contractor Summary'!$C$36,"No",IF(G25>'A - Contractor Summary'!$C$39,"",""))) -> No | O25: =IF(OR(N25="Yes",N25="No")*AND(G25<'A - Contractor Summary'!$C$39),"",IF(AND(G25>'A - Contractor Summary'!$C$39,G25<'A - Contractor Summary'!$C$42),"Yes",IF(G25>'A - Contractor Summary'!$C$42,"No","Needs Review"))) ->  | P25: Yes | Q25: No | R25: 0 | S25: 0
B26: 13 | N26: =IF(AND(G26>='A - Contractor Summary'!$C$36,G26<='A - Contractor Summary'!$C$38),"Yes",IF(G26<'A - Contractor Summary'!$C$36,"No",IF(G26>'A - Contractor Summary'!$C$39,"",""))) -> No | O26: =IF(OR(N26="Yes",N26="No")*AND(G26<'A - Contractor Summary'!$C$39),"",IF(AND(G26>'A - Contractor Summary'!$C$39,G26<'A - Contractor Summary'!$C$42),"Yes",IF(G26>'A - Contractor Summary'!$C$42,"No","Needs Review"))) ->  | P26: Yes | Q26: No | R26: 0 | S26: 0
B27: 14 | N27: =IF(AND(G27>='A - Contractor Summary'!$C$36,G27<='A - Contractor Summary'!$C$38),"Yes",IF(G27<'A - Contractor Summary'!$C$36,"No",IF(G27>'A - Contractor Summary'!$C$39,"",""))) -> No | O27: =IF(OR(N27="Yes",N27="No")*AND(G27<'A - Contractor Summary'!$C$39),"",IF(AND(G27>'A - Contractor Summary'!$C$39,G27<'A - Contractor Summary'!$C$42),"Yes",IF(G27>'A - Contractor Summary'!$C$42,"No","Needs Review"))) ->  | P27: Yes | Q27: No | R27: 0 | S27: 0
B28: 15 | N28: =IF(AND(G28>='A - Contractor Summary'!$C$36,G28<='A - Contractor Summary'!$C$38),"Yes",IF(G28<'A - Contractor Summary'!$C$36,"No",IF(G28>'A - Contractor Summary'!$C$39,"",""))) -> No | O28: =IF(OR(N28="Yes",N28="No")*AND(G28<'A - Contractor Summary'!$C$39),"",IF(AND(G28>'A - Contractor Summary'!$C$39,G28<'A - Contractor Summary'!$C$42),"Yes",IF(G28>'A - Contractor Summary'!$C$42,"No","Needs Review"))) ->  | P28: Yes | Q28: No | R28: 0 | S28: 0
B29: 16 | N29: =IF(AND(G29>='A - Contractor Summary'!$C$36,G29<='A - Contractor Summary'!$C$38),"Yes",IF(G29<'A - Contractor Summary'!$C$36,"No",IF(G29>'A - Contractor Summary'!$C$39,"",""))) -> No | O29: =IF(OR(N29="Yes",N29="No")*AND(G29<'A - Contractor Summary'!$C$39),"",IF(AND(G29>'A - Contractor Summary'!$C$39,G29<'A - Contractor Summary'!$C$42),"Yes",IF(G29>'A - Contractor Summary'!$C$42,"No","Needs Review"))) ->  | P29: No | Q29: No | R29: 0 | S29: 0
B30: 17 | N30: =IF(AND(G30>='A - Contractor Summary'!$C$36,G30<='A - Contractor Summary'!$C$38),"Yes",IF(G30<'A - Contractor Summary'!$C$36,"No",IF(G30>'A - Contractor Summary'!$C$39,"",""))) -> No | O30: =IF(OR(N30="Yes",N30="No")*AND(G30<'A - Contractor Summary'!$C$39),"",IF(AND(G30>'A - Contractor Summary'!$C$39,G30<'A - Contractor Summary'!$C$42),"Yes",IF(G30>'A - Contractor Summary'!$C$42,"No","Needs Review"))) ->  | P30: Yes | Q30: No | R30: 0 | S30: 0
B31: 18 | N31: =IF(AND(G31>='A - Contractor Summary'!$C$36,G31<='A - Contractor Summary'!$C$38),"Yes",IF(G31<'A - Contractor Summary'!$C$36,"No",IF(G31>'A - Contractor Summary'!$C$39,"",""))) -> No | O31: =IF(OR(N31="Yes",N31="No")*AND(G31<'A - Contractor Summary'!$C$39),"",IF(AND(G31>'A - Contractor Summary'!$C$39,G31<'A - Contractor Summary'!$C$42),"Yes",IF(G31>'A - Contractor Summary'!$C$42,"No","Needs Review"))) ->  | P31: Yes | Q31: No | R31: 0 | S31: 0
B32: 19 | N32: =IF(AND(G32>='A - Contractor Summary'!$C$36,G32<='A - Contractor Summary'!$C$38),"Yes",IF(G32<'A - Contractor Summary'!$C$36,"No",IF(G32>'A - Contractor Summary'!$C$39,"",""))) -> No | O32: =IF(OR(N32="Yes",N32="No")*AND(G32<'A - Contractor Summary'!$C$39),"",IF(AND(G32>'A - Contractor Summary'!$C$39,G32<'A - Contractor Summary'!$C$42),"Yes",IF(G32>'A - Contractor Summary'!$C$42,"No","Needs Review"))) ->  | P32: Yes | Q32: No | R32: 0 | S32: 0
B33: 20 | N33: =IF(AND(G33>='A - Contractor Summary'!$C$36,G33<='A - Contractor Summary'!$C$38),"Yes",IF(G33<'A - Contractor Summary'!$C$36,"No",IF(G33>'A - Contractor Summary'!$C$39,"",""))) -> No | O33: =IF(OR(N33="Yes",N33="No")*AND(G33<'A - Contractor Summary'!$C$39),"",IF(AND(G33>'A - Contractor Summary'!$C$39,G33<'A - Contractor Summary'!$C$42),"Yes",IF(G33>'A - Contractor Summary'!$C$42,"No","Needs Review"))) ->  | P33: Yes | Q33: No | R33: 0 | S33: 0
B34: 21 | N34: =IF(AND(G34>='A - Contractor Summary'!$C$36,G34<='A - Contractor Summary'!$C$38),"Yes",IF(G34<'A - Contractor Summary'!$C$36,"No",IF(G34>'A - Contractor Summary'!$C$39,"",""))) -> No | O34: =IF(OR(N34="Yes",N34="No")*AND(G34<'A - Contractor Summary'!$C$39),"",IF(AND(G34>'A - Contractor Summary'!$C$39,G34<'A - Contractor Summary'!$C$42),"Yes",IF(G34>'A - Contractor Summary'!$C$42,"No","Needs Review"))) ->  | P34: Yes | Q34: No | R34: 0 | S34: 0
B35: 22 | N35: =IF(AND(G35>='A - Contractor Summary'!$C$36,G35<='A - Contractor Summary'!$C$38),"Yes",IF(G35<'A - Contractor Summary'!$C$36,"No",IF(G35>'A - Contractor Summary'!$C$39,"",""))) -> No | O35: =IF(OR(N35="Yes",N35="No")*AND(G35<'A - Contractor Summary'!$C$39),"",IF(AND(G35>'A - Contractor Summary'!$C$39,G35<'A - Contractor Summary'!$C$42),"Yes",IF(G35>'A - Contractor Summary'!$C$42,"No","Needs Review"))) ->  | P35: Yes | Q35: No | R35: 0 | S35: 0
B36: 23 | N36: =IF(AND(G36>='A - Contractor Summary'!$C$36,G36<='A - Contractor Summary'!$C$38),"Yes",IF(G36<'A - Contractor Summary'!$C$36,"No",IF(G36>'A - Contractor Summary'!$C$39,"",""))) -> No | O36: =IF(OR(N36="Yes",N36="No")*AND(G36<'A - Contractor Summary'!$C$39),"",IF(AND(G36>'A - Contractor Summary'!$C$39,G36<'A - Contractor Summary'!$C$42),"Yes",IF(G36>'A - Contractor Summary'!$C$42,"No","Needs Review"))) ->  | P36: Yes | Q36: No | R36: 0 | S36: 0
B37: 24 | N37: =IF(AND(G37>='A - Contractor Summary'!$C$36,G37<='A - Contractor Summary'!$C$38),"Yes",IF(G37<'A - Contractor Summary'!$C$36,"No",IF(G37>'A - Contractor Summary'!$C$39,"",""))) -> No | O37: =IF(OR(N37="Yes",N37="No")*AND(G37<'A - Contractor Summary'!$C$39),"",IF(AND(G37>'A - Contractor Summary'!$C$39,G37<'A - Contractor Summary'!$C$42),"Yes",IF(G37>'A - Contractor Summary'!$C$42,"No","Needs Review"))) ->  | P37: Yes | Q37: No | R37: 0 | S37: 0
B38: 25 | N38: =IF(AND(G38>='A - Contractor Summary'!$C$36,G38<='A - Contractor Summary'!$C$38),"Yes",IF(G38<'A - Contractor Summary'!$C$36,"No",IF(G38>'A - Contractor Summary'!$C$39,"",""))) -> No | O38: =IF(OR(N38="Yes",N38="No")*AND(G38<'A - Contractor Summary'!$C$39),"",IF(AND(G38>'A - Contractor Summary'!$C$39,G38<'A - Contractor Summary'!$C$42),"Yes",IF(G38>'A - Contractor Summary'!$C$42,"No","Needs Review"))) ->  | P38: Yes | Q38: No | R38: 0 | S38: 0
B39: 26 | N39: =IF(AND(G39>='A - Contractor Summary'!$C$36,G39<='A - Contractor Summary'!$C$38),"Yes",IF(G39<'A - Contractor Summary'!$C$36,"No",IF(G39>'A - Contractor Summary'!$C$39,"",""))) -> No | O39: =IF(OR(N39="Yes",N39="No")*AND(G39<'A - Contractor Summary'!$C$39),"",IF(AND(G39>'A - Contractor Summary'!$C$39,G39<'A - Contractor Summary'!$C$42),"Yes",IF(G39>'A - Contractor Summary'!$C$42,"No","Needs Review"))) ->  | P39: Yes | Q39: No | R39: 0 | S39: 0
B40: 27 | N40: =IF(AND(G40>='A - Contractor Summary'!$C$36,G40<='A - Contractor Summary'!$C$38),"Yes",IF(G40<'A - Contractor Summary'!$C$36,"No",IF(G40>'A - Contractor Summary'!$C$39,"",""))) -> No | O40: =IF(OR(N40="Yes",N40="No")*AND(G40<'A - Contractor Summary'!$C$39),"",IF(AND(G40>'A - Contractor Summary'!$C$39,G40<'A - Contractor Summary'!$C$42),"Yes",IF(G40>'A - Contractor Summary'!$C$42,"No","Needs Review"))) ->  | P40: Yes | Q40: No | R40: 0 | S40: 0
B41: 28 | N41: =IF(AND(G41>='A - Contractor Summary'!$C$36,G41<='A - Contractor Summary'!$C$38),"Yes",IF(G41<'A - Contractor Summary'!$C$36,"No",IF(G41>'A - Contractor Summary'!$C$39,"",""))) -> No | O41: =IF(OR(N41="Yes",N41="No")*AND(G41<'A - Contractor Summary'!$C$39),"",IF(AND(G41>'A - Contractor Summary'!$C$39,G41<'A - Contractor Summary'!$C$42),"Yes",IF(G41>'A - Contractor Summary'!$C$42,"No","Needs Review"))) ->  | P41: Yes | Q41: No | R41: 0 | S41: 0
B42: 29 | N42: =IF(AND(G42>='A - Contractor Summary'!$C$36,G42<='A - Contractor Summary'!$C$38),"Yes",IF(G42<'A - Contractor Summary'!$C$36,"No",IF(G42>'A - Contractor Summary'!$C$39,"",""))) -> No | O42: =IF(OR(N42="Yes",N42="No")*AND(G42<'A - Contractor Summary'!$C$39),"",IF(AND(G42>'A - Contractor Summary'!$C$39,G42<'A - Contractor Summary'!$C$42),"Yes",IF(G42>'A - Contractor Summary'!$C$42,"No","Needs Review"))) ->  | P42: Yes | Q42: No | R42: 0 | S42: 0
B43: 30 | N43: =IF(AND(G43>='A - Contractor Summary'!$C$36,G43<='A - Contractor Summary'!$C$38),"Yes",IF(G43<'A - Contractor Summary'!$C$36,"No",IF(G43>'A - Contractor Summary'!$C$39,"",""))) -> No | O43: =IF(OR(N43="Yes",N43="No")*AND(G43<'A - Contractor Summary'!$C$39),"",IF(AND(G43>'A - Contractor Summary'!$C$39,G43<'A - Contractor Summary'!$C$42),"Yes",IF(G43>'A - Contractor Summary'!$C$42,"No","Needs Review"))) ->  | P43: Yes | Q43: No | R43: 0 | S43: 0
B44: 31 | N44: =IF(AND(G44>='A - Contractor Summary'!$C$36,G44<='A - Contractor Summary'!$C$38),"Yes",IF(G44<'A - Contractor Summary'!$C$36,"No",IF(G44>'A - Contractor Summary'!$C$39,"",""))) -> No | O44: =IF(OR(N44="Yes",N44="No")*AND(G44<'A - Contractor Summary'!$C$39),"",IF(AND(G44>'A - Contractor Summary'!$C$39,G44<'A - Contractor Summary'!$C$42),"Yes",IF(G44>'A - Contractor Summary'!$C$42,"No","Needs Review"))) ->  | P44: Yes | Q44: No | R44: 0 | S44: 0
B45: 32 | N45: =IF(AND(G45>='A - Contractor Summary'!$C$36,G45<='A - Contractor Summary'!$C$38),"Yes",IF(G45<'A - Contractor Summary'!$C$36,"No",IF(G45>'A - Contractor Summary'!$C$39,"",""))) -> No | O45: =IF(OR(N45="Yes",N45="No")*AND(G45<'A - Contractor Summary'!$C$39),"",IF(AND(G45>'A - Contractor Summary'!$C$39,G45<'A - Contractor Summary'!$C$42),"Yes",IF(G45>'A - Contractor Summary'!$C$42,"No","Needs Review"))) ->  | P45: Yes | Q45: No | R45: 0 | S45: 0
B46: 33 | N46: =IF(AND(G46>='A - Contractor Summary'!$C$36,G46<='A - Contractor Summary'!$C$38),"Yes",IF(G46<'A - Contractor Summary'!$C$36,"No",IF(G46>'A - Contractor Summary'!$C$39,"",""))) -> No | O46: =IF(OR(N46="Yes",N46="No")*AND(G46<'A - Contractor Summary'!$C$39),"",IF(AND(G46>'A - Contractor Summary'!$C$39,G46<'A - Contractor Summary'!$C$42),"Yes",IF(G46>'A - Contractor Summary'!$C$42,"No","Needs Review"))) ->  | P46: Yes | Q46: =IF(AND(P46="Yes",L46="Yes",M46="Yes")*OR(O46="Yes",N46="Yes"),"Yes",IF(OR(L46="No",N46="No",O46="No",P46="No",M46="No"),"No","Needs Review")) -> No | R46: =IF(Q46="Yes",K46,0) -> 0 | S46: =IF(Q46="Needs Review",K46,0) -> 0
B47: 34 | N47: =IF(AND(G47>='A - Contractor Summary'!$C$36,G47<='A - Contractor Summary'!$C$38),"Yes",IF(G47<'A - Contractor Summary'!$C$36,"No",IF(G47>'A - Contractor Summary'!$C$39,"",""))) -> No | O47: =IF(OR(N47="Yes",N47="No")*AND(G47<'A - Contractor Summary'!$C$39),"",IF(AND(G47>'A - Contractor Summary'!$C$39,G47<'A - Contractor Summary'!$C$42),"Yes",IF(G47>'A - Contractor Summary'!$C$42,"No","Needs Review"))) ->  | P47: Yes | Q47: No | R47: 0 | S47: 0
B48: 35 | N48: =IF(AND(G48>='A - Contractor Summary'!$C$36,G48<='A - Contractor Summary'!$C$38),"Yes",IF(G48<'A - Contractor Summary'!$C$36,"No",IF(G48>'A - Contractor Summary'!$C$39,"",""))) -> No | O48: =IF(OR(N48="Yes",N48="No")*AND(G48<'A - Contractor Summary'!$C$39),"",IF(AND(G48>'A - Contractor Summary'!$C$39,G48<'A - Contractor Summary'!$C$42),"Yes",IF(G48>'A - Contractor Summary'!$C$42,"No","Needs Review"))) ->  | P48: Yes | Q48: No | R48: 0 | S48: 0
B49: 36 | N49: =IF(AND(G49>='A - Contractor Summary'!$C$36,G49<='A - Contractor Summary'!$C$38),"Yes",IF(G49<'A - Contractor Summary'!$C$36,"No",IF(G49>'A - Contractor Summary'!$C$39,"",""))) -> No | O49: =IF(OR(N49="Yes",N49="No")*AND(G49<'A - Contractor Summary'!$C$39),"",IF(AND(G49>'A - Contractor Summary'!$C$39,G49<'A - Contractor Summary'!$C$42),"Yes",IF(G49>'A - Contractor Summary'!$C$42,"No","Needs Review"))) ->  | P49: Yes | Q49: No | R49: 0 | S49: 0
B50: 37 | N50: =IF(AND(G50>='A - Contractor Summary'!$C$36,G50<='A - Contractor Summary'!$C$38),"Yes",IF(G50<'A - Contractor Summary'!$C$36,"No",IF(G50>'A - Contractor Summary'!$C$39,"",""))) -> No | O50: =IF(OR(N50="Yes",N50="No")*AND(G50<'A - Contractor Summary'!$C$39),"",IF(AND(G50>'A - Contractor Summary'!$C$39,G50<'A - Contractor Summary'!$C$42),"Yes",IF(G50>'A - Contractor Summary'!$C$42,"No","Needs Review"))) ->  | P50: Yes | Q50: No | R50: 0 | S50: 0
B51: 38 | N51: =IF(AND(G51>='A - Contractor Summary'!$C$36,G51<='A - Contractor Summary'!$C$38),"Yes",IF(G51<'A - Contractor Summary'!$C$36,"No",IF(G51>'A - Contractor Summary'!$C$39,"",""))) -> No | O51: =IF(OR(N51="Yes",N51="No")*AND(G51<'A - Contractor Summary'!$C$39),"",IF(AND(G51>'A - Contractor Summary'!$C$39,G51<'A - Contractor Summary'!$C$42),"Yes",IF(G51>'A - Contractor Summary'!$C$42,"No","Needs Review"))) ->  | P51: Yes | Q51: No | R51: 0 | S51: 0
B52: 39 | N52: =IF(AND(G52>='A - Contractor Summary'!$C$36,G52<='A - Contractor Summary'!$C$38),"Yes",IF(G52<'A - Contractor Summary'!$C$36,"No",IF(G52>'A - Contractor Summary'!$C$39,"",""))) -> No | O52: =IF(OR(N52="Yes",N52="No")*AND(G52<'A - Contractor Summary'!$C$39),"",IF(AND(G52>'A - Contractor Summary'!$C$39,G52<'A - Contractor Summary'!$C$42),"Yes",IF(G52>'A - Contractor Summary'!$C$42,"No","Needs Review"))) ->  | P52: Yes | Q52: No | R52: 0 | S52: 0
B53: 40 | N53: =IF(AND(G53>='A - Contractor Summary'!$C$36,G53<='A - Contractor Summary'!$C$38),"Yes",IF(G53<'A - Contractor Summary'!$C$36,"No",IF(G53>'A - Contractor Summary'!$C$39,"",""))) -> No | O53: =IF(OR(N53="Yes",N53="No")*AND(G53<'A - Contractor Summary'!$C$39),"",IF(AND(G53>'A - Contractor Summary'!$C$39,G53<'A - Contractor Summary'!$C$42),"Yes",IF(G53>'A - Contractor Summary'!$C$42,"No","Needs Review"))) ->  | P53: Yes | Q53: No | R53: 0 | S53: 0
B54: 41 | N54: =IF(AND(G54>='A - Contractor Summary'!$C$36,G54<='A - Contractor Summary'!$C$38),"Yes",IF(G54<'A - Contractor Summary'!$C$36,"No",IF(G54>'A - Contractor Summary'!$C$39,"",""))) -> No | O54: =IF(OR(N54="Yes",N54="No")*AND(G54<'A - Contractor Summary'!$C$39),"",IF(AND(G54>'A - Contractor Summary'!$C$39,G54<'A - Contractor Summary'!$C$42),"Yes",IF(G54>'A - Contractor Summary'!$C$42,"No","Needs Review"))) ->  | P54: Yes | Q54: No | R54: 0 | S54: 0
B55: 42 | N55: =IF(AND(G55>='A - Contractor Summary'!$C$36,G55<='A - Contractor Summary'!$C$38),"Yes",IF(G55<'A - Contractor Summary'!$C$36,"No",IF(G55>'A - Contractor Summary'!$C$39,"",""))) -> No | O55: =IF(OR(N55="Yes",N55="No")*AND(G55<'A - Contractor Summary'!$C$39),"",IF(AND(G55>'A - Contractor Summary'!$C$39,G55<'A - Contractor Summary'!$C$42),"Yes",IF(G55>'A - Contractor Summary'!$C$42,"No","Needs Review"))) ->  | P55: No | Q55: No | R55: 0 | S55: 0
B56: 43 | N56: =IF(AND(G56>='A - Contractor Summary'!$C$36,G56<='A - Contractor Summary'!$C$38),"Yes",IF(G56<'A - Contractor Summary'!$C$36,"No",IF(G56>'A - Contractor Summary'!$C$39,"",""))) -> No | O56: =IF(OR(N56="Yes",N56="No")*AND(G56<'A - Contractor Summary'!$C$39),"",IF(AND(G56>'A - Contractor Summary'!$C$39,G56<'A - Contractor Summary'!$C$42),"Yes",IF(G56>'A - Contractor Summary'!$C$42,"No","Needs Review"))) ->  | P56: Yes | Q56: No | R56: 0 | S56: 0
B57: 44 | N57: =IF(AND(G57>='A - Contractor Summary'!$C$36,G57<='A - Contractor Summary'!$C$38),"Yes",IF(G57<'A - Contractor Summary'!$C$36,"No",IF(G57>'A - Contractor Summary'!$C$39,"",""))) -> No | O57: =IF(OR(N57="Yes",N57="No")*AND(G57<'A - Contractor Summary'!$C$39),"",IF(AND(G57>'A - Contractor Summary'!$C$39,G57<'A - Contractor Summary'!$C$42),"Yes",IF(G57>'A - Contractor Summary'!$C$42,"No","Needs Review"))) ->  | P57: Yes | Q57: No | R57: 0 | S57: 0
B58: 46 | N58: =IF(AND(G58>='A - Contractor Summary'!$C$36,G58<='A - Contractor Summary'!$C$38),"Yes",IF(G58<'A - Contractor Summary'!$C$36,"No",IF(G58>'A - Contractor Summary'!$C$39,"",""))) -> No | O58: =IF(OR(N58="Yes",N58="No")*AND(G58<'A - Contractor Summary'!$C$39),"",IF(AND(G58>'A - Contractor Summary'!$C$39,G58<'A - Contractor Summary'!$C$42),"Yes",IF(G58>'A - Contractor Summary'!$C$42,"No","Needs Review"))) ->  | P58: Yes | Q58: No | R58: 0 | S58: 0
B59: 47 | N59: =IF(AND(G59>='A - Contractor Summary'!$C$36,G59<='A - Contractor Summary'!$C$38),"Yes",IF(G59<'A - Contractor Summary'!$C$36,"No",IF(G59>'A - Contractor Summary'!$C$39,"",""))) -> No | O59: =IF(OR(N59="Yes",N59="No")*AND(G59<'A - Contractor Summary'!$C$39),"",IF(AND(G59>'A - Contractor Summary'!$C$39,G59<'A - Contractor Summary'!$C$42),"Yes",IF(G59>'A - Contractor Summary'!$C$42,"No","Needs Review"))) ->  | P59: Yes | Q59: No | R59: 0 | S59: 0
B60: 48 | N60: =IF(AND(G60>='A - Contractor Summary'!$C$36,G60<='A - Contractor Summary'!$C$38),"Yes",IF(G60<'A - Contractor Summary'!$C$36,"No",IF(G60>'A - Contractor Summary'!$C$39,"",""))) -> No | O60: =IF(OR(N60="Yes",N60="No")*AND(G60<'A - Contractor Summary'!$C$39),"",IF(AND(G60>'A - Contractor Summary'!$C$39,G60<'A - Contractor Summary'!$C$42),"Yes",IF(G60>'A - Contractor Summary'!$C$42,"No","Needs Review"))) ->  | P60: Yes | Q60: No | R60: 0 | S60: 0
B61: 49 | N61: =IF(AND(G61>='A - Contractor Summary'!$C$36,G61<='A - Contractor Summary'!$C$38),"Yes",IF(G61<'A - Contractor Summary'!$C$36,"No",IF(G61>'A - Contractor Summary'!$C$39,"",""))) -> No | O61: =IF(OR(N61="Yes",N61="No")*AND(G61<'A - Contractor Summary'!$C$39),"",IF(AND(G61>'A - Contractor Summary'!$C$39,G61<'A - Contractor Summary'!$C$42),"Yes",IF(G61>'A - Contractor Summary'!$C$42,"No","Needs Review"))) ->  | P61: Yes | Q61: No | R61: 0 | S61: 0
B62: 50 | N62: =IF(AND(G62>='A - Contractor Summary'!$C$36,G62<='A - Contractor Summary'!$C$38),"Yes",IF(G62<'A - Contractor Summary'!$C$36,"No",IF(G62>'A - Contractor Summary'!$C$39,"",""))) -> No | O62: =IF(OR(N62="Yes",N62="No")*AND(G62<'A - Contractor Summary'!$C$39),"",IF(AND(G62>'A - Contractor Summary'!$C$39,G62<'A - Contractor Summary'!$C$42),"Yes",IF(G62>'A - Contractor Summary'!$C$42,"No","Needs Review"))) ->  | P62: Yes | Q62: No | R62: 0 | S62: 0
B63: 51 | N63: =IF(AND(G63>='A - Contractor Summary'!$C$36,G63<='A - Contractor Summary'!$C$38),"Yes",IF(G63<'A - Contractor Summary'!$C$36,"No",IF(G63>'A - Contractor Summary'!$C$39,"",""))) -> No | O63: =IF(OR(N63="Yes",N63="No")*AND(G63<'A - Contractor Summary'!$C$39),"",IF(AND(G63>'A - Contractor Summary'!$C$39,G63<'A - Contractor Summary'!$C$42),"Yes",IF(G63>'A - Contractor Summary'!$C$42,"No","Needs Review"))) ->  | P63: Yes | Q63: No | R63: 0 | S63: 0
B64: 52 | N64: =IF(AND(G64>='A - Contractor Summary'!$C$36,G64<='A - Contractor Summary'!$C$38),"Yes",IF(G64<'A - Contractor Summary'!$C$36,"No",IF(G64>'A - Contractor Summary'!$C$39,"",""))) -> No | O64: =IF(OR(N64="Yes",N64="No")*AND(G64<'A - Contractor Summary'!$C$39),"",IF(AND(G64>'A - Contractor Summary'!$C$39,G64<'A - Contractor Summary'!$C$42),"Yes",IF(G64>'A - Contractor Summary'!$C$42,"No","Needs Review"))) ->  | P64: Yes | Q64: No | R64: 0 | S64: 0
B65: 53 | N65: =IF(AND(G65>='A - Contractor Summary'!$C$36,G65<='A - Contractor Summary'!$C$38),"Yes",IF(G65<'A - Contractor Summary'!$C$36,"No",IF(G65>'A - Contractor Summary'!$C$39,"",""))) -> No | O65: =IF(OR(N65="Yes",N65="No")*AND(G65<'A - Contractor Summary'!$C$39),"",IF(AND(G65>'A - Contractor Summary'!$C$39,G65<'A - Contractor Summary'!$C$42),"Yes",IF(G65>'A - Contractor Summary'!$C$42,"No","Needs Review"))) ->  | P65: Yes | Q65: No | R65: 0 | S65: 0
B66: 54 | N66: =IF(AND(G66>='A - Contractor Summary'!$C$36,G66<='A - Contractor Summary'!$C$38),"Yes",IF(G66<'A - Contractor Summary'!$C$36,"No",IF(G66>'A - Contractor Summary'!$C$39,"",""))) -> No | O66: =IF(OR(N66="Yes",N66="No")*AND(G66<'A - Contractor Summary'!$C$39),"",IF(AND(G66>'A - Contractor Summary'!$C$39,G66<'A - Contractor Summary'!$C$42),"Yes",IF(G66>'A - Contractor Summary'!$C$42,"No","Needs Review"))) ->  | P66: Yes | Q66: No | R66: 0 | S66: 0
B67: 55 | N67: =IF(AND(G67>='A - Contractor Summary'!$C$36,G67<='A - Contractor Summary'!$C$38),"Yes",IF(G67<'A - Contractor Summary'!$C$36,"No",IF(G67>'A - Contractor Summary'!$C$39,"",""))) -> No | O67: =IF(OR(N67="Yes",N67="No")*AND(G67<'A - Contractor Summary'!$C$39),"",IF(AND(G67>'A - Contractor Summary'!$C$39,G67<'A - Contractor Summary'!$C$42),"Yes",IF(G67>'A - Contractor Summary'!$C$42,"No","Needs Review"))) ->  | P67: Yes | Q67: No | R67: 0 | S67: 0
B68: 56 | N68: =IF(AND(G68>='A - Contractor Summary'!$C$36,G68<='A - Contractor Summary'!$C$38),"Yes",IF(G68<'A - Contractor Summary'!$C$36,"No",IF(G68>'A - Contractor Summary'!$C$39,"",""))) -> No | O68: =IF(OR(N68="Yes",N68="No")*AND(G68<'A - Contractor Summary'!$C$39),"",IF(AND(G68>'A - Contractor Summary'!$C$39,G68<'A - Contractor Summary'!$C$42),"Yes",IF(G68>'A - Contractor Summary'!$C$42,"No","Needs Review"))) ->  | P68: Yes | Q68: No | R68: 0 | S68: 0
B69: 57 | N69: =IF(AND(G69>='A - Contractor Summary'!$C$36,G69<='A - Contractor Summary'!$C$38),"Yes",IF(G69<'A - Contractor Summary'!$C$36,"No",IF(G69>'A - Contractor Summary'!$C$39,"",""))) -> No | O69: =IF(OR(N69="Yes",N69="No")*AND(G69<'A - Contractor Summary'!$C$39),"",IF(AND(G69>'A - Contractor Summary'!$C$39,G69<'A - Contractor Summary'!$C$42),"Yes",IF(G69>'A - Contractor Summary'!$C$42,"No","Needs Review"))) ->  | P69: Yes | Q69: No | R69: 0 | S69: 0
B70: 58 | N70: =IF(AND(G70>='A - Contractor Summary'!$C$36,G70<='A - Contractor Summary'!$C$38),"Yes",IF(G70<'A - Contractor Summary'!$C$36,"No",IF(G70>'A - Contractor Summary'!$C$39,"",""))) -> No | O70: =IF(OR(N70="Yes",N70="No")*AND(G70<'A - Contractor Summary'!$C$39),"",IF(AND(G70>'A - Contractor Summary'!$C$39,G70<'A - Contractor Summary'!$C$42),"Yes",IF(G70>'A - Contractor Summary'!$C$42,"No","Needs Review"))) ->  | P70: No | Q70: Needs Review | R70: 0 | S70: 0
B71: 59 | N71: =IF(AND(G71>='A - Contractor Summary'!$C$36,G71<='A - Contractor Summary'!$C$38),"Yes",IF(G71<'A - Contractor Summary'!$C$36,"No",IF(G71>'A - Contractor Summary'!$C$39,"",""))) -> No | O71: =IF(OR(N71="Yes",N71="No")*AND(G71<'A - Contractor Summary'!$C$39),"",IF(AND(G71>'A - Contractor Summary'!$C$39,G71<'A - Contractor Summary'!$C$42),"Yes",IF(G71>'A - Contractor Summary'!$C$42,"No","Needs Review"))) ->  | P71: Yes | Q71: No | R71: 0 | S71: 0
B72: 61 | N72: =IF(AND(G72>='A - Contractor Summary'!$C$36,G72<='A - Contractor Summary'!$C$38),"Yes",IF(G72<'A - Contractor Summary'!$C$36,"No",IF(G72>'A - Contractor Summary'!$C$39,"",""))) -> No | O72: =IF(OR(N72="Yes",N72="No")*AND(G72<'A - Contractor Summary'!$C$39),"",IF(AND(G72>'A - Contractor Summary'!$C$39,G72<'A - Contractor Summary'!$C$42),"Yes",IF(G72>'A - Contractor Summary'!$C$42,"No","Needs Review"))) ->  | P72: Yes | Q72: No | R72: 0 | S72: 0
B73: 62 | N73: =IF(AND(G73>='A - Contractor Summary'!$C$36,G73<='A - Contractor Summary'!$C$38),"Yes",IF(G73<'A - Contractor Summary'!$C$36,"No",IF(G73>'A - Contractor Summary'!$C$39,"",""))) -> No | O73: =IF(OR(N73="Yes",N73="No")*AND(G73<'A - Contractor Summary'!$C$39),"",IF(AND(G73>'A - Contractor Summary'!$C$39,G73<'A - Contractor Summary'!$C$42),"Yes",IF(G73>'A - Contractor Summary'!$C$42,"No","Needs Review"))) ->  | P73: Yes | Q73: No | R73: 0 | S73: 0
B74: 63 | N74: =IF(AND(G74>='A - Contractor Summary'!$C$36,G74<='A - Contractor Summary'!$C$38),"Yes",IF(G74<'A - Contractor Summary'!$C$36,"No",IF(G74>'A - Contractor Summary'!$C$39,"",""))) -> No | O74: =IF(OR(N74="Yes",N74="No")*AND(G74<'A - Contractor Summary'!$C$39),"",IF(AND(G74>'A - Contractor Summary'!$C$39,G74<'A - Contractor Summary'!$C$42),"Yes",IF(G74>'A - Contractor Summary'!$C$42,"No","Needs Review"))) ->  | P74: Yes | Q74: No | R74: 0 | S74: 0
B75: 64 | N75: =IF(AND(G75>='A - Contractor Summary'!$C$36,G75<='A - Contractor Summary'!$C$38),"Yes",IF(G75<'A - Contractor Summary'!$C$36,"No",IF(G75>'A - Contractor Summary'!$C$39,"",""))) -> No | O75: =IF(OR(N75="Yes",N75="No")*AND(G75<'A - Contractor Summary'!$C$39),"",IF(AND(G75>'A - Contractor Summary'!$C$39,G75<'A - Contractor Summary'!$C$42),"Yes",IF(G75>'A - Contractor Summary'!$C$42,"No","Needs Review"))) ->  | P75: Yes | Q75: No | R75: 0 | S75: 0
B76: 65 | N76: =IF(AND(G76>='A - Contractor Summary'!$C$36,G76<='A - Contractor Summary'!$C$38),"Yes",IF(G76<'A - Contractor Summary'!$C$36,"No",IF(G76>'A - Contractor Summary'!$C$39,"",""))) -> No | O76: =IF(OR(N76="Yes",N76="No")*AND(G76<'A - Contractor Summary'!$C$39),"",IF(AND(G76>'A - Contractor Summary'!$C$39,G76<'A - Contractor Summary'!$C$42),"Yes",IF(G76>'A - Contractor Summary'!$C$42,"No","Needs Review"))) ->  | P76: No | Q76: No | R76: 0 | S76: 0
B77: 66 | N77: =IF(AND(G77>='A - Contractor Summary'!$C$36,G77<='A - Contractor Summary'!$C$38),"Yes",IF(G77<'A - Contractor Summary'!$C$36,"No",IF(G77>'A - Contractor Summary'!$C$39,"",""))) -> No | O77: =IF(OR(N77="Yes",N77="No")*AND(G77<'A - Contractor Summary'!$C$39),"",IF(AND(G77>'A - Contractor Summary'!$C$39,G77<'A - Contractor Summary'!$C$42),"Yes",IF(G77>'A - Contractor Summary'!$C$42,"No","Needs Review"))) ->  | P77: Yes | Q77: No | R77: 0 | S77: 0
B78: 67 | N78: =IF(AND(G78>='A - Contractor Summary'!$C$36,G78<='A - Contractor Summary'!$C$38),"Yes",IF(G78<'A - Contractor Summary'!$C$36,"No",IF(G78>'A - Contractor Summary'!$C$39,"",""))) -> No | O78: =IF(OR(N78="Yes",N78="No")*AND(G78<'A - Contractor Summary'!$C$39),"",IF(AND(G78>'A - Contractor Summary'!$C$39,G78<'A - Contractor Summary'!$C$42),"Yes",IF(G78>'A - Contractor Summary'!$C$42,"No","Needs Review"))) ->  | P78: No | Q78: Needs Review | R78: =IF(Q78="Yes",K78,0) -> 0 | S78: =IF(Q78="Needs Review",K78,0) -> 0
B79: 68 | N79: =IF(AND(G79>='A - Contractor Summary'!$C$36,G79<='A - Contractor Summary'!$C$38),"Yes",IF(G79<'A - Contractor Summary'!$C$36,"No",IF(G79>'A - Contractor Summary'!$C$39,"",""))) -> No | O79: =IF(OR(N79="Yes",N79="No")*AND(G79<'A - Contractor Summary'!$C$39),"",IF(AND(G79>'A - Contractor Summary'!$C$39,G79<'A - Contractor Summary'!$C$42),"Yes",IF(G79>'A - Contractor Summary'!$C$42,"No","Needs Review"))) ->  | P79: Yes | Q79: =IF(AND(P79="Yes",L79="Yes",M79="Yes")*OR(O79="Yes",N79="Yes"),"Yes",IF(OR(L79="No",N79="No",O79="No",P79="No",M79="No"),"No","Needs Review")) -> No | R79: 0 | S79: 0
B80: 69 | N80: =IF(AND(G80>='A - Contractor Summary'!$C$36,G80<='A - Contractor Summary'!$C$38),"Yes",IF(G80<'A - Contractor Summary'!$C$36,"No",IF(G80>'A - Contractor Summary'!$C$39,"",""))) -> No | O80: =IF(OR(N80="Yes",N80="No")*AND(G80<'A - Contractor Summary'!$C$39),"",IF(AND(G80>'A - Contractor Summary'!$C$39,G80<'A - Contractor Summary'!$C$42),"Yes",IF(G80>'A - Contractor Summary'!$C$42,"No","Needs Review"))) ->  | P80: Yes | Q80: No | R80: 0 | S80: 0
B81: 70 | N81: =IF(AND(G81>='A - Contractor Summary'!$C$36,G81<='A - Contractor Summary'!$C$38),"Yes",IF(G81<'A - Contractor Summary'!$C$36,"No",IF(G81>'A - Contractor Summary'!$C$39,"",""))) -> No | O81: =IF(OR(N81="Yes",N81="No")*AND(G81<'A - Contractor Summary'!$C$39),"",IF(AND(G81>'A - Contractor Summary'!$C$39,G81<'A - Contractor Summary'!$C$42),"Yes",IF(G81>'A - Contractor Summary'!$C$42,"No","Needs Review"))) ->  | P81: Yes | Q81: No | R81: 0 | S81: 0
B82: 71 | N82: =IF(AND(G82>='A - Contractor Summary'!$C$36,G82<='A - Contractor Summary'!$C$38),"Yes",IF(G82<'A - Contractor Summary'!$C$36,"No",IF(G82>'A - Contractor Summary'!$C$39,"",""))) -> No | O82: =IF(OR(N82="Yes",N82="No")*AND(G82<'A - Contractor Summary'!$C$39),"",IF(AND(G82>'A - Contractor Summary'!$C$39,G82<'A - Contractor Summary'!$C$42),"Yes",IF(G82>'A - Contractor Summary'!$C$42,"No","Needs Review"))) ->  | P82: Yes | Q82: No | R82: 0 | S82: 0
B83: 72 | N83: =IF(AND(G83>='A - Contractor Summary'!$C$36,G83<='A - Contractor Summary'!$C$38),"Yes",IF(G83<'A - Contractor Summary'!$C$36,"No",IF(G83>'A - Contractor Summary'!$C$39,"",""))) -> No | O83: =IF(OR(N83="Yes",N83="No")*AND(G83<'A - Contractor Summary'!$C$39),"",IF(AND(G83>'A - Contractor Summary'!$C$39,G83<'A - Contractor Summary'!$C$42),"Yes",IF(G83>'A - Contractor Summary'!$C$42,"No","Needs Review"))) ->  | P83: Yes | Q83: No | R83: 0 | S83: 0
B84: 73 | N84: =IF(AND(G84>='A - Contractor Summary'!$C$36,G84<='A - Contractor Summary'!$C$38),"Yes",IF(G84<'A - Contractor Summary'!$C$36,"No",IF(G84>'A - Contractor Summary'!$C$39,"",""))) -> No | O84: =IF(OR(N84="Yes",N84="No")*AND(G84<'A - Contractor Summary'!$C$39),"",IF(AND(G84>'A - Contractor Summary'!$C$39,G84<'A - Contractor Summary'!$C$42),"Yes",IF(G84>'A - Contractor Summary'!$C$42,"No","Needs Review"))) ->  | P84: No | Q84: Needs Review | R84: 0 | S84: 0
B85: 74 | N85: =IF(AND(G85>='A - Contractor Summary'!$C$36,G85<='A - Contractor Summary'!$C$38),"Yes",IF(G85<'A - Contractor Summary'!$C$36,"No",IF(G85>'A - Contractor Summary'!$C$39,"",""))) -> No | O85: =IF(OR(N85="Yes",N85="No")*AND(G85<'A - Contractor Summary'!$C$39),"",IF(AND(G85>'A - Contractor Summary'!$C$39,G85<'A - Contractor Summary'!$C$42),"Yes",IF(G85>'A - Contractor Summary'!$C$42,"No","Needs Review"))) ->  | P85: No | Q85: No | R85: 0 | S85: 0
B86: 75 | N86: =IF(AND(G86>='A - Contractor Summary'!$C$36,G86<='A - Contractor Summary'!$C$38),"Yes",IF(G86<'A - Contractor Summary'!$C$36,"No",IF(G86>'A - Contractor Summary'!$C$39,"",""))) -> No | O86: =IF(OR(N86="Yes",N86="No")*AND(G86<'A - Contractor Summary'!$C$39),"",IF(AND(G86>'A - Contractor Summary'!$C$39,G86<'A - Contractor Summary'!$C$42),"Yes",IF(G86>'A - Contractor Summary'!$C$42,"No","Needs Review"))) ->  | P86: Yes | Q86: No | R86: 0 | S86: 0
B87: 76 | N87: =IF(AND(G87>='A - Contractor Summary'!$C$36,G87<='A - Contractor Summary'!$C$38),"Yes",IF(G87<'A - Contractor Summary'!$C$36,"No",IF(G87>'A - Contractor Summary'!$C$39,"",""))) -> No | O87: =IF(OR(N87="Yes",N87="No")*AND(G87<'A - Contractor Summary'!$C$39),"",IF(AND(G87>'A - Contractor Summary'!$C$39,G87<'A - Contractor Summary'!$C$42),"Yes",IF(G87>'A - Contractor Summary'!$C$42,"No","Needs Review"))) ->  | P87: Yes | Q87: No | R87: 0 | S87: 0
B88: 77 | N88: =IF(AND(G88>='A - Contractor Summary'!$C$36,G88<='A - Contractor Summary'!$C$38),"Yes",IF(G88<'A - Contractor Summary'!$C$36,"No",IF(G88>'A - Contractor Summary'!$C$39,"",""))) -> No | O88: =IF(OR(N88="Yes",N88="No")*AND(G88<'A - Contractor Summary'!$C$39),"",IF(AND(G88>'A - Contractor Summary'!$C$39,G88<'A - Contractor Summary'!$C$42),"Yes",IF(G88>'A - Contractor Summary'!$C$42,"No","Needs Review"))) ->  | P88: Yes | Q88: No | R88: 0 | S88: 0
B89: 78 | N89: =IF(AND(G89>='A - Contractor Summary'!$C$36,G89<='A - Contractor Summary'!$C$38),"Yes",IF(G89<'A - Contractor Summary'!$C$36,"No",IF(G89>'A - Contractor Summary'!$C$39,"",""))) -> No | O89: =IF(OR(N89="Yes",N89="No")*AND(G89<'A - Contractor Summary'!$C$39),"",IF(AND(G89>'A - Contractor Summary'!$C$39,G89<'A - Contractor Summary'!$C$42),"Yes",IF(G89>'A - Contractor Summary'!$C$42,"No","Needs Review"))) ->  | P89: Yes | Q89: No | R89: 0 | S89: 0
B90: 79 | N90: =IF(AND(G90>='A - Contractor Summary'!$C$36,G90<='A - Contractor Summary'!$C$38),"Yes",IF(G90<'A - Contractor Summary'!$C$36,"No",IF(G90>'A - Contractor Summary'!$C$39,"",""))) -> No | O90: =IF(OR(N90="Yes",N90="No")*AND(G90<'A - Contractor Summary'!$C$39),"",IF(AND(G90>'A - Contractor Summary'!$C$39,G90<'A - Contractor Summary'!$C$42),"Yes",IF(G90>'A - Contractor Summary'!$C$42,"No","Needs Review"))) ->  | P90: Yes | Q90: No | R90: 0 | S90: 0
B91: 80 | N91: =IF(AND(G91>='A - Contractor Summary'!$C$36,G91<='A - Contractor Summary'!$C$38),"Yes",IF(G91<'A - Contractor Summary'!$C$36,"No",IF(G91>'A - Contractor Summary'!$C$39,"",""))) -> No | O91: =IF(OR(N91="Yes",N91="No")*AND(G91<'A - Contractor Summary'!$C$39),"",IF(AND(G91>'A - Contractor Summary'!$C$39,G91<'A - Contractor Summary'!$C$42),"Yes",IF(G91>'A - Contractor Summary'!$C$42,"No","Needs Review"))) ->  | P91: No | Q91: No | R91: 0 | S91: 0
B92: 81 | N92: =IF(AND(G92>='A - Contractor Summary'!$C$36,G92<='A - Contractor Summary'!$C$38),"Yes",IF(G92<'A - Contractor Summary'!$C$36,"No",IF(G92>'A - Contractor Summary'!$C$39,"",""))) -> No | O92: =IF(OR(N92="Yes",N92="No")*AND(G92<'A - Contractor Summary'!$C$39),"",IF(AND(G92>'A - Contractor Summary'!$C$39,G92<'A - Contractor Summary'!$C$42),"Yes",IF(G92>'A - Contractor Summary'!$C$42,"No","Needs Review"))) ->  | P92: No | Q92: No | R92: 0 | S92: 0
B93: 82 | N93: =IF(AND(G93>='A - Contractor Summary'!$C$36,G93<='A - Contractor Summary'!$C$38),"Yes",IF(G93<'A - Contractor Summary'!$C$36,"No",IF(G93>'A - Contractor Summary'!$C$39,"",""))) -> No | O93: =IF(OR(N93="Yes",N93="No")*AND(G93<'A - Contractor Summary'!$C$39),"",IF(AND(G93>'A - Contractor Summary'!$C$39,G93<'A - Contractor Summary'!$C$42),"Yes",IF(G93>'A - Contractor Summary'!$C$42,"No","Needs Review"))) ->  | P93: No | Q93: No | R93: 0 | S93: 0
B94: 83 | N94: =IF(AND(G94>='A - Contractor Summary'!$C$36,G94<='A - Contractor Summary'!$C$38),"Yes",IF(G94<'A - Contractor Summary'!$C$36,"No",IF(G94>'A - Contractor Summary'!$C$39,"",""))) -> No | O94: =IF(OR(N94="Yes",N94="No")*AND(G94<'A - Contractor Summary'!$C$39),"",IF(AND(G94>'A - Contractor Summary'!$C$39,G94<'A - Contractor Summary'!$C$42),"Yes",IF(G94>'A - Contractor Summary'!$C$42,"No","Needs Review"))) ->  | P94: No | Q94: =IF(AND(P94="Yes",L94="Yes",M94="Yes")*OR(O94="Yes",N94="Yes"),"Yes",IF(OR(L94="No",N94="No",O94="No",P94="No",M94="No"),"No","Needs Review")) -> No | R94: =IF(Q94="Yes",K94,0) -> 0 | S94: =IF(Q94="Needs Review",K94,0) -> 0
B95: 84 | N95: =IF(AND(G95>='A - Contractor Summary'!$C$36,G95<='A - Contractor Summary'!$C$38),"Yes",IF(G95<'A - Contractor Summary'!$C$36,"No",IF(G95>'A - Contractor Summary'!$C$39,"",""))) -> No | O95: =IF(OR(N95="Yes",N95="No")*AND(G95<'A - Contractor Summary'!$C$39),"",IF(AND(G95>'A - Contractor Summary'!$C$39,G95<'A - Contractor Summary'!$C$42),"Yes",IF(G95>'A - Contractor Summary'!$C$42,"No","Needs Review"))) ->  | P95: No | Q95: No | R95: 0 | S95: 0
B96: 85 | N96: =IF(AND(G96>='A - Contractor Summary'!$C$36,G96<='A - Contractor Summary'!$C$38),"Yes",IF(G96<'A - Contractor Summary'!$C$36,"No",IF(G96>'A - Contractor Summary'!$C$39,"",""))) -> No | O96: =IF(OR(N96="Yes",N96="No")*AND(G96<'A - Contractor Summary'!$C$39),"",IF(AND(G96>'A - Contractor Summary'!$C$39,G96<'A - Contractor Summary'!$C$42),"Yes",IF(G96>'A - Contractor Summary'!$C$42,"No","Needs Review"))) ->  | P96: No | Q96: No | R96: 0 | S96: 0
B97: 86 | N97: =IF(AND(G97>='A - Contractor Summary'!$C$36,G97<='A - Contractor Summary'!$C$38),"Yes",IF(G97<'A - Contractor Summary'!$C$36,"No",IF(G97>'A - Contractor Summary'!$C$39,"",""))) -> No | O97: =IF(OR(N97="Yes",N97="No")*AND(G97<'A - Contractor Summary'!$C$39),"",IF(AND(G97>'A - Contractor Summary'!$C$39,G97<'A - Contractor Summary'!$C$42),"Yes",IF(G97>'A - Contractor Summary'!$C$42,"No","Needs Review"))) ->  | P97: Yes | Q97: No | R97: 0 | S97: 0
B98: 87 | N98: =IF(AND(G98>='A - Contractor Summary'!$C$36,G98<='A - Contractor Summary'!$C$38),"Yes",IF(G98<'A - Contractor Summary'!$C$36,"No",IF(G98>'A - Contractor Summary'!$C$39,"",""))) -> No | O98: =IF(OR(N98="Yes",N98="No")*AND(G98<'A - Contractor Summary'!$C$39),"",IF(AND(G98>'A - Contractor Summary'!$C$39,G98<'A - Contractor Summary'!$C$42),"Yes",IF(G98>'A - Contractor Summary'!$C$42,"No","Needs Review"))) ->  | P98: Yes | Q98: No | R98: 0 | S98: 0
B99: 88 | N99: =IF(AND(G99>='A - Contractor Summary'!$C$36,G99<='A - Contractor Summary'!$C$38),"Yes",IF(G99<'A - Contractor Summary'!$C$36,"No",IF(G99>'A - Contractor Summary'!$C$39,"",""))) -> No | O99: =IF(OR(N99="Yes",N99="No")*AND(G99<'A - Contractor Summary'!$C$39),"",IF(AND(G99>'A - Contractor Summary'!$C$39,G99<'A - Contractor Summary'!$C$42),"Yes",IF(G99>'A - Contractor Summary'!$C$42,"No","Needs Review"))) ->  | P99: Yes | Q99: No | R99: 0 | S99: 0
B100: 89 | N100: =IF(AND(G100>='A - Contractor Summary'!$C$36,G100<='A - Contractor Summary'!$C$38),"Yes",IF(G100<'A - Contractor Summary'!$C$36,"No",IF(G100>'A - Contractor Summary'!$C$39,"",""))) -> No | O100: =IF(OR(N100="Yes",N100="No")*AND(G100<'A - Contractor Summary'!$C$39),"",IF(AND(G100>'A - Contractor Summary'!$C$39,G100<'A - Contractor Summary'!$C$42),"Yes",IF(G100>'A - Contractor Summary'!$C$42,"No","Needs Review"))) ->  | P100: Yes | Q100: No | R100: 0 | S100: 0
B101: 90 | N101: =IF(AND(G101>='A - Contractor Summary'!$C$36,G101<='A - Contractor Summary'!$C$38),"Yes",IF(G101<'A - Contractor Summary'!$C$36,"No",IF(G101>'A - Contractor Summary'!$C$39,"",""))) -> No | O101: =IF(OR(N101="Yes",N101="No")*AND(G101<'A - Contractor Summary'!$C$39),"",IF(AND(G101>'A - Contractor Summary'!$C$39,G101<'A - Contractor Summary'!$C$42),"Yes",IF(G101>'A - Contractor Summary'!$C$42,"No","Needs Review"))) ->  | P101: Yes | Q101: No | R101: 0 | S101: 0
B102: 91 | N102: =IF(AND(G102>='A - Contractor Summary'!$C$36,G102<='A - Contractor Summary'!$C$38),"Yes",IF(G102<'A - Contractor Summary'!$C$36,"No",IF(G102>'A - Contractor Summary'!$C$39,"",""))) -> No | O102: =IF(OR(N102="Yes",N102="No")*AND(G102<'A - Contractor Summary'!$C$39),"",IF(AND(G102>'A - Contractor Summary'!$C$39,G102<'A - Contractor Summary'!$C$42),"Yes",IF(G102>'A - Contractor Summary'!$C$42,"No","Needs Review"))) ->  | P102: Yes | Q102: No | R102: 0 | S102: 0
B103: 92 | N103: =IF(AND(G103>='A - Contractor Summary'!$C$36,G103<='A - Contractor Summary'!$C$38),"Yes",IF(G103<'A - Contractor Summary'!$C$36,"No",IF(G103>'A - Contractor Summary'!$C$39,"",""))) -> No | O103: =IF(OR(N103="Yes",N103="No")*AND(G103<'A - Contractor Summary'!$C$39),"",IF(AND(G103>'A - Contractor Summary'!$C$39,G103<'A - Contractor Summary'!$C$42),"Yes",IF(G103>'A - Contractor Summary'!$C$42,"No","Needs Review"))) ->  | P103: Yes | Q103: No | R103: 0 | S103: 0
B104: 93 | N104: =IF(AND(G104>='A - Contractor Summary'!$C$36,G104<='A - Contractor Summary'!$C$38),"Yes",IF(G104<'A - Contractor Summary'!$C$36,"No",IF(G104>'A - Contractor Summary'!$C$39,"",""))) -> No | O104: =IF(OR(N104="Yes",N104="No")*AND(G104<'A - Contractor Summary'!$C$39),"",IF(AND(G104>'A - Contractor Summary'!$C$39,G104<'A - Contractor Summary'!$C$42),"Yes",IF(G104>'A - Contractor Summary'!$C$42,"No","Needs Review"))) ->  | P104: Yes | Q104: No | R104: 0 | S104: 0
B105: 94 | N105: =IF(AND(G105>='A - Contractor Summary'!$C$36,G105<='A - Contractor Summary'!$C$38),"Yes",IF(G105<'A - Contractor Summary'!$C$36,"No",IF(G105>'A - Contractor Summary'!$C$39,"",""))) -> No | O105: =IF(OR(N105="Yes",N105="No")*AND(G105<'A - Contractor Summary'!$C$39),"",IF(AND(G105>'A - Contractor Summary'!$C$39,G105<'A - Contractor Summary'!$C$42),"Yes",IF(G105>'A - Contractor Summary'!$C$42,"No","Needs Review"))) ->  | P105: Yes | Q105: No | R105: 0 | S105: 0
B106: 95 | N106: =IF(AND(G106>='A - Contractor Summary'!$C$36,G106<='A - Contractor Summary'!$C$38),"Yes",IF(G106<'A - Contractor Summary'!$C$36,"No",IF(G106>'A - Contractor Summary'!$C$39,"",""))) -> No | O106: =IF(OR(N106="Yes",N106="No")*AND(G106<'A - Contractor Summary'!$C$39),"",IF(AND(G106>'A - Contractor Summary'!$C$39,G106<'A - Contractor Summary'!$C$42),"Yes",IF(G106>'A - Contractor Summary'!$C$42,"No","Needs Review"))) ->  | P106: Yes | Q106: No | R106: 0 | S106: 0
B107: 96 | N107: =IF(AND(G107>='A - Contractor Summary'!$C$36,G107<='A - Contractor Summary'!$C$38),"Yes",IF(G107<'A - Contractor Summary'!$C$36,"No",IF(G107>'A - Contractor Summary'!$C$39,"",""))) -> No | O107: =IF(OR(N107="Yes",N107="No")*AND(G107<'A - Contractor Summary'!$C$39),"",IF(AND(G107>'A - Contractor Summary'!$C$39,G107<'A - Contractor Summary'!$C$42),"Yes",IF(G107>'A - Contractor Summary'!$C$42,"No","Needs Review"))) ->  | P107: Yes | Q107: No | R107: 0 | S107: 0
B108: 97 | N108: =IF(AND(G108>='A - Contractor Summary'!$C$36,G108<='A - Contractor Summary'!$C$38),"Yes",IF(G108<'A - Contractor Summary'!$C$36,"No",IF(G108>'A - Contractor Summary'!$C$39,"",""))) -> No | O108: =IF(OR(N108="Yes",N108="No")*AND(G108<'A - Contractor Summary'!$C$39),"",IF(AND(G108>'A - Contractor Summary'!$C$39,G108<'A - Contractor Summary'!$C$42),"Yes",IF(G108>'A - Contractor Summary'!$C$42,"No","Needs Review"))) ->  | P108: Yes | Q108: No | R108: 0 | S108: 0
B109: 98 | N109: =IF(AND(G109>='A - Contractor Summary'!$C$36,G109<='A - Contractor Summary'!$C$38),"Yes",IF(G109<'A - Contractor Summary'!$C$36,"No",IF(G109>'A - Contractor Summary'!$C$39,"",""))) -> No | O109: =IF(OR(N109="Yes",N109="No")*AND(G109<'A - Contractor Summary'!$C$39),"",IF(AND(G109>'A - Contractor Summary'!$C$39,G109<'A - Contractor Summary'!$C$42),"Yes",IF(G109>'A - Contractor Summary'!$C$42,"No","Needs Review"))) ->  | P109: Yes | Q109: No | R109: 0 | S109: 0
B110: 99 | N110: =IF(AND(G110>='A - Contractor Summary'!$C$36,G110<='A - Contractor Summary'!$C$38),"Yes",IF(G110<'A - Contractor Summary'!$C$36,"No",IF(G110>'A - Contractor Summary'!$C$39,"",""))) -> No | O110: =IF(OR(N110="Yes",N110="No")*AND(G110<'A - Contractor Summary'!$C$39),"",IF(AND(G110>'A - Contractor Summary'!$C$39,G110<'A - Contractor Summary'!$C$42),"Yes",IF(G110>'A - Contractor Summary'!$C$42,"No","Needs Review"))) ->  | P110: Yes | Q110: No | R110: 0 | S110: 0
B111: 100 | N111: =IF(AND(G111>='A - Contractor Summary'!$C$36,G111<='A - Contractor Summary'!$C$38),"Yes",IF(G111<'A - Contractor Summary'!$C$36,"No",IF(G111>'A - Contractor Summary'!$C$39,"",""))) -> No | O111: =IF(OR(N111="Yes",N111="No")*AND(G111<'A - Contractor Summary'!$C$39),"",IF(AND(G111>'A - Contractor Summary'!$C$39,G111<'A - Contractor Summary'!$C$42),"Yes",IF(G111>'A - Contractor Summary'!$C$42,"No","Needs Review"))) ->  | P111: Yes | Q111: No | R111: 0 | S111: 0
B112: 101 | N112: =IF(AND(G112>='A - Contractor Summary'!$C$36,G112<='A - Contractor Summary'!$C$38),"Yes",IF(G112<'A - Contractor Summary'!$C$36,"No",IF(G112>'A - Contractor Summary'!$C$39,"",""))) -> No | O112: =IF(OR(N112="Yes",N112="No")*AND(G112<'A - Contractor Summary'!$C$39),"",IF(AND(G112>'A - Contractor Summary'!$C$39,G112<'A - Contractor Summary'!$C$42),"Yes",IF(G112>'A - Contractor Summary'!$C$42,"No","Needs Review"))) ->  | P112: Yes | Q112: No | R112: 0 | S112: 0
B113: 102 | N113: =IF(AND(G113>='A - Contractor Summary'!$C$36,G113<='A - Contractor Summary'!$C$38),"Yes",IF(G113<'A - Contractor Summary'!$C$36,"No",IF(G113>'A - Contractor Summary'!$C$39,"",""))) -> No | O113: =IF(OR(N113="Yes",N113="No")*AND(G113<'A - Contractor Summary'!$C$39),"",IF(AND(G113>'A - Contractor Summary'!$C$39,G113<'A - Contractor Summary'!$C$42),"Yes",IF(G113>'A - Contractor Summary'!$C$42,"No","Needs Review"))) ->  | P113: Yes | Q113: No | R113: 0 | S113: 0
B114: 103 | N114: =IF(AND(G114>='A - Contractor Summary'!$C$36,G114<='A - Contractor Summary'!$C$38),"Yes",IF(G114<'A - Contractor Summary'!$C$36,"No",IF(G114>'A - Contractor Summary'!$C$39,"",""))) -> No | O114: =IF(OR(N114="Yes",N114="No")*AND(G114<'A - Contractor Summary'!$C$39),"",IF(AND(G114>'A - Contractor Summary'!$C$39,G114<'A - Contractor Summary'!$C$42),"Yes",IF(G114>'A - Contractor Summary'!$C$42,"No","Needs Review"))) ->  | P114: Yes | Q114: No | R114: 0 | S114: 0
B115: 104 | N115: =IF(AND(G115>='A - Contractor Summary'!$C$36,G115<='A - Contractor Summary'!$C$38),"Yes",IF(G115<'A - Contractor Summary'!$C$36,"No",IF(G115>'A - Contractor Summary'!$C$39,"",""))) -> No | O115: =IF(OR(N115="Yes",N115="No")*AND(G115<'A - Contractor Summary'!$C$39),"",IF(AND(G115>'A - Contractor Summary'!$C$39,G115<'A - Contractor Summary'!$C$42),"Yes",IF(G115>'A - Contractor Summary'!$C$42,"No","Needs Review"))) ->  | P115: Yes | Q115: No | R115: 0 | S115: 0
B116: 105 | N116: =IF(AND(G116>='A - Contractor Summary'!$C$36,G116<='A - Contractor Summary'!$C$38),"Yes",IF(G116<'A - Contractor Summary'!$C$36,"No",IF(G116>'A - Contractor Summary'!$C$39,"",""))) -> No | O116: =IF(OR(N116="Yes",N116="No")*AND(G116<'A - Contractor Summary'!$C$39),"",IF(AND(G116>'A - Contractor Summary'!$C$39,G116<'A - Contractor Summary'!$C$42),"Yes",IF(G116>'A - Contractor Summary'!$C$42,"No","Needs Review"))) ->  | P116: Yes | Q116: No | R116: 0 | S116: 0
B117: 106 | N117: =IF(AND(G117>='A - Contractor Summary'!$C$36,G117<='A - Contractor Summary'!$C$38),"Yes",IF(G117<'A - Contractor Summary'!$C$36,"No",IF(G117>'A - Contractor Summary'!$C$39,"",""))) -> No | O117: =IF(OR(N117="Yes",N117="No")*AND(G117<'A - Contractor Summary'!$C$39),"",IF(AND(G117>'A - Contractor Summary'!$C$39,G117<'A - Contractor Summary'!$C$42),"Yes",IF(G117>'A - Contractor Summary'!$C$42,"No","Needs Review"))) ->  | P117: Yes | Q117: No | R117: 0 | S117: 0
B118: 107 | N118: =IF(AND(G118>='A - Contractor Summary'!$C$36,G118<='A - Contractor Summary'!$C$38),"Yes",IF(G118<'A - Contractor Summary'!$C$36,"No",IF(G118>'A - Contractor Summary'!$C$39,"",""))) -> No | O118: =IF(OR(N118="Yes",N118="No")*AND(G118<'A - Contractor Summary'!$C$39),"",IF(AND(G118>'A - Contractor Summary'!$C$39,G118<'A - Contractor Summary'!$C$42),"Yes",IF(G118>'A - Contractor Summary'!$C$42,"No","Needs Review"))) ->  | P118: Yes | Q118: No | R118: 0 | S118: 0
B119: 108 | N119: =IF(AND(G119>='A - Contractor Summary'!$C$36,G119<='A - Contractor Summary'!$C$38),"Yes",IF(G119<'A - Contractor Summary'!$C$36,"No",IF(G119>'A - Contractor Summary'!$C$39,"",""))) -> No | O119: =IF(OR(N119="Yes",N119="No")*AND(G119<'A - Contractor Summary'!$C$39),"",IF(AND(G119>'A - Contractor Summary'!$C$39,G119<'A - Contractor Summary'!$C$42),"Yes",IF(G119>'A - Contractor Summary'!$C$42,"No","Needs Review"))) ->  | P119: Yes | Q119: No | R119: 0 | S119: 0
B120: 109 | N120: =IF(AND(G120>='A - Contractor Summary'!$C$36,G120<='A - Contractor Summary'!$C$38),"Yes",IF(G120<'A - Contractor Summary'!$C$36,"No",IF(G120>'A - Contractor Summary'!$C$39,"",""))) -> No | O120: =IF(OR(N120="Yes",N120="No")*AND(G120<'A - Contractor Summary'!$C$39),"",IF(AND(G120>'A - Contractor Summary'!$C$39,G120<'A - Contractor Summary'!$C$42),"Yes",IF(G120>'A - Contractor Summary'!$C$42,"No","Needs Review"))) ->  | P120: Yes | Q120: No | R120: 0 | S120: 0
B121: 110 | N121: =IF(AND(G121>='A - Contractor Summary'!$C$36,G121<='A - Contractor Summary'!$C$38),"Yes",IF(G121<'A - Contractor Summary'!$C$36,"No",IF(G121>'A - Contractor Summary'!$C$39,"",""))) -> No | O121: =IF(OR(N121="Yes",N121="No")*AND(G121<'A - Contractor Summary'!$C$39),"",IF(AND(G121>'A - Contractor Summary'!$C$39,G121<'A - Contractor Summary'!$C$42),"Yes",IF(G121>'A - Contractor Summary'!$C$42,"No","Needs Review"))) ->  | P121: Yes | Q121: No | R121: 0 | S121: 0
B122: 111 | N122: =IF(AND(G122>='A - Contractor Summary'!$C$36,G122<='A - Contractor Summary'!$C$38),"Yes",IF(G122<'A - Contractor Summary'!$C$36,"No",IF(G122>'A - Contractor Summary'!$C$39,"",""))) -> No | O122: =IF(OR(N122="Yes",N122="No")*AND(G122<'A - Contractor Summary'!$C$39),"",IF(AND(G122>'A - Contractor Summary'!$C$39,G122<'A - Contractor Summary'!$C$42),"Yes",IF(G122>'A - Contractor Summary'!$C$42,"No","Needs Review"))) ->  | P122: Yes | Q122: No | R122: 0 | S122: 0
B123: 112 | N123: =IF(AND(G123>='A - Contractor Summary'!$C$36,G123<='A - Contractor Summary'!$C$38),"Yes",IF(G123<'A - Contractor Summary'!$C$36,"No",IF(G123>'A - Contractor Summary'!$C$39,"",""))) -> No | O123: =IF(OR(N123="Yes",N123="No")*AND(G123<'A - Contractor Summary'!$C$39),"",IF(AND(G123>'A - Contractor Summary'!$C$39,G123<'A - Contractor Summary'!$C$42),"Yes",IF(G123>'A - Contractor Summary'!$C$42,"No","Needs Review"))) ->  | P123: Yes | Q123: No | R123: 0 | S123: 0
B124: 113 | N124: =IF(AND(G124>='A - Contractor Summary'!$C$36,G124<='A - Contractor Summary'!$C$38),"Yes",IF(G124<'A - Contractor Summary'!$C$36,"No",IF(G124>'A - Contractor Summary'!$C$39,"",""))) -> No | O124: =IF(OR(N124="Yes",N124="No")*AND(G124<'A - Contractor Summary'!$C$39),"",IF(AND(G124>'A - Contractor Summary'!$C$39,G124<'A - Contractor Summary'!$C$42),"Yes",IF(G124>'A - Contractor Summary'!$C$42,"No","Needs Review"))) ->  | P124: Yes | Q124: No | R124: 0 | S124: 0
B125: 114 | N125: =IF(AND(G125>='A - Contractor Summary'!$C$36,G125<='A - Contractor Summary'!$C$38),"Yes",IF(G125<'A - Contractor Summary'!$C$36,"No",IF(G125>'A - Contractor Summary'!$C$39,"",""))) -> No | O125: =IF(OR(N125="Yes",N125="No")*AND(G125<'A - Contractor Summary'!$C$39),"",IF(AND(G125>'A - Contractor Summary'!$C$39,G125<'A - Contractor Summary'!$C$42),"Yes",IF(G125>'A - Contractor Summary'!$C$42,"No","Needs Review"))) ->  | P125: Yes | Q125: No | R125: 0 | S125: 0
B126: 115 | N126: =IF(AND(G126>='A - Contractor Summary'!$C$36,G126<='A - Contractor Summary'!$C$38),"Yes",IF(G126<'A - Contractor Summary'!$C$36,"No",IF(G126>'A - Contractor Summary'!$C$39,"",""))) -> No | O126: =IF(OR(N126="Yes",N126="No")*AND(G126<'A - Contractor Summary'!$C$39),"",IF(AND(G126>'A - Contractor Summary'!$C$39,G126<'A - Contractor Summary'!$C$42),"Yes",IF(G126>'A - Contractor Summary'!$C$42,"No","Needs Review"))) ->  | P126: Yes | Q126: No | R126: 0 | S126: 0
B127: 116 | N127: =IF(AND(G127>='A - Contractor Summary'!$C$36,G127<='A - Contractor Summary'!$C$38),"Yes",IF(G127<'A - Contractor Summary'!$C$36,"No",IF(G127>'A - Contractor Summary'!$C$39,"",""))) -> No | O127: =IF(OR(N127="Yes",N127="No")*AND(G127<'A - Contractor Summary'!$C$39),"",IF(AND(G127>'A - Contractor Summary'!$C$39,G127<'A - Contractor Summary'!$C$42),"Yes",IF(G127>'A - Contractor Summary'!$C$42,"No","Needs Review"))) ->  | P127: Yes | Q127: No | R127: 0 | S127: 0
B128: 117 | N128: =IF(AND(G128>='A - Contractor Summary'!$C$36,G128<='A - Contractor Summary'!$C$38),"Yes",IF(G128<'A - Contractor Summary'!$C$36,"No",IF(G128>'A - Contractor Summary'!$C$39,"",""))) -> No | O128: =IF(OR(N128="Yes",N128="No")*AND(G128<'A - Contractor Summary'!$C$39),"",IF(AND(G128>'A - Contractor Summary'!$C$39,G128<'A - Contractor Summary'!$C$42),"Yes",IF(G128>'A - Contractor Summary'!$C$42,"No","Needs Review"))) ->  | P128: Yes | Q128: No | R128: 0 | S128: 0
B129: 118 | N129: =IF(AND(G129>='A - Contractor Summary'!$C$36,G129<='A - Contractor Summary'!$C$38),"Yes",IF(G129<'A - Contractor Summary'!$C$36,"No",IF(G129>'A - Contractor Summary'!$C$39,"",""))) -> No | O129: =IF(OR(N129="Yes",N129="No")*AND(G129<'A - Contractor Summary'!$C$39),"",IF(AND(G129>'A - Contractor Summary'!$C$39,G129<'A - Contractor Summary'!$C$42),"Yes",IF(G129>'A - Contractor Summary'!$C$42,"No","Needs Review"))) ->  | P129: Yes | Q129: No | R129: 0 | S129: 0
B130: 119 | N130: =IF(AND(G130>='A - Contractor Summary'!$C$36,G130<='A - Contractor Summary'!$C$38),"Yes",IF(G130<'A - Contractor Summary'!$C$36,"No",IF(G130>'A - Contractor Summary'!$C$39,"",""))) -> No | O130: =IF(OR(N130="Yes",N130="No")*AND(G130<'A - Contractor Summary'!$C$39),"",IF(AND(G130>'A - Contractor Summary'!$C$39,G130<'A - Contractor Summary'!$C$42),"Yes",IF(G130>'A - Contractor Summary'!$C$42,"No","Needs Review"))) ->  | P130: Yes | Q130: No | R130: 0 | S130: 0
B131: 120 | N131: =IF(AND(G131>='A - Contractor Summary'!$C$36,G131<='A - Contractor Summary'!$C$38),"Yes",IF(G131<'A - Contractor Summary'!$C$36,"No",IF(G131>'A - Contractor Summary'!$C$39,"",""))) -> No | O131: =IF(OR(N131="Yes",N131="No")*AND(G131<'A - Contractor Summary'!$C$39),"",IF(AND(G131>'A - Contractor Summary'!$C$39,G131<'A - Contractor Summary'!$C$42),"Yes",IF(G131>'A - Contractor Summary'!$C$42,"No","Needs Review"))) ->  | P131: Yes | Q131: No | R131: 0 | S131: 0
B132: 121 | N132: =IF(AND(G132>='A - Contractor Summary'!$C$36,G132<='A - Contractor Summary'!$C$38),"Yes",IF(G132<'A - Contractor Summary'!$C$36,"No",IF(G132>'A - Contractor Summary'!$C$39,"",""))) -> No | O132: =IF(OR(N132="Yes",N132="No")*AND(G132<'A - Contractor Summary'!$C$39),"",IF(AND(G132>'A - Contractor Summary'!$C$39,G132<'A - Contractor Summary'!$C$42),"Yes",IF(G132>'A - Contractor Summary'!$C$42,"No","Needs Review"))) ->  | P132: Yes | Q132: No | R132: 0 | S132: 0
B133: 122 | N133: =IF(AND(G133>='A - Contractor Summary'!$C$36,G133<='A - Contractor Summary'!$C$38),"Yes",IF(G133<'A - Contractor Summary'!$C$36,"No",IF(G133>'A - Contractor Summary'!$C$39,"",""))) -> No | O133: =IF(OR(N133="Yes",N133="No")*AND(G133<'A - Contractor Summary'!$C$39),"",IF(AND(G133>'A - Contractor Summary'!$C$39,G133<'A - Contractor Summary'!$C$42),"Yes",IF(G133>'A - Contractor Summary'!$C$42,"No","Needs Review"))) ->  | P133: Yes | Q133: No | R133: 0 | S133: 0
B134: 123 | N134: =IF(AND(G134>='A - Contractor Summary'!$C$36,G134<='A - Contractor Summary'!$C$38),"Yes",IF(G134<'A - Contractor Summary'!$C$36,"No",IF(G134>'A - Contractor Summary'!$C$39,"",""))) -> No | O134: =IF(OR(N134="Yes",N134="No")*AND(G134<'A - Contractor Summary'!$C$39),"",IF(AND(G134>'A - Contractor Summary'!$C$39,G134<'A - Contractor Summary'!$C$42),"Yes",IF(G134>'A - Contractor Summary'!$C$42,"No","Needs Review"))) ->  | P134: Yes | Q134: No | R134: 0 | S134: 0
B135: 124 | N135: =IF(AND(G135>='A - Contractor Summary'!$C$36,G135<='A - Contractor Summary'!$C$38),"Yes",IF(G135<'A - Contractor Summary'!$C$36,"No",IF(G135>'A - Contractor Summary'!$C$39,"",""))) -> No | O135: =IF(OR(N135="Yes",N135="No")*AND(G135<'A - Contractor Summary'!$C$39),"",IF(AND(G135>'A - Contractor Summary'!$C$39,G135<'A - Contractor Summary'!$C$42),"Yes",IF(G135>'A - Contractor Summary'!$C$42,"No","Needs Review"))) ->  | P135: Yes | Q135: No | R135: 0 | S135: 0
B136: 125 | N136: =IF(AND(G136>='A - Contractor Summary'!$C$36,G136<='A - Contractor Summary'!$C$38),"Yes",IF(G136<'A - Contractor Summary'!$C$36,"No",IF(G136>'A - Contractor Summary'!$C$39,"",""))) -> No | O136: =IF(OR(N136="Yes",N136="No")*AND(G136<'A - Contractor Summary'!$C$39),"",IF(AND(G136>'A - Contractor Summary'!$C$39,G136<'A - Contractor Summary'!$C$42),"Yes",IF(G136>'A - Contractor Summary'!$C$42,"No","Needs Review"))) ->  | P136: Yes | Q136: No | R136: 0 | S136: 0
B137: 126 | N137: =IF(AND(G137>='A - Contractor Summary'!$C$36,G137<='A - Contractor Summary'!$C$38),"Yes",IF(G137<'A - Contractor Summary'!$C$36,"No",IF(G137>'A - Contractor Summary'!$C$39,"",""))) -> No | O137: =IF(OR(N137="Yes",N137="No")*AND(G137<'A - Contractor Summary'!$C$39),"",IF(AND(G137>'A - Contractor Summary'!$C$39,G137<'A - Contractor Summary'!$C$42),"Yes",IF(G137>'A - Contractor Summary'!$C$42,"No","Needs Review"))) ->  | P137: Yes | Q137: No | R137: 0 | S137: 0
B138: 127 | N138: =IF(AND(G138>='A - Contractor Summary'!$C$36,G138<='A - Contractor Summary'!$C$38),"Yes",IF(G138<'A - Contractor Summary'!$C$36,"No",IF(G138>'A - Contractor Summary'!$C$39,"",""))) -> No | O138: =IF(OR(N138="Yes",N138="No")*AND(G138<'A - Contractor Summary'!$C$39),"",IF(AND(G138>'A - Contractor Summary'!$C$39,G138<'A - Contractor Summary'!$C$42),"Yes",IF(G138>'A - Contractor Summary'!$C$42,"No","Needs Review"))) ->  | P138: Yes | Q138: No | R138: 0 | S138: 0
B139: 128 | N139: =IF(AND(G139>='A - Contractor Summary'!$C$36,G139<='A - Contractor Summary'!$C$38),"Yes",IF(G139<'A - Contractor Summary'!$C$36,"No",IF(G139>'A - Contractor Summary'!$C$39,"",""))) -> No | O139: =IF(OR(N139="Yes",N139="No")*AND(G139<'A - Contractor Summary'!$C$39),"",IF(AND(G139>'A - Contractor Summary'!$C$39,G139<'A - Contractor Summary'!$C$42),"Yes",IF(G139>'A - Contractor Summary'!$C$42,"No","Needs Review"))) ->  | P139: Yes | Q139: No | R139: 0 | S139: 0
B140: 129 | N140: =IF(AND(G140>='A - Contractor Summary'!$C$36,G140<='A - Contractor Summary'!$C$38),"Yes",IF(G140<'A - Contractor Summary'!$C$36,"No",IF(G140>'A - Contractor Summary'!$C$39,"",""))) -> No | O140: =IF(OR(N140="Yes",N140="No")*AND(G140<'A - Contractor Summary'!$C$39),"",IF(AND(G140>'A - Contractor Summary'!$C$39,G140<'A - Contractor Summary'!$C$42),"Yes",IF(G140>'A - Contractor Summary'!$C$42,"No","Needs Review"))) ->  | P140: Yes | Q140: =IF(AND(P140="Yes",L140="Yes",M140="Yes")*OR(O140="Yes",N140="Yes"),"Yes",IF(OR(L140="No",N140="No",O140="No",P140="No",M140="No"),"No","Needs Review")) -> No | R140: =IF(Q140="Yes",K140,0) -> 0 | S140: =IF(Q140="Needs Review",K140,0) -> 0
K141: =SUM(K14:K140) -> 0 | R141: =IFERROR(SUM(R14:R140),0) -> 0 | S141: =IFERROR(SUM(S14:S140),0) -> 0 | T141: =SUM(T14:T140) -> 0 | U141: =SUM(U14:U140) -> 0 | V141: =S141-T141-U141 -> 0 | W141: check (a)
B145: Tickmark Explanation:
C146: 1
C147: 2
C148: 3
C149: 4
C150: 5
C151: 6
C152: 7

Sheet I - Other
B2: Other Charges
B4: Test Plan: (A) Obtain support of individual charges. (B) Enter Yes/No if receipt is itemized. (C) Enter Yes/No if proof of payment has been provided. (D) Ensure charges fall between the dates the vendor was mobilized and the date they arrived. (E) Ensure charges are prior to the date the vendor arrived home or was released to another utility. (F) Ensure the expense type is reasonable (G) Determine the amount(s) to be reviewed, allowed and/or disallowed. (H) For charges which required further review, document review and include why it was determined to be allowed/disallowed via a tickmark.
B9: a | C9: Check figure should equal $0. Cell will appear yellow if discrepancies are noted.
C12: A | L12: B | M12: C | N12: D | O12: E | P12: F | Q12: G | T12: H
B13: Support Reviewed | N13: Conclusions
B14: # | C14: Type of Support | D14: Support Identifier | E14: Company | F14: Crew | G14: Date | H14: Person | I14: Vendor Name | J14: Location | K14: $ Total | L14: Itemized Receipt | M14: Proof of Payment | N14: Reasonable based on Mobilization date(s) | O14: Reasonable based on Demobilization date(s) | P14: Expense Type Appropriate | Q14: Conclusion | R14: $ Allowable Charge | S14: $ To Be Reviewed | T14: Reviewed - Allowable Charge | U14: Reviewed - Unallowable Charge | V14: Tickmarks
B15: 1
B16: 1
B18: 1
K19: =SUM(K15:K18) -> 0 | R19: =SUM(R15:R18) -> 0 | S19: =IFERROR(SUM(S15:S15),0) -> 0 | T19: =SUM(T15:T15) -> 0 | U19: =SUM(U15:U15) -> 0 | V19: =S19-T19-U19 -> 0 | W19: check (a)
B23: Tickmark Explanation:
C24: 1

Sheet G - Per Diem
B2: Per Diem Charges
B4: Test Plan: (A) Enter per diem charges per invoice. (B) Enter number of crew worked per timecard. (C) Enter the Per Diem Rate charged per person per meal (D) Ensure the number of crew members being charged is appropriate (This is comparing the submitted timecards and the per diem charges invoiced). (E) Ensure charges fall between the dates the vendor was mobilized and the date they arrived. (F) Ensure charges are prior to the date the vendor arrived home or was released to another utility. (G) Determine the amount(s) to be reviewed, allowed and/or disallowed. (H) For charges which required further review, document review and include why it was determined to be allowed/disallowed via a tickmark.
B10: Rx | C10: Recalculated.
B11: a | C11: Check figure should equal $0. Cell will appear yellow if discrepancies are noted.
B14: A | F14: B | G14: Rx | H14: C | I14: Rx | J14: D | K14: E | L14: F | M14: G | P14: H
B15: Support Reviewed | J15: Conclusion
B16: Dates | C16: Company | D16: Per Diem Type | E16: # Crew Worked (per invoice) | F16: # Crew Worked (per timecards) | G16: Invoice | H16: Per Diem Rate | I16: Total Per Diem | J16: # Crew Reasonable | K16: Reasonable based on Mobilization date(s) | L16: Reasonable based on Demobilization date(s) | M16: Conclusion | N16: $ Allowable Charge | O16: $ To Be Reviewed | P16: Reviewed - Allowable Charge | Q16: Reviewed - Unallowable Charge | R16: Tickmarks
B17: 2019-09-01 | D17: Breakfast | E17: Davis | F17: 4 | G17: 914186602 | H17: 8 | I17: =+F17*H17 -> 32 | J17: =IF(G17>0,"Yes",IF(F17=0,"N/A","Yes")) -> Yes | K17: =IF(AND(B17>='A - Contractor Summary'!$C$36,B17<='A - Contractor Summary'!$C$38),"Yes",IF(B17<'A - Contractor Summary'!$C$36,"No",IF(B17>'A - Contractor Summary'!$C$39,"",""))) -> Yes | L17: =IF(OR(K17="Yes",K17="No")*AND(B17<'A - Contractor Summary'!$C$39),"",IF(AND(B17>'A - Contractor Summary'!$C$39,B17<'A - Contractor Summary'!$C$42),"Yes",IF(B17>'A - Contractor Summary'!$C$42,"No","Needs Review"))) ->  | M17: =IF(AND(J17="Yes")*OR(K17="Yes",L17="Yes"),"Yes",IF(OR(K17="No",J17="No",L17="No"),"No","Needs Review")) -> Yes | N17: =IF(M17="Yes",I17,0) -> 32 | O17: =IF(M17="Needs Review",I17,0) -> 0 | P17: =+I17 -> 32 | R17: 1
B18: 2019-09-01 | D18: Lunch | E18: Davis | F18: 6 | G18: 914186602 | H18: 11 | I18: =+F18*H18 -> 66 | J18: =IF(G18>0,"Yes",IF(F18=0,"N/A","Yes")) -> Yes | K18: =IF(AND(B18>='A - Contractor Summary'!$C$36,B18<='A - Contractor Summary'!$C$38),"Yes",IF(B18<'A - Contractor Summary'!$C$36,"No",IF(B18>'A - Contractor Summary'!$C$39,"",""))) -> Yes | L18: =IF(OR(K18="Yes",K18="No")*AND(B18<'A - Contractor Summary'!$C$39),"",IF(AND(B18>'A - Contractor Summary'!$C$39,B18<'A - Contractor Summary'!$C$42),"Yes",IF(B18>'A - Contractor Summary'!$C$42,"No","Needs Review"))) ->  | M18: =IF(AND(J18="Yes")*OR(K18="Yes",L18="Yes"),"Yes",IF(OR(K18="No",J18="No",L18="No"),"No","Needs Review")) -> Yes | N18: =IF(M18="Yes",I18,0) -> 66 | O18: =IF(M18="Needs Review",I18,0) -> 0 | P18: =+I18 -> 66 | R18: 1
B19: 2019-09-01 | D19: Dinner | E19: Davis | F19: 8 | G19: 914186602 | H19: 18.5 | I19: 148 | J19: Yes | K19: =IF(AND(B19>='A - Contractor Summary'!$C$36,B19<='A - Contractor Summary'!$C$38),"Yes",IF(B19<'A - Contractor Summary'!$C$36,"No",IF(B19>'A - Contractor Summary'!$C$39,"",""))) -> Yes | L19: =IF(OR(K19="Yes",K19="No")*AND(B19<'A - Contractor Summary'!$C$39),"",IF(AND(B19>'A - Contractor Summary'!$C$39,B19<'A - Contractor Summary'!$C$42),"Yes",IF(B19>'A - Contractor Summary'!$C$42,"No","Needs Review"))) ->  | M19: Yes | N19: 148 | O19: 0 | P19: 148 | R19: 1
B20: 2019-09-01 | D20: Hotel | E20: Davis | F20: 4 | G20: 914186602 | H20: 77 | I20: 308 | J20: Yes | K20: =IF(AND(B20>='A - Contractor Summary'!$C$36,B20<='A - Contractor Summary'!$C$38),"Yes",IF(B20<'A - Contractor Summary'!$C$36,"No",IF(B20>'A - Contractor Summary'!$C$39,"",""))) -> Yes | L20: =IF(OR(K20="Yes",K20="No")*AND(B20<'A - Contractor Summary'!$C$39),"",IF(AND(B20>'A - Contractor Summary'!$C$39,B20<'A - Contractor Summary'!$C$42),"Yes",IF(B20>'A - Contractor Summary'!$C$42,"No","Needs Review"))) ->  | M20: Yes | N20: 308 | O20: 0 | P20: 308 | R20: 1
B21: 2019-09-01 | D21: Breakfast | E21: Ash | F21: 2 | G21: 914186615 | H21: 8 | I21: 16 | J21: Yes | K21: =IF(AND(B21>='A - Contractor Summary'!$C$36,B21<='A - Contractor Summary'!$C$38),"Yes",IF(B21<'A - Contractor Summary'!$C$36,"No",IF(B21>'A - Contractor Summary'!$C$39,"",""))) -> Yes | L21: =IF(OR(K21="Yes",K21="No")*AND(B21<'A - Contractor Summary'!$C$39),"",IF(AND(B21>'A - Contractor Summary'!$C$39,B21<'A - Contractor Summary'!$C$42),"Yes",IF(B21>'A - Contractor Summary'!$C$42,"No","Needs Review"))) ->  | M21: Yes | N21: 16 | O21: 0 | P21: 16 | R21: 1
B22: 2019-09-01 | D22: Lunch | E22: Ash | F22: 3 | G22: 914186615 | H22: 11 | I22: 33 | J22: Yes | K22: =IF(AND(B22>='A - Contractor Summary'!$C$36,B22<='A - Contractor Summary'!$C$38),"Yes",IF(B22<'A - Contractor Summary'!$C$36,"No",IF(B22>'A - Contractor Summary'!$C$39,"",""))) -> Yes | L22: =IF(OR(K22="Yes",K22="No")*AND(B22<'A - Contractor Summary'!$C$39),"",IF(AND(B22>'A - Contractor Summary'!$C$39,B22<'A - Contractor Summary'!$C$42),"Yes",IF(B22>'A - Contractor Summary'!$C$42,"No","Needs Review"))) ->  | M22: Yes | N22: 33 | O22: 0 | P22: 33 | R22: 1
B23: 2019-09-01 | D23: Dinner | E23: Ash | F23: 4 | G23: 914186615 | H23: 18.5 | I23: 74 | J23: Yes | K23: =IF(AND(B23>='A - Contractor Summary'!$C$36,B23<='A - Contractor Summary'!$C$38),"Yes",IF(B23<'A - Contractor Summary'!$C$36,"No",IF(B23>'A - Contractor Summary'!$C$39,"",""))) -> Yes | L23: =IF(OR(K23="Yes",K23="No")*AND(B23<'A - Contractor Summary'!$C$39),"",IF(AND(B23>'A - Contractor Summary'!$C$39,B23<'A - Contractor Summary'!$C$42),"Yes",IF(B23>'A - Contractor Summary'!$C$42,"No","Needs Review"))) ->  | M23: Yes | N23: 74 | O23: 0 | P23: 74 | R23: 1
B24: 2019-09-01 | D24: Hotel | E24: Ash | F24: 2 | G24: 914186615 | H24: 77 | I24: 154 | J24: Yes | K24: =IF(AND(B24>='A - Contractor Summary'!$C$36,B24<='A - Contractor Summary'!$C$38),"Yes",IF(B24<'A - Contractor Summary'!$C$36,"No",IF(B24>'A - Contractor Summary'!$C$39,"",""))) -> Yes | L24: =IF(OR(K24="Yes",K24="No")*AND(B24<'A - Contractor Summary'!$C$39),"",IF(AND(B24>'A - Contractor Summary'!$C$39,B24<'A - Contractor Summary'!$C$42),"Yes",IF(B24>'A - Contractor Summary'!$C$42,"No","Needs Review"))) ->  | M24: Yes | N24: 154 | O24: 0 | P24: 154 | R24: 1
B25: 2019-09-01 | D25: Breakfast | E25: Jarrett | F25: 4 | G25: 914186619 | H25: 8 | I25: 32 | J25: Yes | K25: =IF(AND(B25>='A - Contractor Summary'!$C$36,B25<='A - Contractor Summary'!$C$38),"Yes",IF(B25<'A - Contractor Summary'!$C$36,"No",IF(B25>'A - Contractor Summary'!$C$39,"",""))) -> Yes | L25: =IF(OR(K25="Yes",K25="No")*AND(B25<'A - Contractor Summary'!$C$39),"",IF(AND(B25>'A - Contractor Summary'!$C$39,B25<'A - Contractor Summary'!$C$42),"Yes",IF(B25>'A - Contractor Summary'!$C$42,"No","Needs Review"))) ->  | M25: Yes | N25: 32 | O25: 0 | P25: 32 | R25: 1
B26: 2019-09-01 | D26: Lunch | E26: Jarrett | F26: 6 | G26: 914186619 | H26: 11 | I26: 66 | J26: Yes | K26: =IF(AND(B26>='A - Contractor Summary'!$C$36,B26<='A - Contractor Summary'!$C$38),"Yes",IF(B26<'A - Contractor Summary'!$C$36,"No",IF(B26>'A - Contractor Summary'!$C$39,"",""))) -> Yes | L26: =IF(OR(K26="Yes",K26="No")*AND(B26<'A - Contractor Summary'!$C$39),"",IF(AND(B26>'A - Contractor Summary'!$C$39,B26<'A - Contractor Summary'!$C$42),"Yes",IF(B26>'A - Contractor Summary'!$C$42,"No","Needs Review"))) ->  | M26: Yes | N26: 66 | O26: 0 | P26: 66 | R26: 1
B27: 2019-09-01 | D27: Dinner | E27: Jarrett | F27: 8 | G27: 914186619 | H27: 18.5 | I27: 148 | J27: Yes | K27: =IF(AND(B27>='A - Contractor Summary'!$C$36,B27<='A - Contractor Summary'!$C$38),"Yes",IF(B27<'A - Contractor Summary'!$C$36,"No",IF(B27>'A - Contractor Summary'!$C$39,"",""))) -> Yes | L27: =IF(OR(K27="Yes",K27="No")*AND(B27<'A - Contractor Summary'!$C$39),"",IF(AND(B27>'A - Contractor Summary'!$C$39,B27<'A - Contractor Summary'!$C$42),"Yes",IF(B27>'A - Contractor Summary'!$C$42,"No","Needs Review"))) ->  | M27: Yes | N27: 148 | O27: 0 | P27: 148 | R27: 1
B28: 2019-09-01 | D28: Hotel | E28: Jarrett | F28: 4 | G28: 914186619 | H28: 77 | I28: 308 | J28: Yes | K28: =IF(AND(B28>='A - Contractor Summary'!$C$36,B28<='A - Contractor Summary'!$C$38),"Yes",IF(B28<'A - Contractor Summary'!$C$36,"No",IF(B28>'A - Contractor Summary'!$C$39,"",""))) -> Yes | L28: =IF(OR(K28="Yes",K28="No")*AND(B28<'A - Contractor Summary'!$C$39),"",IF(AND(B28>'A - Contractor Summary'!$C$39,B28<'A - Contractor Summary'!$C$42),"Yes",IF(B28>'A - Contractor Summary'!$C$42,"No","Needs Review"))) ->  | M28: Yes | N28: 308 | O28: 0 | P28: 308 | R28: 1
B29: 2019-09-01 | D29: Breakfast | E29: Bane | F29: 4 | G29: 914186609 | H29: 8 | I29: 32 | J29: Yes | K29: =IF(AND(B29>='A - Contractor Summary'!$C$36,B29<='A - Contractor Summary'!$C$38),"Yes",IF(B29<'A - Contractor Summary'!$C$36,"No",IF(B29>'A - Contractor Summary'!$C$39,"",""))) -> Yes | L29: =IF(OR(K29="Yes",K29="No")*AND(B29<'A - Contractor Summary'!$C$39),"",IF(AND(B29>'A - Contractor Summary'!$C$39,B29<'A - Contractor Summary'!$C$42),"Yes",IF(B29>'A - Contractor Summary'!$C$42,"No","Needs Review"))) ->  | M29: Yes | N29: 32 | O29: 0 | P29: 32 | R29: 1
B30: 2019-09-01 | D30: Lunch | E30: Bane | F30: 6 | G30: 914186609 | H30: 11 | I30: 66 | J30: Yes | K30: =IF(AND(B30>='A - Contractor Summary'!$C$36,B30<='A - Contractor Summary'!$C$38),"Yes",IF(B30<'A - Contractor Summary'!$C$36,"No",IF(B30>'A - Contractor Summary'!$C$39,"",""))) -> Yes | L30: =IF(OR(K30="Yes",K30="No")*AND(B30<'A - Contractor Summary'!$C$39),"",IF(AND(B30>'A - Contractor Summary'!$C$39,B30<'A - Contractor Summary'!$C$42),"Yes",IF(B30>'A - Contractor Summary'!$C$42,"No","Needs Review"))) ->  | M30: Yes | N30: 66 | O30: 0 | P30: 66 | R30: 1
B31: 2019-09-01 | D31: Dinner | E31: Bane | F31: 8 | G31: 914186609 | H31: 18.5 | I31: 148 | J31: Yes | K31: =IF(AND(B31>='A - Contractor Summary'!$C$36,B31<='A - Contractor Summary'!$C$38),"Yes",IF(B31<'A - Contractor Summary'!$C$36,"No",IF(B31>'A - Contractor Summary'!$C$39,"",""))) -> Yes | L31: =IF(OR(K31="Yes",K31="No")*AND(B31<'A - Contractor Summary'!$C$39),"",IF(AND(B31>'A - Contractor Summary'!$C$39,B31<'A - Contractor Summary'!$C$42),"Yes",IF(B31>'A - Contractor Summary'!$C$42,"No","Needs Review"))) ->  | M31: Yes | N31: 148 | O31: 0 | P31: 148 | R31: 1
B32: 2019-09-01 | D32: Hotel | E32: Bane | F32: 4 | G32: 914186609 | H32: 77 | I32: 308 | J32: Yes | K32: =IF(AND(B32>='A - Contractor Summary'!$C$36,B32<='A - Contractor Summary'!$C$38),"Yes",IF(B32<'A - Contractor Summary'!$C$36,"No",IF(B32>'A - Contractor Summary'!$C$39,"",""))) -> Yes | M32: =IF(AND(J32="Yes")*OR(K32="Yes",L32="Yes"),"Yes",IF(OR(K32="No",J32="No",L32="No"),"No","Needs Review")) -> Yes | N32: =IF(M32="Yes",I32,0) -> 308 | O32: =IF(M32="Needs Review",I32,0) -> 0 | P32: 308 | R32: 1
B33: 2019-09-01 | D33: Breakfast | E33: Hahn | F33: 4 | G33: 914186598 | H33: 8 | I33: 32 | J33: Yes | K33: =IF(AND(B33>='A - Contractor Summary'!$C$36,B33<='A - Contractor Summary'!$C$38),"Yes",IF(B33<'A - Contractor Summary'!$C$36,"No",IF(B33>'A - Contractor Summary'!$C$39,"",""))) -> Yes | M33: Yes | N33: 32 | O33: 0 | P33: 32 | R33: 1
B34: 2019-09-01 | D34: Lunch | E34: Hahn | F34: 6 | G34: 914186598 | H34: 11 | I34: 66 | J34: Yes | K34: =IF(AND(B34>='A - Contractor Summary'!$C$36,B34<='A - Contractor Summary'!$C$38),"Yes",IF(B34<'A - Contractor Summary'!$C$36,"No",IF(B34>'A - Contractor Summary'!$C$39,"",""))) -> Yes | M34: Yes | N34: 66 | O34: 0 | P34: 66 | R34: 1
B35: 2019-09-01 | D35: Dinner | E35: Hahn | F35: 8 | G35: 914186598 | H35: 18.5 | I35: 148 | J35: Yes | K35: =IF(AND(B35>='A - Contractor Summary'!$C$36,B35<='A - Contractor Summary'!$C$38),"Yes",IF(B35<'A - Contractor Summary'!$C$36,"No",IF(B35>'A - Contractor Summary'!$C$39,"",""))) -> Yes | M35: Yes | N35: 148 | O35: 0 | P35: 148 | R35: 1
B36: 2019-09-01 | D36: Hotel | E36: Hahn | F36: 4 | G36: 914186598 | H36: 77 | I36: 308 | J36: Yes | K36: =IF(AND(B36>='A - Contractor Summary'!$C$36,B36<='A - Contractor Summary'!$C$38),"Yes",IF(B36<'A - Contractor Summary'!$C$36,"No",IF(B36>'A - Contractor Summary'!$C$39,"",""))) -> Yes | M36: Yes | N36: 308 | O36: 0 | P36: 308 | R36: 1
G37: =SUM(G17:G36) -> 18283732172 | I37: =SUM(I17:I36) -> 2493 | N37: =IFERROR(SUM(N17:N36),0) -> 2493 | O37: =IFERROR(SUM(O17:O36),0) -> 0 | P37: =SUM(P17:P36) -> 2493 | Q37: =SUM(Q17:Q36) -> 0 | R37: =O37-P37-Q37 -> -2493 | S37: check (a)
B40: Tickmark Explanation:
B42: 1 Support provided

Sheet H - Mileage
B2: Mileage Charges
B4: Test Plan: (A) Obtain support of individual mileage charged (Typically a rate and mileage included on invoice). (B) Ensure charges fall between the dates the vendor was mobilized and the date they arrived. (C) Ensure charges are prior to the date the vendor arrived home or was released to another utility. (D) Ensure number of miles charged deemed reasonable based on vendor location (recalculated per 'A - Contractor Summary' tab). (E) Ensure the location of charge was reasonable (If mobilizing, charges should be related to travelling to TECO Service area, and home, if demobilizing). (F) Determine the amount(s) to be reviewed, allowed and/or disallowed. (G) For charges which required further review, document review and include why it was determined to be allowed/disallowed via a tickmark.
B10: Rx | C10: Recalculated.
B11: a | C11: Check figure should equal $0. Cell will appear yellow if discrepancies are noted.
C13: A | L13: Rx | M13: B | N13: C | O13: D | P13: E | Q13: F | T13: G
B14: Support Reviewed | M14: Conclusions
B15: # | C15: Type of Support | D15: Company | E15: Equipment Name | F15: Equipment ID | G15: Inv# | H15: Date | I15: Location | J15: Miles Charged | K15: $ / Mile (Rate) | L15: Total Charge | M15: Reasonable based on Mobilization date(s) | N15: Reasonable based on Demobilization date(s) | O15: Number of Miles Charged Reasonable | P15: Locations Reasonable | Q15: Conclusion | R15: $ Allowable Charge | S15: $ To Be Reviewed | T15: Reviewed - Allowable Charge | U15: Reviewed - Unallowable Charge | V15: Tickmarks
B16: 1 | D16: Vendor No. 6 | E16: Mileage Aerial Lift < 60' | F16: 3300101 | G16: 914186602 | H16: 2019-09-01 | I16: Davis | J16: 1437 | K16: =VLOOKUP(E16,'C.1 - Rate Sheets'!H:I,2,FALSE) -> 1.25 | L16: =J16*K16 -> 1796.25 | M16: =IF(AND(H16>='A - Contractor Summary'!$C$36,H16<='A - Contractor Summary'!$C$38),"Yes",IF(H16<'A - Contractor Summary'!$C$36,"No",IF(H16>'A - Contractor Summary'!$C$39,"",""))) -> Yes | N16: Yes | O16: Yes | P16: Locations Reasonable | Q16: YES | R16: =+L16 -> 1796.25 | S16: =IF(Q16="Needs Review",L16,0) -> 0 | V16: 1
B17: 2 | D17: Vendor No. 6 | E17: Mileage Pick Up Truck | F17: 2900304 | G17: 914186615 | H17: 2019-09-01 | I17: Ashe | J17: 1437 | K17: =VLOOKUP(E17,'C.1 - Rate Sheets'!H:I,2,FALSE) -> 0.85 | L17: 1221.45 | M17: =IF(AND(H17>='A - Contractor Summary'!$C$36,H17<='A - Contractor Summary'!$C$38),"Yes",IF(H17<'A - Contractor Summary'!$C$36,"No",IF(H17>'A - Contractor Summary'!$C$39,"",""))) -> Yes | N17: Yes | O17: Yes | P17: Locations Reasonable | Q17: YES | R17: =+L17 -> 1221.45 | S17: 0 | V17: 1
B18: 3 | D18: Vendor No. 6 | E18: Mileage Aerial Lift > 60' | F18: 3002813 | G18: 914186619 | H18: 2019-09-01 | I18: Jarrett | J18: 1437 | K18: =VLOOKUP(E18,'C.1 - Rate Sheets'!H:I,2,FALSE) -> 1.3 | L18: 1868.1 | M18: =IF(AND(H18>='A - Contractor Summary'!$C$36,H18<='A - Contractor Summary'!$C$38),"Yes",IF(H18<'A - Contractor Summary'!$C$36,"No",IF(H18>'A - Contractor Summary'!$C$39,"",""))) -> Yes | N18: Yes | O18: Yes | P18: Locations Reasonable | Q18: YES | R18: 1868.1 | S18: 0 | V18: 1
B19: 4 | D19: Vendor No. 6 | E19: Mileage Aerial Lift > 60' | F19: 3002627 | G19: 914186609 | H19: 2019-09-01 | I19: Bane | J19: 1437 | K19: =VLOOKUP(E19,'C.1 - Rate Sheets'!H:I,2,FALSE) -> 1.3 | L19: 1868.1 | M19: =IF(AND(H19>='A - Contractor Summary'!$C$36,H19<='A - Contractor Summary'!$C$38),"Yes",IF(H19<'A - Contractor Summary'!$C$36,"No",IF(H19>'A - Contractor Summary'!$C$39,"",""))) -> Yes | N19: Yes | O19: Yes | P19: Locations Reasonable | Q19: YES | R19: 1868.1 | S19: 0 | V19: 1
B20: 5 | D20: Vendor No. 6 | E20: Mileage Aerial Lift > 60' | F20: 5001251 | G20: 914186598 | H20: 2019-09-01 | I20: Hahn | J20: 1437 | K20: =VLOOKUP(E20,'C.1 - Rate Sheets'!H:I,2,FALSE) -> 1.3 | L20: 1868.1 | M20: =IF(AND(H20>='A - Contractor Summary'!$C$36,H20<='A - Contractor Summary'!$C$38),"Yes",IF(H20<'A - Contractor Summary'!$C$36,"No",IF(H20>'A - Contractor Summary'!$C$39,"",""))) -> Yes | N20: Yes | O20: Yes | P20: Locations Reasonable | Q20: YES | R20: 1868.1 | S20: 0 | V20: 1
B21: 6 | D21: Vendor No. 6 | E21: Mileage Manual Crew Truck | F21: 1501054 | G21: 914186598 | H21: 2019-09-01 | I21: Hahn | J21: 1437 | K21: =VLOOKUP(E21,'C.1 - Rate Sheets'!H:I,2,FALSE) -> 1 | L21: 1437 | M21: =IF(AND(H21>='A - Contractor Summary'!$C$36,H21<='A - Contractor Summary'!$C$38),"Yes",IF(H21<'A - Contractor Summary'!$C$36,"No",IF(H21>'A - Contractor Summary'!$C$39,"",""))) -> Yes | N21: Yes | O21: Yes | P21: Locations Reasonable | Q21: YES | R21: 1437 | S21: 0 | V21: 1
L22: =SUM(L16:L21) -> 10059 | R22: =IFERROR(SUM(R16:R21),0) -> 10059 | S22: =IFERROR(SUM(S16:S21),0) -> 0 | T22: =SUM(T16:T21) -> 0 | U22: =SUM(U16:U21) -> 0 | V22: =S22-T22-U22 -> 0 | W22: check (a)
R24: =SUBTOTAL(9,R16:R21) -> 10059
B28: Tickmark Explanation:
C29: 1 Support provided
C30: 2 Rounding in calculations on invoices
